Workbook

Sheet Frontsheet
A1: Character: | D1: =character_name -> TBA | M1: Player: | O1: =player_name -> 4.2 Beta | T1: Date Gen'd | W1: ='Character Stats'!L2 -> 2015-08-19T15:38:35.760
A3: Intelligence | E3: =intelligence -> 5 | G3: Speech | K3: =speech -> 12 | M3: Gender | Q3: =sex_disp -> Male | T3: Skills
A4: Wisdom | E4: =wisdom -> 15 | G4: Appearance | K4: =appearance -> 11 | M4: Race | Q4: =race_disp -> Human | T4: =IF(AI23>0,INDIRECT(CONCATENATE("'Character Stats'!a",AJ23)),"") -> Two Edge Blades | Y4: =IF(AI23>0,INDIRECT(CONCATENATE("'Character Stats'!f",AJ23)),"") -> 2
A5: Constitution | E5: =constitution -> 5 | G5: Art | K5: =art -> 6 | M5: Size | Q5: =size1 -> 10 | R5: =size2 -> 13 | T5: Mounted Lance | Y5: 1
A6: Strength | E6: =strength -> 16 | G6: Ethics | K6: =ethics -> 2 | M6: Horoscope | Q6: =horoscope_disp -> Pisces | T6: Single Edge Blades | Y6: 1
A7: Dexterity | E7: =dexterity -> 22 | G7: Faith | K7: =faith -> 8 | M7: Social Status | Q7: =VLOOKUP(social_status,Tables!A317:B325,2) -> Townsman | T7: Shields | Y7: 2
T8: Dodge | Y8: 1
A9: Stealth | E9: =stealth -> 16 | G9: Height | J9: =height_ft -> 5 ft | K9: =height_in -> 8 | M9: Complexion | Q9: =IF('Character Stats'!L36="","",'Character Stats'!L36) ->  | T9: Tackle | Y9: 1
A10: Combat | E10: =combat -> 16 | G10: Weight | J10: =weight -> 190 | L10: lb | M10: Eye Color | Q10: =IF('Character Stats'!L37="","",'Character Stats'!L37) ->  | T10: =IF(AI29>0,INDIRECT(CONCATENATE("'Character Stats'!a",AJ29)),"") -> Grapple | Y10: =IF(AI29>0,INDIRECT(CONCATENATE("'Character Stats'!f",AJ29)),"") -> 1
A11: Magic | E11: =magic -> 10 | G11: Carry Cap | J11: =carryingcap -> 314 | L11: lb | M11: Hair Color | Q11: =IF('Character Stats'!L38="","",'Character Stats'!L38) ->  | T11: =IF(AI30>0,INDIRECT(CONCATENATE("'Character Stats'!a",AJ30)),"") -> Chirurgery | Y11: =IF(AI30>0,INDIRECT(CONCATENATE("'Character Stats'!f",AJ30)),"") -> 1
A12: Miracle | E12: =miracle -> 14 | G12: Age | J12: =age_stat -> 29 | L12: yr | M12: Handedness | Q12: =IF('Character Stats'!L35="","",'Character Stats'!L35) ->  | T12: =IF(AI31>0,INDIRECT(CONCATENATE("'Character Stats'!a",AJ31)),"") -> Military Engineer | Y12: =IF(AI31>0,INDIRECT(CONCATENATE("'Character Stats'!f",AJ31)),"") -> 1
T13: =IF(AI32>0,INDIRECT(CONCATENATE("'Character Stats'!a",AJ32)),"") -> Service | Y13: =IF(AI32>0,INDIRECT(CONCATENATE("'Character Stats'!f",AJ32)),"") -> 1
A14: Charisma | E14: =charisma -> 10 | G14: Religion | J14: =IF('Character Stats'!L31="","",'Character Stats'!L31) ->  | M14: Identifying Marks | T14: =IF(AI33>0,INDIRECT(CONCATENATE("'Character Stats'!a",AJ33)),"") -> Armory | Y14: =IF(AI33>0,INDIRECT(CONCATENATE("'Character Stats'!f",AJ33)),"") -> 1
A15: Charm | E15: =charm -> 11 | G15: Hometown | J15: =IF('Character Stats'!L30="","",'Character Stats'!L30) ->  | N15: =IF('Character Stats'!K40="","",'Character Stats'!K40) ->  | T15: =IF(AO23>0,INDIRECT(CONCATENATE("'Character Stats'!a",AP23)),"") -> Riding | Y15: =IF(AO23>0,INDIRECT(CONCATENATE("'Character Stats'!f",AP23)),"") -> 1
A16: Stamina | E16: =stamina -> 4 | G16: Affiliations | J16: =IF('Character Stats'!L32="","",'Character Stats'!L32) ->  | N16: =IF('Character Stats'!K41="","",'Character Stats'!K41) ->  | T16: =IF(AO24>0,INDIRECT(CONCATENATE("'Character Stats'!a",AP24)),"") -> Finance | Y16: =IF(AO24>0,INDIRECT(CONCATENATE("'Character Stats'!f",AP24)),"") -> 1
A17: Body | E17: =body -> 11 | G17: Guild Memberships | M17: Vision | R17: =IF('Character Stats'!L34="","",'Character Stats'!L34) -> Normal | T17: Methods
A18: Vigor | E18: =vigor -> 4 | H18: =IF('Character Stats'!L33="","",'Character Stats'!L33) ->  | N18: =IF('Character Stats'!K42="","",'Character Stats'!K42) ->  | T18: =IF(AU23>0,INDIRECT(CONCATENATE("'Character Stats'!a",AV23)),"") -> Ritual Method | Z18: =IF(AU23>0,INDIRECT(CONCATENATE("'Character Stats'!f",AV23)),"") -> 1
T19: =IF(AU24>0,INDIRECT(CONCATENATE("'Character Stats'!a",AV24)),"") ->  | Z19: =IF(AU24>0,INDIRECT(CONCATENATE("'Character Stats'!f",AV24)),"") -> 
A20: Skill Cluster | E20: =skill_disp -> Knight | K20: Unused Experience | Q20: =exp_unused -> 675 | T20: =IF(AU25>0,INDIRECT(CONCATENATE("'Character Stats'!a",AV25)),"") ->  | Z20: =IF(AU25>0,INDIRECT(CONCATENATE("'Character Stats'!f",AV25)),"") -> 
K21: Money | Q21: =money -> 660 | T21: =IF(AU26>0,INDIRECT(CONCATENATE("'Character Stats'!a",AV26)),"") ->  | Z21: =IF(AU26>0,INDIRECT(CONCATENATE("'Character Stats'!f",AV26)),"") -> 
T22: =IF(AU27>0,INDIRECT(CONCATENATE("'Character Stats'!a",AV27)),"") ->  | Z22: =IF(AU27>0,INDIRECT(CONCATENATE("'Character Stats'!f",AV27)),"") ->  | AI22: Skills | AO22: Skills | AU22: Methods | BB22: Spells
A23: Injury Distribution | R23: Attack Roll: Roll to Hit (Bash ends in 0 or 5), Roll Location (Critical ends in 0 or 5), Roll Damage | T23: Spells/Miracles | Z23: Skl|Dff|Sav|Sta | AI23: =IF(ISERROR(MATCH("S",'Character Stats'!B24:B53,0)),0,MATCH("S",'Character Stats'!B24:B53,0)) -> 1 | AJ23: =IF(AI23=0,0,23+AI23) -> 24 | AK23: =IF(AI23>0,53-AJ23,0) -> 29 | AO23: =IF(AI33=0,0,IF(ISERROR(MATCH("S",OFFSET('Character Stats'!B24,SUM(AI23:AI33),0,AK33,1),0)),0,MATCH("S",OFFSET('Character Stats'!B24,SUM(AI23:AI33),0,AK33,1),0))) -> 1 | AP23: =IF(AI32=0,"",AO23+AJ33) -> 38 | AQ23: =IF(AO23>0,53-AP23,0) -> 15 | AU23: =IF(ISERROR(MATCH("M",'Character Stats'!B24:B53,0)),0,MATCH("M",'Character Stats'!B24:B53,0)) -> 10 | AV23: =IF(AU23=0,"",23+AU23) -> 33 | AW23: =IF(AU23>0,53-AV23,0) -> 20 | BB23: =IF(AU33=0,0,IF(ISERROR(MATCH("C",OFFSET('Character Stats'!B24,SUM(AU29:AU33),0,AW33,1),0)),0,MATCH("C",OFFSET('Character Stats'!B24,SUM(AU29:AU33),0,AW33,1),0))) -> 0 | BC23: =IF(AU32=0,"",BB23+AV33) ->  | BD23: =IF(BB23>0,53-BC23,0) -> 0
B24: Head | E24: Chest | H24: Rt Arm | K24: Lt Arm | N24: Rt Leg | Q24: Lt Leg | T24: =IF(AU29>0,INDIRECT(CONCATENATE("'Character Stats'!a",AV29)),"") -> Protection from Evil (M) | Z24: =IF(AU29>0,CONCATENATE(INDIRECT(CONCATENATE("'Character Stats'!f",AV29)),"|",VLOOKUP(INDIRECT(CONCATENATE("'Character Stats'!d",AV29)),Spell_Skills_by_number,15),"|",VLOOKUP(INDIRECT(CONCATENATE("'Character Stats'!d",AV29)),Spell_Skills_by_number,17),"|",VLOOKUP(INDIRECT(CONCATENATE("'Character Stats'!d",AV29)),Spell_Skills_by_number,16)),"") -> 1|d3|-|2 | AI24: =IF(AI23=0,0,IF(ISERROR(MATCH("S",OFFSET('Character Stats'!B24,AI23,0,AK23,1),0)),0,MATCH("S",OFFSET('Character Stats'!B24,AI23,0,AK23,1),0))) -> 1 | AJ24: =IF(AI24=0,"",AJ23+AI24) -> 25 | AK24: 28 | AO24: =IF(AO23=0,0,IF(ISERROR(MATCH("S",OFFSET('Character Stats'!B24,SUM(AI23:AI33)+AO23,0,AQ23,1),0)),0,MATCH("S",OFFSET('Character Stats'!B24,SUM(AI23:AI33)+AO23,0,AQ23,1),0))) -> 1 | AP24: =IF(AO24=0,"",AP23+AO24) -> 39 | AQ24: 14 | AU24: =IF(AU23=0,0,IF(ISERROR(MATCH("M",OFFSET('Character Stats'!B24,AU23,0,AW23,1),0)),0,MATCH("M",OFFSET('Character Stats'!B24,AU23,0,AW23,1),0))) -> 0 | AV24: =IF(AU24=0,"",AV23+AU24) ->  | AW24: =IF(AU24>0,53-AV24,0) -> 0 | BB24: =IF(BB23=0,0,IF(ISERROR(MATCH("C",OFFSET('Character Stats'!B24,SUM(AU29:AU33)+BB23,0,BD23,1),0)),0,MATCH("C",OFFSET('Character Stats'!B24,SUM(AU29:AU33)+BB23,0,BD23,1),0))) -> 0 | BC24: =IF(BB24=0,"",BC23+BB24) ->  | BD24: 0
A25: Location | B25: 01-15 | E25: 16-60 | H25: 61+(1-2) | K25: 61+(3-4) | N25: 61+(5) | Q25: 61+(6) | T25: =IF(AU30>0,INDIRECT(CONCATENATE("'Character Stats'!a",AV30)),"") -> Protection from Magic (M) | Z25: =IF(AU30>0,CONCATENATE(INDIRECT(CONCATENATE("'Character Stats'!f",AV30)),"|",VLOOKUP(INDIRECT(CONCATENATE("'Character Stats'!d",AV30)),Spell_Skills_by_number,15),"|",VLOOKUP(INDIRECT(CONCATENATE("'Character Stats'!d",AV30)),Spell_Skills_by_number,17),"|",VLOOKUP(INDIRECT(CONCATENATE("'Character Stats'!d",AV30)),Spell_Skills_by_number,16)),"") -> 1|d4|-|4 | AI25: =IF(AI24=0,0,IF(ISERROR(MATCH("S",OFFSET('Character Stats'!B24,SUM(AI23:AI24),0,AK24,1),0)),0,MATCH("S",OFFSET('Character Stats'!B24,SUM(AI23:AI24),0,AK24,1),0))) -> 1 | AJ25: 26 | AK25: 27 | AO25: =IF(AO24=0,0,IF(ISERROR(MATCH("S",OFFSET('Character Stats'!B24,SUM(AI23:AI33)+SUM(AO23:AO24),0,AQ24,1),0)),0,MATCH("S",OFFSET('Character Stats'!B24,SUM(AI23:AI33)+SUM(AO23:AO24),0,AQ24,1),0))) -> 1 | AP25: 40 | AQ25: 13 | AU25: =IF(AU24=0,0,IF(ISERROR(MATCH("M",OFFSET('Character Stats'!B24,SUM(AU23:AU24),0,AW24,1),0)),0,MATCH("M",OFFSET('Character Stats'!B24,SUM(AU23:AU24),0,AW24,1),0))) -> 0 | AV25: =IF(AU25=0,"",AV24+AU25) ->  | AW25: =IF(AU25>0,53-AV25,0) -> 0 | BB25: =IF(BB24=0,0,IF(ISERROR(MATCH("C",OFFSET('Character Stats'!B24,SUM(AU29:AU33)+SUM(BB23:BB24),0,BD24,1),0)),0,MATCH("C",OFFSET('Character Stats'!B24,SUM(AU29:AU33)+SUM(BB23:BB24),0,BD24,1),0))) -> 0 | BC25: =IF(BB25=0,"",BC24+BB25) ->  | BD25: 0
A26: Damage | T26: =IF(AU31>0,INDIRECT(CONCATENATE("'Character Stats'!a",AV31)),"") ->  | Z26: =IF(AU31>0,CONCATENATE(INDIRECT(CONCATENATE("'Character Stats'!f",AV31)),"|",VLOOKUP(INDIRECT(CONCATENATE("'Character Stats'!d",AV31)),Spell_Skills_by_number,15),"|",VLOOKUP(INDIRECT(CONCATENATE("'Character Stats'!d",AV31)),Spell_Skills_by_number,17),"|",VLOOKUP(INDIRECT(CONCATENATE("'Character Stats'!d",AV31)),Spell_Skills_by_number,16)),"") ->  | AI26: =IF(AI25=0,0,IF(ISERROR(MATCH("S",OFFSET('Character Stats'!B24,SUM(AI23:AI25),0,AK25,1),0)),0,MATCH("S",OFFSET('Character Stats'!B24,SUM(AI23:AI25),0,AK25,1),0))) -> 1 | AJ26: 27 | AK26: 26 | AO26: =IF(AO25=0,0,IF(ISERROR(MATCH("S",OFFSET('Character Stats'!B24,SUM(AI23:AI33)+SUM(AO23:AO25),0,AQ25,1),0)),0,MATCH("S",OFFSET('Character Stats'!B24,SUM(AI23:AI33)+SUM(AO23:AO25),0,AQ25,1),0))) -> 0 | AQ26: 0 | AU26: =IF(AU25=0,0,IF(ISERROR(MATCH("M",OFFSET('Character Stats'!B24,SUM(AU23:AU25),0,AW25,1),0)),0,MATCH("M",OFFSET('Character Stats'!B24,SUM(AU23:AU25),0,AW25,1),0))) -> 0 | AV26: =IF(AU26=0,"",AV25+AU26) ->  | AW26: =IF(AU26>0,53-AV26,0) -> 0 | BB26: =IF(BB25=0,0,IF(ISERROR(MATCH("C",OFFSET('Character Stats'!B24,SUM(AU29:AU33)+SUM(BB23:BB25),0,BD25,1),0)),0,MATCH("C",OFFSET('Character Stats'!B24,SUM(AU29:AU33)+SUM(BB23:BB25),0,BD25,1),0))) -> 0 | BC26: =IF(BB26=0,"",BC25+BB26) ->  | BD26: 0
T27: =IF(AU32>0,INDIRECT(CONCATENATE("'Character Stats'!a",AV32)),"") ->  | Z27: =IF(AU32>0,CONCATENATE(INDIRECT(CONCATENATE("'Character Stats'!f",AV32)),"|",VLOOKUP(INDIRECT(CONCATENATE("'Character Stats'!d",AV32)),Spell_Skills_by_number,15),"|",VLOOKUP(INDIRECT(CONCATENATE("'Character Stats'!d",AV32)),Spell_Skills_by_number,17),"|",VLOOKUP(INDIRECT(CONCATENATE("'Character Stats'!d",AV32)),Spell_Skills_by_number,16)),"") ->  | AI27: =IF(AI26=0,0,IF(ISERROR(MATCH("S",OFFSET('Character Stats'!B24,SUM(AI23:AI26),0,AK26,1),0)),0,MATCH("S",OFFSET('Character Stats'!B24,SUM(AI23:AI26),0,AK26,1),0))) -> 1 | AJ27: 28 | AK27: 25 | AO27: =IF(AO26=0,0,IF(ISERROR(MATCH("S",OFFSET('Character Stats'!B24,SUM(AI23:AI33)+SUM(AO23:AO26),0,AQ26,1),0)),0,MATCH("S",OFFSET('Character Stats'!B24,SUM(AI23:AI33)+SUM(AO23:AO26),0,AQ26,1),0))) -> 0 | AQ27: 0 | AU27: =IF(AU26=0,0,IF(ISERROR(MATCH("M",OFFSET('Character Stats'!B24,SUM(AU23:AU26),0,AW26,1),0)),0,MATCH("M",OFFSET('Character Stats'!B24,SUM(AU23:AU26),0,AW26,1),0))) -> 0 | AV27: =IF(AU27=0,"",AV26+AU27) ->  | AW27: =IF(AU27>0,53-AV27,0) -> 0 | BB27: =IF(BB26=0,0,IF(ISERROR(MATCH("C",OFFSET('Character Stats'!B24,SUM(AU29:AU33)+SUM(BB23:BB26),0,BD26,1),0)),0,MATCH("C",OFFSET('Character Stats'!B24,SUM(AU29:AU33)+SUM(BB23:BB26),0,BD26,1),0))) -> 0 | BC27: =IF(BB27=0,"",BC26+BB27) ->  | BD27: 0
A28: Critical | T28: =IF(AU33>0,INDIRECT(CONCATENATE("'Character Stats'!a",AV33)),"") ->  | Z28: =IF(AU33>0,CONCATENATE(INDIRECT(CONCATENATE("'Character Stats'!f",AV33)),"|",VLOOKUP(INDIRECT(CONCATENATE("'Character Stats'!d",AV33)),Spell_Skills_by_number,15),"|",VLOOKUP(INDIRECT(CONCATENATE("'Character Stats'!d",AV33)),Spell_Skills_by_number,17),"|",VLOOKUP(INDIRECT(CONCATENATE("'Character Stats'!d",AV33)),Spell_Skills_by_number,16)),"") ->  | AI28: =IF(AI27=0,0,IF(ISERROR(MATCH("S",OFFSET('Character Stats'!B24,SUM(AI23:AI27),0,AK27,1),0)),0,MATCH("S",OFFSET('Character Stats'!B24,SUM(AI23:AI27),0,AK27,1),0))) -> 1 | AJ28: 29 | AK28: 24 | AO28: =IF(AO27=0,0,IF(ISERROR(MATCH("S",OFFSET('Character Stats'!B24,SUM(AI23:AI33)+SUM(AO23:AO27),0,AQ27,1),0)),0,MATCH("S",OFFSET('Character Stats'!B24,SUM(AI23:AI33)+SUM(AO23:AO27),0,AQ27,1),0))) -> 0 | AQ28: 0 | AU28: Spells | BB28: =IF(BB27=0,0,IF(ISERROR(MATCH("C",OFFSET('Character Stats'!B24,SUM(AU29:AU33)+SUM(BB23:BB27),0,BD27,1),0)),0,MATCH("C",OFFSET('Character Stats'!B24,SUM(AU29:AU33)+SUM(BB23:BB27),0,BD27,1),0))) -> 0 | BC28: =IF(BB28=0,"",BC27+BB28) ->  | BD28: 0
T29: =IF(BB23>0,INDIRECT(CONCATENATE("'Character Stats'!a",BC23)),"") ->  | Z29: =IF(BB23>0,CONCATENATE(INDIRECT(CONCATENATE("'Character Stats'!f",BC23)),"|",VLOOKUP(INDIRECT(CONCATENATE("'Character Stats'!d",BC23)),Spell_Skills_by_number,15),"|",VLOOKUP(INDIRECT(CONCATENATE("'Character Stats'!d",BC23)),Spell_Skills_by_number,17),"|",VLOOKUP(INDIRECT(CONCATENATE("'Character Stats'!d",BC23)),Spell_Skills_by_number,16)),"") ->  | AI29: =IF(AI28=0,0,IF(ISERROR(MATCH("S",OFFSET('Character Stats'!B24,SUM(AI23:AI28),0,AK28,1),0)),0,MATCH("S",OFFSET('Character Stats'!B24,SUM(AI23:AI28),0,AK28,1),0))) -> 1 | AJ29: 30 | AK29: =IF(AI29>0,53-AJ29,0) -> 23 | AO29: =IF(AO28=0,0,IF(ISERROR(MATCH("S",OFFSET('Character Stats'!B24,SUM(AI23:AI33)+SUM(AO23:AO28),0,AQ28,1),0)),0,MATCH("S",OFFSET('Character Stats'!B24,SUM(AI23:AI33)+SUM(AO23:AO28),0,AQ28,1),0))) -> 0 | AQ29: =IF(AO29>0,53-AP29,0) -> 0 | AU29: =IF(ISERROR(MATCH("C",'Character Stats'!B24:B53,0)),0,MATCH("C",'Character Stats'!B24:B53,0)) -> 8 | AV29: =IF(AU29=0,0,23+AU29) -> 31 | AW29: =IF(AU29>0,53-AV29,0) -> 22
A30: Body Armor | E30: AC | J30: Body Damage | N30: =CONCATENATE("(",body,")") -> (11) | P30: Critical Injuries | AI30: =IF(AI29=0,0,IF(ISERROR(MATCH("S",OFFSET('Character Stats'!B24,SUM(AI23:AI29),0,AK29,1),0)),0,MATCH("S",OFFSET('Character Stats'!B24,SUM(AI23:AI29),0,AK29,1),0))) -> 4 | AJ30: 34 | AK30: =IF(AI30>0,53-AJ30,0) -> 19 | AO30: =IF(AO29=0,0,IF(ISERROR(MATCH("S",OFFSET('Character Stats'!B24,SUM(AI23:AI33)+SUM(AO23:AO29),0,AQ29,1),0)),0,MATCH("S",OFFSET('Character Stats'!B24,SUM(AI23:AI33)+SUM(AO23:AO29),0,AQ29,1),0))) -> 0 | AQ30: =IF(AO30>0,53-AP30,0) -> 0 | AU30: =IF(AU29=0,0,IF(ISERROR(MATCH("C",OFFSET('Character Stats'!B24,AU29,0,AW29,1),0)),0,MATCH("C",OFFSET('Character Stats'!B24,AU29,0,AW29,1),0))) -> 1 | AV30: =IF(AU30=0,"",AV29+AU30) -> 32 | AW30: =IF(AU30>0,53-AV30,0) -> 21
A31: ='Character Equipment'!B8 -> Cuirass | E31: =IF(A31>" ",CONCATENATE("(",VLOOKUP('Character Equipment'!A8,equipment_table,3),")"),"") -> (6) | AI31: =IF(AI30=0,0,IF(ISERROR(MATCH("S",OFFSET('Character Stats'!B24,SUM(AI23:AI30),0,AK30,1),0)),0,MATCH("S",OFFSET('Character Stats'!B24,SUM(AI23:AI30),0,AK30,1),0))) -> 1 | AJ31: 35 | AK31: =IF(AI31>0,53-AJ31,0) -> 18 | AO31: =IF(AO30=0,0,IF(ISERROR(MATCH("S",OFFSET('Character Stats'!B24,SUM(AI23:AI33)+SUM(AO23:AO30),0,AQ30,1),0)),0,MATCH("S",OFFSET('Character Stats'!B24,SUM(AI23:AI33)+SUM(AO23:AO30),0,AQ30,1),0))) -> 0 | AQ31: =IF(AO31>0,53-AP31,0) -> 0 | AU31: =IF(AU30=0,0,IF(ISERROR(MATCH("C",OFFSET('Character Stats'!B24,SUM(AU29:AU30),0,AW30,1),0)),0,MATCH("C",OFFSET('Character Stats'!B24,SUM(AU29:AU30),0,AW30,1),0))) -> 0 | AV31: =IF(AU31=0,"",AV30+AU31) ->  | AW31: =IF(AU31>0,53-AV31,0) -> 0
A32: ='Character Equipment'!B9 -> None | E32: =IF(A32>" ",CONCATENATE("(",VLOOKUP('Character Equipment'!A9,equipment_table,3),")"),"") -> (0) | AI32: =IF(AI31=0,0,IF(ISERROR(MATCH("S",OFFSET('Character Stats'!B24,SUM(AI23:AI31),0,AK31,1),0)),0,MATCH("S",OFFSET('Character Stats'!B24,SUM(AI23:AI31),0,AK31,1),0))) -> 1 | AJ32: 36 | AK32: =IF(AI32>0,53-AJ32,0) -> 17 | AO32: =IF(AO31=0,0,IF(ISERROR(MATCH("S",OFFSET('Character Stats'!B24,SUM(AI23:AI33)+SUM(AO23:AO31),0,AQ31,1),0)),0,MATCH("S",OFFSET('Character Stats'!B24,SUM(AI23:AI33)+SUM(AO23:AO31),0,AQ31,1),0))) -> 0 | AQ32: =IF(AO32>0,53-AP32,0) -> 0 | AU32: =IF(AU31=0,0,IF(ISERROR(MATCH("C",OFFSET('Character Stats'!B24,SUM(AU29:AU31),0,AW31,1),0)),0,MATCH("C",OFFSET('Character Stats'!B24,SUM(AU29:AU31),0,AW31,1),0))) -> 0 | AV32: =IF(AU32=0,"",AV31+AU32) ->  | AW32: =IF(AU32>0,53-AV32,0) -> 0
J33: (Head = x5, Limb = /5) | AI33: =IF(AI32=0,0,IF(ISERROR(MATCH("S",OFFSET('Character Stats'!B24,SUM(AI23:AI32),0,AK32,1),0)),0,MATCH("S",OFFSET('Character Stats'!B24,SUM(AI23:AI32),0,AK32,1),0))) -> 1 | AJ33: 37 | AK33: =IF(AI33>0,53-AJ33,0) -> 16 | AO33: =IF(AO32=0,0,IF(ISERROR(MATCH("S",OFFSET('Character Stats'!B24,SUM(AI23:AI33)+SUM(AO23:AO32),0,AQ32,1),0)),0,MATCH("S",OFFSET('Character Stats'!B24,SUM(AI23:AI33)+SUM(AO23:AO32),0,AQ32,1),0))) -> 0 | AQ33: =IF(AO33>0,53-AP33,0) -> 0 | AU33: =IF(AU32=0,0,IF(ISERROR(MATCH("C",OFFSET('Character Stats'!B24,SUM(AU29:AU32),0,AW32,1),0)),0,MATCH("C",OFFSET('Character Stats'!B24,SUM(AU29:AU32),0,AW32,1),0))) -> 0 | AV33: =IF(AU33=0,"",AV32+AU33) ->  | AW33: =IF(AU33>0,53-AV33,0) -> 0
A34: Head Protection | E34: SC | F34: Helm | J34: Stamina | N34: =CONCATENATE("(",stamina,")") -> (4)
A35: ='Character Equipment'!B12 -> Norman Helm | E35: =IF(A35>" ",CONCATENATE("(",VLOOKUP('Character Equipment'!A12,equipment_table,3),")"),"") -> (4) | T35: =IF(BB45>0,INDIRECT(CONCATENATE("'Character Stats'!a",BC45)),"") ->  | Z35: =IF(BB45>0,CONCATENATE(INDIRECT(CONCATENATE("'Character Stats'!f",BC45)),"|",VLOOKUP(INDIRECT(CONCATENATE("'Character Stats'!d",BC45)),Spell_Skills_by_number,15),"|",VLOOKUP(INDIRECT(CONCATENATE("'Character Stats'!d",BC45)),Spell_Skills_by_number,17),"|",VLOOKUP(INDIRECT(CONCATENATE("'Character Stats'!d",BC45)),Spell_Skills_by_number,16)),"") -> 
A36: ='Character Equipment'!B13 -> Leather Hood | E36: =IF(A36>" ",CONCATENATE("(",VLOOKUP('Character Equipment'!A13,equipment_table,3),")"),"") -> (1) | T36: =IF(BB30>0,INDIRECT(CONCATENATE("'Character Stats'!a",BC30)),"") ->  | Z36: =IF(BB30>0,CONCATENATE(INDIRECT(CONCATENATE("'Character Stats'!f",BC30)),"|",VLOOKUP(INDIRECT(CONCATENATE("'Character Stats'!d",BC30)),Spell_Skills_by_number,15),"|",VLOOKUP(INDIRECT(CONCATENATE("'Character Stats'!d",BC30)),Spell_Skills_by_number,17),"|",VLOOKUP(INDIRECT(CONCATENATE("'Character Stats'!d",BC30)),Spell_Skills_by_number,16)),"") -> 
A38: Melee Weapons | E38: Mg | F38: #B | G38: Int | H38: 0 | I38: 1 | J38: 2 | K38: 3 | L38: 4 | M38: 5 | N38: 6 | O38: 7 | P38: 8 | Q38: 9 | R38: 10 | S38: Dam | U38: Vig | V38: s VL | W38: s L | X38: s M | Y38: s H | Z38: s P | AA38: sk | AC38: tr? | AD38: sk+com | AE38: com plus
A39: =IF('Character Equipment'!K8="","",IF('Character Equipment'!K8>1,IF(AC39<1,"",CHAR(186))&'Character Equipment'!L8)) -> Short Sword | E39: =IF(A39="","",'Character Equipment'!S8) -> 0 | F39: =IF(A39="","",VLOOKUP('Character Equipment'!K8,weapons_table,6)+E39+IF(AC39>0,AE39,0)) -> 3 | G39: =IF(A39="","",VLOOKUP('Character Equipment'!K8,weapons_table,7)+dexterity+E39) -> 25 | H39: =IF(A39="","",VLOOKUP('Character Equipment'!K8,weapons_table,8)+(E39*5)+IF(G67="",0,G67)+IF(AC39>0,(combat+((AC39-1)*5)),0)) -> 30 | I39: =IF(A39="","",VLOOKUP('Character Equipment'!K8,weapons_table,9)+(E39*5)+IF(G67="",0,G67)+IF(AC39>0,(combat+((AC39-1)*5)),0)) -> 25 | J39: =IF(A39="","",VLOOKUP('Character Equipment'!K8,weapons_table,10)+(E39*5)+IF(G67="",0,G67)+IF(AC39>0,(combat+((AC39-1)*5)),0)) -> 20 | K39: =IF(A39="","",VLOOKUP('Character Equipment'!K8,weapons_table,11)+(E39*5)+IF(G67="",0,G67)+IF(AC39>0,(combat+((AC39-1)*5)),0)) -> 10 | L39: =IF(A39="","",VLOOKUP('Character Equipment'!K8,weapons_table,12)+(E39*5)+IF(G67="",0,G67)+IF(AC39>0,(combat+((AC39-1)*5)),0)) -> 0 | M39: =IF(A39="","",VLOOKUP('Character Equipment'!K8,weapons_table,13)+(E39*5)+IF(G67="",0,G67)+IF(AC39>0,(combat+((AC39-1)*5)),0)) -> -5 | N39: =IF(A39="","",VLOOKUP('Character Equipment'!K8,weapons_table,14)+(E39*5)+IF(G67="",0,G67)+IF(AC39>0,(combat+((AC39-1)*5)),0)) -> -10 | O39: =IF(A39="","",VLOOKUP('Character Equipment'!K8,weapons_table,15)+(E39*5)+IF(G67="",0,G67)+IF(AC39>0,(combat+((AC39-1)*5)),0)) -> -15 | P39: =IF(A39="","",VLOOKUP('Character Equipment'!K8,weapons_table,16)+(E39*5)+IF(G67="",0,G67)+IF(AC39>0,(combat+((AC39-1)*5)),0)) -> -15 | Q39: =IF(A39="","",VLOOKUP('Character Equipment'!K8,weapons_table,17)+(E39*5)+IF(G67="",0,G67)+IF(AC39>0,(combat+((AC39-1)*5)),0)) -> -20 | R39: =IF(A39="","",VLOOKUP('Character Equipment'!K8,weapons_table,18)+(E39*5)+IF(G67="",0,G67)+IF(AC39>0,(combat+((AC39-1)*5)),0)) -> -25 | S39: =IF(A39="","",IF((E39+damage_bonus)>0,CONCATENATE(VLOOKUP('Character Equipment'!K8,weapons_table,19),"+",(E39+damage_bonus)),IF((E39+damage_bonus)<0,CONCATENATE(VLOOKUP('Character Equipment'!K8,weapons_table,19),(E39+damage_bonus)),VLOOKUP('Character Equipment'!K8,weapons_table,19)))) -> 2d6 | U39: =IF(A39="","",IF(VLOOKUP('Character Equipment'!K8,weapons_table,3)="H",vigor+2,IF(VLOOKUP('Character Equipment'!K8,weapons_table,3)="M",vigor+1,IF(VLOOKUP('Character Equipment'!K8,weapons_table,3)="VL",vigor-2,vigor)))) -> 2 | V39: =IF(A39="","",VLOOKUP('Character Equipment'!K8,weapons_table,21)) -> 0 | W39: =IF(A39="","",VLOOKUP('Character Equipment'!K8,weapons_table,22)) -> 0 | X39: =IF(A39="","",VLOOKUP('Character Equipment'!K8,weapons_table,23)) -> 0 | Y39: =IF(A39="","",VLOOKUP('Character Equipment'!K8,weapons_table,24)) -> 0 | Z39: =IF(A39="","",VLOOKUP('Character Equipment'!K8,weapons_table,25)) -> 0 | AA39: =IF(ISERROR(VLOOKUP('Character Equipment'!K8,weapons_table,26)),"",VLOOKUP('Character Equipment'!K8,weapons_table,26)) -> Short Blades | AC39: =IF(ISERROR(VLOOKUP(VLOOKUP('Character Equipment'!K8,weapons_table,26),character_skill_table,6,FALSE)),0,VLOOKUP(VLOOKUP('Character Equipment'!K8,weapons_table,26),character_skill_table,6,FALSE)) -> 0 | AD39: =IF(AC39>0,CONCATENATE(AA39,IF(combat<10,CONCATENATE("0",combat),combat)),"") ->  | AE39: =IF(AC39>0,VLOOKUP(AD39,combat_plus_table,3),0) -> 0
A40: =IF('Character Equipment'!K9="","",IF('Character Equipment'!K9>1,IF(AC40<1,"",CHAR(186))&'Character Equipment'!L9)) -> Warhammer | E40: =IF(A40="","",'Character Equipment'!S9) -> 0 | F40: =IF(A40="","",VLOOKUP('Character Equipment'!K9,weapons_table,6)+E40+IF(AC40>0,AE40,0)) -> 3 | G40: =IF(A40="","",VLOOKUP('Character Equipment'!K9,weapons_table,7)+dexterity+E40) -> 27 | H40: =IF(A40="","",VLOOKUP('Character Equipment'!K9,weapons_table,8)+(E40*5)+IF(G67="",0,G67)+IF(AC40>0,(combat+((AC40-1)*5)),0)) -> 15 | I40: =IF(A40="","",VLOOKUP('Character Equipment'!K9,weapons_table,9)+(E40*5)+IF(G67="",0,G67)+IF(AC40>0,(combat+((AC40-1)*5)),0)) -> 15 | J40: =IF(A40="","",VLOOKUP('Character Equipment'!K9,weapons_table,10)+(E40*5)+IF(G67="",0,G67)+IF(AC40>0,(combat+((AC40-1)*5)),0)) -> 15 | K40: =IF(A40="","",VLOOKUP('Character Equipment'!K9,weapons_table,11)+(E40*5)+IF(G67="",0,G67)+IF(AC40>0,(combat+((AC40-1)*5)),0)) -> 10 | L40: =IF(A40="","",VLOOKUP('Character Equipment'!K9,weapons_table,12)+(E40*5)+IF(G67="",0,G67)+IF(AC40>0,(combat+((AC40-1)*5)),0)) -> 10 | M40: =IF(A40="","",VLOOKUP('Character Equipment'!K9,weapons_table,13)+(E40*5)+IF(G67="",0,G67)+IF(AC40>0,(combat+((AC40-1)*5)),0)) -> 10 | N40: =IF(A40="","",VLOOKUP('Character Equipment'!K9,weapons_table,14)+(E40*5)+IF(G67="",0,G67)+IF(AC40>0,(combat+((AC40-1)*5)),0)) -> 5 | O40: =IF(A40="","",VLOOKUP('Character Equipment'!K9,weapons_table,15)+(E40*5)+IF(G67="",0,G67)+IF(AC40>0,(combat+((AC40-1)*5)),0)) -> 5 | P40: =IF(A40="","",VLOOKUP('Character Equipment'!K9,weapons_table,16)+(E40*5)+IF(G67="",0,G67)+IF(AC40>0,(combat+((AC40-1)*5)),0)) -> 0 | Q40: =IF(A40="","",VLOOKUP('Character Equipment'!K9,weapons_table,17)+(E40*5)+IF(G67="",0,G67)+IF(AC40>0,(combat+((AC40-1)*5)),0)) -> -5 | R40: =IF(A40="","",VLOOKUP('Character Equipment'!K9,weapons_table,18)+(E40*5)+IF(G67="",0,G67)+IF(AC40>0,(combat+((AC40-1)*5)),0)) -> -10 | S40: =IF(A40="","",IF((E40+damage_bonus)>0,CONCATENATE(VLOOKUP('Character Equipment'!K9,weapons_table,19),"+",(E40+damage_bonus)),IF((E40+damage_bonus)<0,CONCATENATE(VLOOKUP('Character Equipment'!K9,weapons_table,19),(E40+damage_bonus)),VLOOKUP('Character Equipment'!K9,weapons_table,19)))) -> 2d6 | U40: =IF(A40="","",IF(VLOOKUP('Character Equipment'!K9,weapons_table,3)="H",vigor+2,IF(VLOOKUP('Character Equipment'!K9,weapons_table,3)="M",vigor+1,IF(VLOOKUP('Character Equipment'!K9,weapons_table,3)="VL",vigor-2,vigor)))) -> 5 | V40: =IF(A40="","",VLOOKUP('Character Equipment'!K9,weapons_table,21)) -> 0 | W40: =IF(A40="","",VLOOKUP('Character Equipment'!K9,weapons_table,22)) -> 0 | X40: =IF(A40="","",VLOOKUP('Character Equipment'!K9,weapons_table,23)) -> 0 | Y40: =IF(A40="","",VLOOKUP('Character Equipment'!K9,weapons_table,24)) -> 0 | Z40: =IF(A40="","",VLOOKUP('Character Equipment'!K9,weapons_table,25)) -> 0 | AA40: =IF(ISERROR(VLOOKUP('Character Equipment'!K9,weapons_table,26)),"",VLOOKUP('Character Equipment'!K9,weapons_table,26)) -> Hammers | AC40: =IF(ISERROR(VLOOKUP(VLOOKUP('Character Equipment'!K9,weapons_table,26),character_skill_table,6,FALSE)),0,VLOOKUP(VLOOKUP('Character Equipment'!K9,weapons_table,26),character_skill_table,6,FALSE)) -> 0 | AE40: 0
A41: =IF('Character Equipment'!K10="","",IF('Character Equipment'!K10>1,IF(AC41<1,"",CHAR(186))&'Character Equipment'!L10)) -> Maul | E41: =IF(A41="","",'Character Equipment'!S10) -> 0 | F41: =IF(A41="","",VLOOKUP('Character Equipment'!K10,weapons_table,6)+E41+IF(AC41>0,AE41,0)) -> 2 | G41: =IF(A41="","",VLOOKUP('Character Equipment'!K10,weapons_table,7)+dexterity+E41) -> 30 | H41: =IF(A41="","",VLOOKUP('Character Equipment'!K10,weapons_table,8)+(E41*5)+IF(G67="",0,G67)+IF(AC41>0,(combat+((AC41-1)*5)),0)) -> 20 | I41: =IF(A41="","",VLOOKUP('Character Equipment'!K10,weapons_table,9)+(E41*5)+IF(G67="",0,G67)+IF(AC41>0,(combat+((AC41-1)*5)),0)) -> 20 | J41: =IF(A41="","",VLOOKUP('Character Equipment'!K10,weapons_table,10)+(E41*5)+IF(G67="",0,G67)+IF(AC41>0,(combat+((AC41-1)*5)),0)) -> 20 | K41: =IF(A41="","",VLOOKUP('Character Equipment'!K10,weapons_table,11)+(E41*5)+IF(G67="",0,G67)+IF(AC41>0,(combat+((AC41-1)*5)),0)) -> 20 | L41: =IF(A41="","",VLOOKUP('Character Equipment'!K10,weapons_table,12)+(E41*5)+IF(G67="",0,G67)+IF(AC41>0,(combat+((AC41-1)*5)),0)) -> 20 | M41: =IF(A41="","",VLOOKUP('Character Equipment'!K10,weapons_table,13)+(E41*5)+IF(G67="",0,G67)+IF(AC41>0,(combat+((AC41-1)*5)),0)) -> 25 | N41: =IF(A41="","",VLOOKUP('Character Equipment'!K10,weapons_table,14)+(E41*5)+IF(G67="",0,G67)+IF(AC41>0,(combat+((AC41-1)*5)),0)) -> 20 | O41: =IF(A41="","",VLOOKUP('Character Equipment'!K10,weapons_table,15)+(E41*5)+IF(G67="",0,G67)+IF(AC41>0,(combat+((AC41-1)*5)),0)) -> 15 | P41: =IF(A41="","",VLOOKUP('Character Equipment'!K10,weapons_table,16)+(E41*5)+IF(G67="",0,G67)+IF(AC41>0,(combat+((AC41-1)*5)),0)) -> 10 | Q41: =IF(A41="","",VLOOKUP('Character Equipment'!K10,weapons_table,17)+(E41*5)+IF(G67="",0,G67)+IF(AC41>0,(combat+((AC41-1)*5)),0)) -> 5 | R41: =IF(A41="","",VLOOKUP('Character Equipment'!K10,weapons_table,18)+(E41*5)+IF(G67="",0,G67)+IF(AC41>0,(combat+((AC41-1)*5)),0)) -> -10 | S41: =IF(A41="","",IF((E41+damage_bonus)>0,CONCATENATE(VLOOKUP('Character Equipment'!K10,weapons_table,19),"+",(E41+damage_bonus)),IF((E41+damage_bonus)<0,CONCATENATE(VLOOKUP('Character Equipment'!K10,weapons_table,19),(E41+damage_bonus)),VLOOKUP('Character Equipment'!K10,weapons_table,19)))) -> 2d10 | U41: =IF(A41="","",IF(VLOOKUP('Character Equipment'!K10,weapons_table,3)="H",vigor+2,IF(VLOOKUP('Character Equipment'!K10,weapons_table,3)="M",vigor+1,IF(VLOOKUP('Character Equipment'!K10,weapons_table,3)="VL",vigor-2,vigor)))) -> 6 | V41: =IF(A41="","",VLOOKUP('Character Equipment'!K10,weapons_table,21)) -> 0 | W41: =IF(A41="","",VLOOKUP('Character Equipment'!K10,weapons_table,22)) -> 0 | X41: =IF(A41="","",VLOOKUP('Character Equipment'!K10,weapons_table,23)) -> 0 | Y41: =IF(A41="","",VLOOKUP('Character Equipment'!K10,weapons_table,24)) -> 0 | Z41: =IF(A41="","",VLOOKUP('Character Equipment'!K10,weapons_table,25)) -> 0 | AA41: =IF(ISERROR(VLOOKUP('Character Equipment'!K10,weapons_table,26)),"",VLOOKUP('Character Equipment'!K10,weapons_table,26)) -> Hammers | AC41: =IF(ISERROR(VLOOKUP(VLOOKUP('Character Equipment'!K10,weapons_table,26),character_skill_table,6,FALSE)),0,VLOOKUP(VLOOKUP('Character Equipment'!K10,weapons_table,26),character_skill_table,6,FALSE)) -> 0 | AE41: 0
A42: =IF('Character Equipment'!K11="","",IF('Character Equipment'!K11>1,IF(AC42<1,"",CHAR(186))&'Character Equipment'!L11)) -> Two-Handed Warhammer | E42: =IF(A42="","",'Character Equipment'!S11) -> 0 | F42: =IF(A42="","",VLOOKUP('Character Equipment'!K11,weapons_table,6)+E42+IF(AC42>0,AE42,0)) -> 2 | G42: =IF(A42="","",VLOOKUP('Character Equipment'!K11,weapons_table,7)+dexterity+E42) -> 28 | H42: =IF(A42="","",VLOOKUP('Character Equipment'!K11,weapons_table,8)+(E42*5)+IF(G67="",0,G67)+IF(AC42>0,(combat+((AC42-1)*5)),0)) -> 30 | I42: =IF(A42="","",VLOOKUP('Character Equipment'!K11,weapons_table,9)+(E42*5)+IF(G67="",0,G67)+IF(AC42>0,(combat+((AC42-1)*5)),0)) -> 20 | J42: =IF(A42="","",VLOOKUP('Character Equipment'!K11,weapons_table,10)+(E42*5)+IF(G67="",0,G67)+IF(AC42>0,(combat+((AC42-1)*5)),0)) -> 20 | K42: =IF(A42="","",VLOOKUP('Character Equipment'!K11,weapons_table,11)+(E42*5)+IF(G67="",0,G67)+IF(AC42>0,(combat+((AC42-1)*5)),0)) -> 20 | L42: =IF(A42="","",VLOOKUP('Character Equipment'!K11,weapons_table,12)+(E42*5)+IF(G67="",0,G67)+IF(AC42>0,(combat+((AC42-1)*5)),0)) -> 20 | M42: =IF(A42="","",VLOOKUP('Character Equipment'!K11,weapons_table,13)+(E42*5)+IF(G67="",0,G67)+IF(AC42>0,(combat+((AC42-1)*5)),0)) -> 20 | N42: =IF(A42="","",VLOOKUP('Character Equipment'!K11,weapons_table,14)+(E42*5)+IF(G67="",0,G67)+IF(AC42>0,(combat+((AC42-1)*5)),0)) -> 20 | O42: =IF(A42="","",VLOOKUP('Character Equipment'!K11,weapons_table,15)+(E42*5)+IF(G67="",0,G67)+IF(AC42>0,(combat+((AC42-1)*5)),0)) -> 15 | P42: =IF(A42="","",VLOOKUP('Character Equipment'!K11,weapons_table,16)+(E42*5)+IF(G67="",0,G67)+IF(AC42>0,(combat+((AC42-1)*5)),0)) -> 5 | Q42: =IF(A42="","",VLOOKUP('Character Equipment'!K11,weapons_table,17)+(E42*5)+IF(G67="",0,G67)+IF(AC42>0,(combat+((AC42-1)*5)),0)) -> 0 | R42: =IF(A42="","",VLOOKUP('Character Equipment'!K11,weapons_table,18)+(E42*5)+IF(G67="",0,G67)+IF(AC42>0,(combat+((AC42-1)*5)),0)) -> -5 | S42: =IF(A42="","",IF((E42+damage_bonus)>0,CONCATENATE(VLOOKUP('Character Equipment'!K11,weapons_table,19),"+",(E42+damage_bonus)),IF((E42+damage_bonus)<0,CONCATENATE(VLOOKUP('Character Equipment'!K11,weapons_table,19),(E42+damage_bonus)),VLOOKUP('Character Equipment'!K11,weapons_table,19)))) -> 2d10 | U42: =IF(A42="","",IF(VLOOKUP('Character Equipment'!K11,weapons_table,3)="H",vigor+2,IF(VLOOKUP('Character Equipment'!K11,weapons_table,3)="M",vigor+1,IF(VLOOKUP('Character Equipment'!K11,weapons_table,3)="VL",vigor-2,vigor)))) -> 6 | V42: =IF(A42="","",VLOOKUP('Character Equipment'!K11,weapons_table,21)) -> 0 | W42: =IF(A42="","",VLOOKUP('Character Equipment'!K11,weapons_table,22)) -> 0 | X42: =IF(A42="","",VLOOKUP('Character Equipment'!K11,weapons_table,23)) -> 0 | Y42: =IF(A42="","",VLOOKUP('Character Equipment'!K11,weapons_table,24)) -> 0 | Z42: =IF(A42="","",VLOOKUP('Character Equipment'!K11,weapons_table,25)) -> 0 | AA42: =IF(ISERROR(VLOOKUP('Character Equipment'!K11,weapons_table,26)),"",VLOOKUP('Character Equipment'!K11,weapons_table,26)) -> Hammers | AC42: =IF(ISERROR(VLOOKUP(VLOOKUP('Character Equipment'!K11,weapons_table,26),character_skill_table,6,FALSE)),0,VLOOKUP(VLOOKUP('Character Equipment'!K11,weapons_table,26),character_skill_table,6,FALSE)) -> 0 | AE42: 0
A43: =IF('Character Equipment'!K12="","",IF('Character Equipment'!K12>1,IF(AC43<1,"",CHAR(186))&'Character Equipment'!L12)) -> Maul | E43: =IF(A43="","",'Character Equipment'!S12) -> 0 | F43: =IF(A43="","",VLOOKUP('Character Equipment'!K12,weapons_table,6)+E43+IF(AC43>0,AE43,0)) -> 2 | G43: =IF(A43="","",VLOOKUP('Character Equipment'!K12,weapons_table,7)+dexterity+E43) -> 30 | H43: =IF(A43="","",VLOOKUP('Character Equipment'!K12,weapons_table,8)+(E43*5)+IF(G67="",0,G67)+IF(AC43>0,(combat+((AC43-1)*5)),0)) -> 20 | I43: =IF(A43="","",VLOOKUP('Character Equipment'!K12,weapons_table,9)+(E43*5)+IF(G67="",0,G67)+IF(AC43>0,(combat+((AC43-1)*5)),0)) -> 20 | J43: =IF(A43="","",VLOOKUP('Character Equipment'!K12,weapons_table,10)+(E43*5)+IF(G67="",0,G67)+IF(AC43>0,(combat+((AC43-1)*5)),0)) -> 20 | K43: =IF(A43="","",VLOOKUP('Character Equipment'!K12,weapons_table,11)+(E43*5)+IF(G67="",0,G67)+IF(AC43>0,(combat+((AC43-1)*5)),0)) -> 20 | L43: =IF(A43="","",VLOOKUP('Character Equipment'!K12,weapons_table,12)+(E43*5)+IF(G67="",0,G67)+IF(AC43>0,(combat+((AC43-1)*5)),0)) -> 20 | M43: =IF(A43="","",VLOOKUP('Character Equipment'!K12,weapons_table,13)+(E43*5)+IF(G67="",0,G67)+IF(AC43>0,(combat+((AC43-1)*5)),0)) -> 25 | N43: =IF(A43="","",VLOOKUP('Character Equipment'!K12,weapons_table,14)+(E43*5)+IF(G67="",0,G67)+IF(AC43>0,(combat+((AC43-1)*5)),0)) -> 20 | O43: =IF(A43="","",VLOOKUP('Character Equipment'!K12,weapons_table,15)+(E43*5)+IF(G67="",0,G67)+IF(AC43>0,(combat+((AC43-1)*5)),0)) -> 15 | P43: =IF(A43="","",VLOOKUP('Character Equipment'!K12,weapons_table,16)+(E43*5)+IF(G67="",0,G67)+IF(AC43>0,(combat+((AC43-1)*5)),0)) -> 10 | Q43: =IF(A43="","",VLOOKUP('Character Equipment'!K12,weapons_table,17)+(E43*5)+IF(G67="",0,G67)+IF(AC43>0,(combat+((AC43-1)*5)),0)) -> 5 | R43: =IF(A43="","",VLOOKUP('Character Equipment'!K12,weapons_table,18)+(E43*5)+IF(G67="",0,G67)+IF(AC43>0,(combat+((AC43-1)*5)),0)) -> -10 | S43: =IF(A43="","",IF((E43+damage_bonus)>0,CONCATENATE(VLOOKUP('Character Equipment'!K12,weapons_table,19),"+",(E43+damage_bonus)),IF((E43+damage_bonus)<0,CONCATENATE(VLOOKUP('Character Equipment'!K12,weapons_table,19),(E43+damage_bonus)),VLOOKUP('Character Equipment'!K12,weapons_table,19)))) -> 2d10 | U43: =IF(A43="","",IF(VLOOKUP('Character Equipment'!K12,weapons_table,3)="H",vigor+2,IF(VLOOKUP('Character Equipment'!K12,weapons_table,3)="M",vigor+1,IF(VLOOKUP('Character Equipment'!K12,weapons_table,3)="VL",vigor-2,vigor)))) -> 6 | V43: =IF(A43="","",VLOOKUP('Character Equipment'!K12,weapons_table,21)) -> 0 | W43: =IF(A43="","",VLOOKUP('Character Equipment'!K12,weapons_table,22)) -> 0 | X43: =IF(A43="","",VLOOKUP('Character Equipment'!K12,weapons_table,23)) -> 0 | Y43: =IF(A43="","",VLOOKUP('Character Equipment'!K12,weapons_table,24)) -> 0 | Z43: =IF(A43="","",VLOOKUP('Character Equipment'!K12,weapons_table,25)) -> 0 | AA43: =IF(ISERROR(VLOOKUP('Character Equipment'!K12,weapons_table,26)),"",VLOOKUP('Character Equipment'!K12,weapons_table,26)) -> Hammers | AC43: =IF(ISERROR(VLOOKUP(VLOOKUP('Character Equipment'!K12,weapons_table,26),character_skill_table,6,FALSE)),0,VLOOKUP(VLOOKUP('Character Equipment'!K12,weapons_table,26),character_skill_table,6,FALSE)) -> 0 | AE43: 0
A44: =IF('Character Equipment'!K13="","",IF('Character Equipment'!K13>1,IF(AC44<1,"",CHAR(186))&'Character Equipment'!L13)) -> Knife | E44: =IF(A44="","",'Character Equipment'!S13) -> 0 | F44: =IF(A44="","",VLOOKUP('Character Equipment'!K13,weapons_table,6)+E44+IF(AC44>0,AE44,0)) -> 4 | G44: =IF(A44="","",VLOOKUP('Character Equipment'!K13,weapons_table,7)+dexterity+E44) -> 23.5 | H44: =IF(A44="","",VLOOKUP('Character Equipment'!K13,weapons_table,8)+(E44*5)+IF(G67="",0,G67)+IF(AC44>0,(combat+((AC44-1)*5)),0)) -> 20 | I44: =IF(A44="","",VLOOKUP('Character Equipment'!K13,weapons_table,9)+(E44*5)+IF(G67="",0,G67)+IF(AC44>0,(combat+((AC44-1)*5)),0)) -> 10 | J44: =IF(A44="","",VLOOKUP('Character Equipment'!K13,weapons_table,10)+(E44*5)+IF(G67="",0,G67)+IF(AC44>0,(combat+((AC44-1)*5)),0)) -> 5 | K44: =IF(A44="","",VLOOKUP('Character Equipment'!K13,weapons_table,11)+(E44*5)+IF(G67="",0,G67)+IF(AC44>0,(combat+((AC44-1)*5)),0)) -> 0 | L44: =IF(A44="","",VLOOKUP('Character Equipment'!K13,weapons_table,12)+(E44*5)+IF(G67="",0,G67)+IF(AC44>0,(combat+((AC44-1)*5)),0)) -> -5 | M44: =IF(A44="","",VLOOKUP('Character Equipment'!K13,weapons_table,13)+(E44*5)+IF(G67="",0,G67)+IF(AC44>0,(combat+((AC44-1)*5)),0)) -> -10 | N44: =IF(A44="","",VLOOKUP('Character Equipment'!K13,weapons_table,14)+(E44*5)+IF(G67="",0,G67)+IF(AC44>0,(combat+((AC44-1)*5)),0)) -> -15 | O44: =IF(A44="","",VLOOKUP('Character Equipment'!K13,weapons_table,15)+(E44*5)+IF(G67="",0,G67)+IF(AC44>0,(combat+((AC44-1)*5)),0)) -> -20 | P44: =IF(A44="","",VLOOKUP('Character Equipment'!K13,weapons_table,16)+(E44*5)+IF(G67="",0,G67)+IF(AC44>0,(combat+((AC44-1)*5)),0)) -> -20 | Q44: =IF(A44="","",VLOOKUP('Character Equipment'!K13,weapons_table,17)+(E44*5)+IF(G67="",0,G67)+IF(AC44>0,(combat+((AC44-1)*5)),0)) -> -25 | R44: =IF(A44="","",VLOOKUP('Character Equipment'!K13,weapons_table,18)+(E44*5)+IF(G67="",0,G67)+IF(AC44>0,(combat+((AC44-1)*5)),0)) -> -30 | S44: =IF(A44="","",IF((E44+damage_bonus)>0,CONCATENATE(VLOOKUP('Character Equipment'!K13,weapons_table,19),"+",(E44+damage_bonus)),IF((E44+damage_bonus)<0,CONCATENATE(VLOOKUP('Character Equipment'!K13,weapons_table,19),(E44+damage_bonus)),VLOOKUP('Character Equipment'!K13,weapons_table,19)))) -> 1d6 | U44: =IF(A44="","",IF(VLOOKUP('Character Equipment'!K13,weapons_table,3)="H",vigor+2,IF(VLOOKUP('Character Equipment'!K13,weapons_table,3)="M",vigor+1,IF(VLOOKUP('Character Equipment'!K13,weapons_table,3)="VL",vigor-2,vigor)))) -> 2 | V44: =IF(A44="","",VLOOKUP('Character Equipment'!K13,weapons_table,21)) -> 0 | W44: =IF(A44="","",VLOOKUP('Character Equipment'!K13,weapons_table,22)) -> 0 | X44: =IF(A44="","",VLOOKUP('Character Equipment'!K13,weapons_table,23)) -> 0 | Y44: =IF(A44="","",VLOOKUP('Character Equipment'!K13,weapons_table,24)) -> 0 | Z44: =IF(A44="","",VLOOKUP('Character Equipment'!K13,weapons_table,25)) -> 0 | AA44: =IF(ISERROR(VLOOKUP('Character Equipment'!K13,weapons_table,26)),"",VLOOKUP('Character Equipment'!K13,weapons_table,26)) -> Knives | AC44: =IF(ISERROR(VLOOKUP(VLOOKUP('Character Equipment'!K13,weapons_table,26),character_skill_table,6,FALSE)),0,VLOOKUP(VLOOKUP('Character Equipment'!K13,weapons_table,26),character_skill_table,6,FALSE)) -> 0 | AE44: 0
BB45: =IF(BB28=0,0,IF(ISERROR(MATCH("C",OFFSET('Character Stats'!B24,SUM(AU29:AU33)+SUM(BB23:BB28),0,BD28,1),0)),0,MATCH("C",OFFSET('Character Stats'!B24,SUM(AU29:AU33)+SUM(BB23:BB28),0,BD28,1),0))) -> 0 | BC45: =IF(BB45=0,"",BC28+BB45) ->  | BD45: =IF(BB45>0,53-BC45,0) -> 0
A46: Shield Weapon | E46: Mg | F46: #B | G46: Int | H46: 0 | I46: 1 | J46: 2 | K46: 3 | L46: 4 | M46: 5 | N46: 6 | O46: 7 | P46: 8 | Q46: 9 | R46: 10 | S46: Dam | U46: Vig | V46: s VL | W46: s L | X46: s M | Y46: s H | Z46: s P | AA46: sk | AB46: =IF(BB46>0,INDIRECT(CONCATENATE("'Character Stats'!a",BC46)),"") ->  | AC46: tr? | AD46: sk+com | AE46: com plus | AH46: =IF(BB46>0,CONCATENATE(INDIRECT(CONCATENATE("'Character Stats'!f",BC46)),"|",VLOOKUP(INDIRECT(CONCATENATE("'Character Stats'!d",BC46)),Spell_Skills_by_number,15),"|",VLOOKUP(INDIRECT(CONCATENATE("'Character Stats'!d",BC46)),Spell_Skills_by_number,17),"|",VLOOKUP(INDIRECT(CONCATENATE("'Character Stats'!d",BC46)),Spell_Skills_by_number,16)),"") ->  | BB46: =IF(BB45=0,0,IF(ISERROR(MATCH("C",OFFSET('Character Stats'!B24,SUM(AU29:AU33)+SUM(BB23:BB45),0,BD45,1),0)),0,MATCH("C",OFFSET('Character Stats'!B24,SUM(AU29:AU33)+SUM(BB23:BB45),0,BD45,1),0))) -> 0 | BC46: =IF(BB46=0,"",BC45+BB46) ->  | BD46: =IF(BB46>0,53-BC46,0) -> 0
A47: =IF('Character Equipment'!$A$16="","",IF('Character Equipment'!$A$16>1,IF(AC47<1,"",CHAR(186))&'Character Equipment'!$B$16,"")) -> ºRondache | E47: =IF(A47="","",'Character Equipment'!I16) -> 0 | F47: =IF(A47="","",VLOOKUP('Character Equipment'!A16,weapons_table,6)+E47+IF(AC47>0,AE47,0)) -> 4 | G47: =IF(A47="","",VLOOKUP('Character Equipment'!A16,weapons_table,7)+dexterity+E47) -> 24 | H47: =IF(A47="","",VLOOKUP('Character Equipment'!A16,weapons_table,8)+(E47*5)+IF(G67="",0,G67)+IF(AC47>0,(combat+((AC47-1)*5)),0)) -> 61 | I47: =IF(A47="","",VLOOKUP('Character Equipment'!A16,weapons_table,9)+(E47*5)+IF(G67="",0,G67)+IF(AC47>0,(combat+((AC47-1)*5)),0)) -> 51 | J47: =IF(A47="","",VLOOKUP('Character Equipment'!A16,weapons_table,10)+(E47*5)+IF(G67="",0,G67)+IF(AC47>0,(combat+((AC47-1)*5)),0)) -> 46 | K47: =IF(A47="","",VLOOKUP('Character Equipment'!A16,weapons_table,11)+(E47*5)+IF(G67="",0,G67)+IF(AC47>0,(combat+((AC47-1)*5)),0)) -> 41 | L47: =IF(A47="","",VLOOKUP('Character Equipment'!A16,weapons_table,12)+(E47*5)+IF(G67="",0,G67)+IF(AC47>0,(combat+((AC47-1)*5)),0)) -> 36 | M47: =IF(A47="","",VLOOKUP('Character Equipment'!A16,weapons_table,13)+(E47*5)+IF(G67="",0,G67)+IF(AC47>0,(combat+((AC47-1)*5)),0)) -> 26 | N47: =IF(A47="","",VLOOKUP('Character Equipment'!A16,weapons_table,14)+(E47*5)+IF(G67="",0,G67)+IF(AC47>0,(combat+((AC47-1)*5)),0)) -> 21 | O47: =IF(A47="","",VLOOKUP('Character Equipment'!A16,weapons_table,15)+(E47*5)+IF(G67="",0,G67)+IF(AC47>0,(combat+((AC47-1)*5)),0)) -> 16 | P47: =IF(A47="","",VLOOKUP('Character Equipment'!A16,weapons_table,16)+(E47*5)+IF(G67="",0,G67)+IF(AC47>0,(combat+((AC47-1)*5)),0)) -> 16 | Q47: =IF(A47="","",VLOOKUP('Character Equipment'!A16,weapons_table,17)+(E47*5)+IF(G67="",0,G67)+IF(AC47>0,(combat+((AC47-1)*5)),0)) -> 11 | R47: =IF(A47="","",VLOOKUP('Character Equipment'!A16,weapons_table,18)+(E47*5)+IF(G67="",0,G67)+IF(AC47>0,(combat+((AC47-1)*5)),0)) -> 11 | S47: =IF(A47="","",IF((E47+damage_bonus)>0,CONCATENATE(VLOOKUP('Character Equipment'!A16,weapons_table,19),"+",(E47+damage_bonus)),IF((E47+damage_bonus)<0,CONCATENATE(VLOOKUP('Character Equipment'!A16,weapons_table,19),(E47+damage_bonus)),VLOOKUP('Character Equipment'!A16,weapons_table,19)))) -> 2d6 | U47: =IF(A47="","",IF(VLOOKUP('Character Equipment'!A16,weapons_table,3)="H",vigor+2,IF(VLOOKUP('Character Equipment'!A16,weapons_table,3)="M",vigor+1,IF(VLOOKUP('Character Equipment'!A16,weapons_table,3)="VL",vigor-2,vigor)))) -> 4 | V47: =IF(A47="","",VLOOKUP('Character Equipment'!A16,weapons_table,21)) -> 10 | W47: =IF(A47="","",VLOOKUP('Character Equipment'!A16,weapons_table,22)) -> 10 | X47: =IF(A47="","",VLOOKUP('Character Equipment'!A16,weapons_table,23)) -> 10 | Y47: =IF(A47="","",VLOOKUP('Character Equipment'!A16,weapons_table,24)) -> 5 | Z47: =IF(A47="","",VLOOKUP('Character Equipment'!A16,weapons_table,25)) -> 5 | AA47: =IF(ISERROR(VLOOKUP('Character Equipment'!A16,weapons_table,26)),"",VLOOKUP('Character Equipment'!A16,weapons_table,26)) -> Shields | AB47: =IF(BB47>0,INDIRECT(CONCATENATE("'Character Stats'!a",BC47)),"") ->  | AC47: =IF(ISERROR(VLOOKUP(VLOOKUP('Character Equipment'!A16,weapons_table,26),character_skill_table,6,FALSE)),0,VLOOKUP(VLOOKUP('Character Equipment'!A16,weapons_table,26),character_skill_table,6,FALSE)) -> 2 | AD47: =IF(AC47>0,CONCATENATE(AA47,IF(combat<10,CONCATENATE("0",combat),combat)),"") -> Shields16 | AE47: =IF(AC47>0,VLOOKUP(AD47,combat_plus_table,3),0) -> 1 | AH47: =IF(BB47>0,CONCATENATE(INDIRECT(CONCATENATE("'Character Stats'!f",BC47)),"|",VLOOKUP(INDIRECT(CONCATENATE("'Character Stats'!d",BC47)),Spell_Skills_by_number,15),"|",VLOOKUP(INDIRECT(CONCATENATE("'Character Stats'!d",BC47)),Spell_Skills_by_number,17),"|",VLOOKUP(INDIRECT(CONCATENATE("'Character Stats'!d",BC47)),Spell_Skills_by_number,16)),"") ->  | BB47: =IF(BB46=0,0,IF(ISERROR(MATCH("C",OFFSET('Character Stats'!B24,SUM(AU29:AU33)+SUM(BB23:BB46),0,BD46,1),0)),0,MATCH("C",OFFSET('Character Stats'!B24,SUM(AU29:AU33)+SUM(BB23:BB46),0,BD46,1),0))) -> 0 | BC47: =IF(BB47=0,"",BC46+BB47) ->  | BD47: =IF(BB47>0,53-BC47,0) -> 0
AB48: =IF(BB48>0,INDIRECT(CONCATENATE("'Character Stats'!a",BC48)),"") ->  | AH48: =IF(BB48>0,CONCATENATE(INDIRECT(CONCATENATE("'Character Stats'!f",BC48)),"|",VLOOKUP(INDIRECT(CONCATENATE("'Character Stats'!d",BC48)),Spell_Skills_by_number,15),"|",VLOOKUP(INDIRECT(CONCATENATE("'Character Stats'!d",BC48)),Spell_Skills_by_number,17),"|",VLOOKUP(INDIRECT(CONCATENATE("'Character Stats'!d",BC48)),Spell_Skills_by_number,16)),"") ->  | BB48: =IF(BB47=0,0,IF(ISERROR(MATCH("C",OFFSET('Character Stats'!B24,SUM(AU29:AU33)+SUM(BB23:BB47),0,BD47,1),0)),0,MATCH("C",OFFSET('Character Stats'!B24,SUM(AU29:AU33)+SUM(BB23:BB47),0,BD47,1),0))) -> 0 | BC48: =IF(BB48=0,"",BC47+BB48) ->  | BD48: =IF(BB48>0,53-BC48,0) -> 0
A49: Missile Weapons | E49: Mg | F49: #B | G49: Int | H49: 0 | I49: 1 | J49: 2 | K49: 3 | L49: 4 | M49: 5 | N49: 6 | O49: 7 | P49: 8 | Q49: 9 | R49: 10 | S49: Dam | U49: Vig | V49: -Rld | AB49: =IF(BB49>0,INDIRECT(CONCATENATE("'Character Stats'!a",BC49)),"") ->  | AH49: =IF(BB49>0,CONCATENATE(INDIRECT(CONCATENATE("'Character Stats'!f",BC49)),"|",VLOOKUP(INDIRECT(CONCATENATE("'Character Stats'!d",BC49)),Spell_Skills_by_number,15),"|",VLOOKUP(INDIRECT(CONCATENATE("'Character Stats'!d",BC49)),Spell_Skills_by_number,17),"|",VLOOKUP(INDIRECT(CONCATENATE("'Character Stats'!d",BC49)),Spell_Skills_by_number,16)),"") ->  | BB49: =IF(BB48=0,0,IF(ISERROR(MATCH("C",OFFSET('Character Stats'!B24,SUM(AU29:AU33)+SUM(BB24:BB48),0,BD48,1),0)),0,MATCH("C",OFFSET('Character Stats'!B24,SUM(AU29:AU33)+SUM(BB24:BB48),0,BD48,1),0))) -> 0 | BC49: =IF(BB49=0,"",BC48+BB49) ->  | BD49: =IF(BB49>0,53-BC49,0) -> 0
A50: =IF('Character Equipment'!K16="","",IF('Character Equipment'!K16>1,IF(AC50<1,"",CHAR(186))&'Character Equipment'!L16)) -> Heavy Crossbow | E50: =IF(A50="","",'Character Equipment'!S16) -> 0 | F50: =IF(A50="","",VLOOKUP('Character Equipment'!K16,weapons_table,6)+E50+IF(AC50>0,AE50,0)) -> 0.5 | G50: =IF(A50="","",dexterity+E50) -> 22 | H50: =IF(A50="","",VLOOKUP('Character Equipment'!K16,weapons_table,8)+(E50*2.5)+IF(G67="",0,G67)+IF(AC50>0,INT((combat/2)+((AC50-1)*2.5)),0)) -> 45 | I50: =IF(A50="","",VLOOKUP('Character Equipment'!K16,weapons_table,9)+(E50*2.5)+IF(G67="",0,G67)+IF(AC50>0,INT((combat/2)+((AC50-1)*2.5)),0)) -> 40 | J50: =IF(A50="","",VLOOKUP('Character Equipment'!K16,weapons_table,10)+(E50*2.5)+IF(G67="",0,G67)+IF(AC50>0,INT((combat/2)+((AC50-1)*2.5)),0)) -> 40 | K50: =IF(A50="","",VLOOKUP('Character Equipment'!K16,weapons_table,11)+(E50*2.5)+IF(G67="",0,G67)+IF(AC50>0,INT((combat/2)+((AC50-1)*2.5)),0)) -> 35 | L50: =IF(A50="","",VLOOKUP('Character Equipment'!K16,weapons_table,12)+(E50*2.5)+IF(G67="",0,G67)+IF(AC50>0,INT((combat/2)+((AC50-1)*2.5)),0)) -> 30 | M50: =IF(A50="","",VLOOKUP('Character Equipment'!K16,weapons_table,13)+(E50*2.5)+IF(G67="",0,G67)+IF(AC50>0,INT((combat/2)+((AC50-1)*2.5)),0)) -> 25 | N50: =IF(A50="","",VLOOKUP('Character Equipment'!K16,weapons_table,14)+(E50*2.5)+IF(G67="",0,G67)+IF(AC50>0,INT((combat/2)+((AC50-1)*2.5)),0)) -> 25 | O50: =IF(A50="","",VLOOKUP('Character Equipment'!K16,weapons_table,15)+(E50*2.5)+IF(G67="",0,G67)+IF(AC50>0,INT((combat/2)+((AC50-1)*2.5)),0)) -> 20 | P50: =IF(A50="","",VLOOKUP('Character Equipment'!K16,weapons_table,16)+(E50*2.5)+IF(G67="",0,G67)+IF(AC50>0,INT((combat/2)+((AC50-1)*2.5)),0)) -> 15 | Q50: =IF(A50="","",VLOOKUP('Character Equipment'!K16,weapons_table,17)+(E50*2.5)+IF(G67="",0,G67)+IF(AC50>0,INT((combat/2)+((AC50-1)*2.5)),0)) -> 10 | R50: =IF(A50="","",VLOOKUP('Character Equipment'!K16,weapons_table,18)+(E50*2.5)+IF(G67="",0,G67)+IF(AC50>0,INT((combat/2)+((AC50-1)*2.5)),0)) -> 5 | S50: =IF(A50="","",IF((E50+damage_bonus)>0,CONCATENATE(VLOOKUP('Character Equipment'!K16,weapons_table,19),"+",(E50+damage_bonus)),IF((E50+damage_bonus)<0,CONCATENATE(VLOOKUP('Character Equipment'!K16,weapons_table,19),(E50+damage_bonus)),VLOOKUP('Character Equipment'!K16,weapons_table,19)))) -> 1d10+7 | U50: =IF(A50="","",VLOOKUP('Character Equipment'!K16,weapons_table,21)) -> 5 | V50: =IF(AA50="Crossbows",IF(dexterity>15,dexterity-15,""),"") -> 7 | AA50: =IF(ISERROR(VLOOKUP('Character Equipment'!K16,weapons_table,26)),"",VLOOKUP('Character Equipment'!K16,weapons_table,26)) -> Crossbows | AC50: =IF(ISERROR(VLOOKUP(VLOOKUP('Character Equipment'!K16,weapons_table,26),character_skill_table,6,FALSE)),0,VLOOKUP(VLOOKUP('Character Equipment'!K16,weapons_table,26),character_skill_table,6,FALSE)) -> 0 | AD50: =IF(AC50>0,CONCATENATE(AA50,IF(dexterity<10,CONCATENATE("0",dexterity),dexterity)),"") ->  | AE50: =IF(AC50>0,VLOOKUP(AD50,missle_combat_plus_table,3),0) -> 0
A51: =IF('Character Equipment'!K17="","",IF('Character Equipment'!K17>1,IF(AC51<1,"",CHAR(186))&'Character Equipment'!L17)) -> Chakra | E51: =IF(A51="","",'Character Equipment'!S17) -> 0 | F51: =IF(A51="","",VLOOKUP('Character Equipment'!K17,weapons_table,6)+E51+IF(AC51>0,AE51,0)) -> 5 | G51: =IF(A51="","",dexterity+E51) -> 22 | H51: =IF(A51="","",VLOOKUP('Character Equipment'!K17,weapons_table,8)+(E51*2.5)+IF(G67="",0,G67)+IF(AC51>0,INT((combat/2)+((AC51-1)*2.5)),0)) -> 45 | I51: =IF(A51="","",VLOOKUP('Character Equipment'!K17,weapons_table,9)+(E51*2.5)+IF(G67="",0,G67)+IF(AC51>0,INT((combat/2)+((AC51-1)*2.5)),0)) -> 45 | J51: =IF(A51="","",VLOOKUP('Character Equipment'!K17,weapons_table,10)+(E51*2.5)+IF(G67="",0,G67)+IF(AC51>0,INT((combat/2)+((AC51-1)*2.5)),0)) -> 40 | K51: =IF(A51="","",VLOOKUP('Character Equipment'!K17,weapons_table,11)+(E51*2.5)+IF(G67="",0,G67)+IF(AC51>0,INT((combat/2)+((AC51-1)*2.5)),0)) -> 30 | L51: =IF(A51="","",VLOOKUP('Character Equipment'!K17,weapons_table,12)+(E51*2.5)+IF(G67="",0,G67)+IF(AC51>0,INT((combat/2)+((AC51-1)*2.5)),0)) -> 20 | M51: =IF(A51="","",VLOOKUP('Character Equipment'!K17,weapons_table,13)+(E51*2.5)+IF(G67="",0,G67)+IF(AC51>0,INT((combat/2)+((AC51-1)*2.5)),0)) -> 0 | N51: =IF(A51="","",VLOOKUP('Character Equipment'!K17,weapons_table,14)+(E51*2.5)+IF(G67="",0,G67)+IF(AC51>0,INT((combat/2)+((AC51-1)*2.5)),0)) -> -10 | O51: =IF(A51="","",VLOOKUP('Character Equipment'!K17,weapons_table,15)+(E51*2.5)+IF(G67="",0,G67)+IF(AC51>0,INT((combat/2)+((AC51-1)*2.5)),0)) -> -15 | P51: =IF(A51="","",VLOOKUP('Character Equipment'!K17,weapons_table,16)+(E51*2.5)+IF(G67="",0,G67)+IF(AC51>0,INT((combat/2)+((AC51-1)*2.5)),0)) -> -20 | Q51: =IF(A51="","",VLOOKUP('Character Equipment'!K17,weapons_table,17)+(E51*2.5)+IF(G67="",0,G67)+IF(AC51>0,INT((combat/2)+((AC51-1)*2.5)),0)) -> -25 | R51: =IF(A51="","",VLOOKUP('Character Equipment'!K17,weapons_table,18)+(E51*2.5)+IF(G67="",0,G67)+IF(AC51>0,INT((combat/2)+((AC51-1)*2.5)),0)) -> -35 | S51: =IF(A51="","",IF((E51+damage_bonus)>0,CONCATENATE(VLOOKUP('Character Equipment'!K17,weapons_table,19),"+",(E51+damage_bonus)),IF((E51+damage_bonus)<0,CONCATENATE(VLOOKUP('Character Equipment'!K17,weapons_table,19),(E51+damage_bonus)),VLOOKUP('Character Equipment'!K17,weapons_table,19)))) -> 1d3+(p) | U51: =IF(A51="","",VLOOKUP('Character Equipment'!K17,weapons_table,21)) -> 2 | V51: =IF(AA51="Crossbows",IF(dexterity>15,dexterity-15,""),"") ->  | AA51: =IF(ISERROR(VLOOKUP('Character Equipment'!K17,weapons_table,26)),"",VLOOKUP('Character Equipment'!K17,weapons_table,26)) -> Eastern Hand Darts | AC51: =IF(ISERROR(VLOOKUP(VLOOKUP('Character Equipment'!K17,weapons_table,26),character_skill_table,6,FALSE)),0,VLOOKUP(VLOOKUP('Character Equipment'!K17,weapons_table,26),character_skill_table,6,FALSE)) -> 0 | AD51: =IF(AC51>0,CONCATENATE(AA51,IF(dexterity<10,CONCATENATE("0",dexterity),dexterity)),"") ->  | AE51: =IF(AC51>0,VLOOKUP(AD51,missle_combat_plus_table,3),0) -> 0
A52: =IF('Character Equipment'!K18="","",IF('Character Equipment'!K18>1,IF(AC52<1,"",CHAR(186))&'Character Equipment'!L18)) -> Composite bow | E52: =IF(A52="","",'Character Equipment'!S18) -> 0 | F52: =IF(A52="","",VLOOKUP('Character Equipment'!K18,weapons_table,6)+E52+IF(AC52>0,AE52,0)) -> 2 | G52: =IF(A52="","",dexterity+E52) -> 22 | H52: =IF(A52="","",VLOOKUP('Character Equipment'!K18,weapons_table,8)+(E52*2.5)+IF(G67="",0,G67)+IF(AC52>0,INT((combat/2)+((AC52-1)*2.5)),0)) -> 45 | I52: =IF(A52="","",VLOOKUP('Character Equipment'!K18,weapons_table,9)+(E52*2.5)+IF(G67="",0,G67)+IF(AC52>0,INT((combat/2)+((AC52-1)*2.5)),0)) -> 45 | J52: =IF(A52="","",VLOOKUP('Character Equipment'!K18,weapons_table,10)+(E52*2.5)+IF(G67="",0,G67)+IF(AC52>0,INT((combat/2)+((AC52-1)*2.5)),0)) -> 40 | K52: =IF(A52="","",VLOOKUP('Character Equipment'!K18,weapons_table,11)+(E52*2.5)+IF(G67="",0,G67)+IF(AC52>0,INT((combat/2)+((AC52-1)*2.5)),0)) -> 30 | L52: =IF(A52="","",VLOOKUP('Character Equipment'!K18,weapons_table,12)+(E52*2.5)+IF(G67="",0,G67)+IF(AC52>0,INT((combat/2)+((AC52-1)*2.5)),0)) -> 25 | M52: =IF(A52="","",VLOOKUP('Character Equipment'!K18,weapons_table,13)+(E52*2.5)+IF(G67="",0,G67)+IF(AC52>0,INT((combat/2)+((AC52-1)*2.5)),0)) -> 20 | N52: =IF(A52="","",VLOOKUP('Character Equipment'!K18,weapons_table,14)+(E52*2.5)+IF(G67="",0,G67)+IF(AC52>0,INT((combat/2)+((AC52-1)*2.5)),0)) -> 15 | O52: =IF(A52="","",VLOOKUP('Character Equipment'!K18,weapons_table,15)+(E52*2.5)+IF(G67="",0,G67)+IF(AC52>0,INT((combat/2)+((AC52-1)*2.5)),0)) -> 10 | P52: =IF(A52="","",VLOOKUP('Character Equipment'!K18,weapons_table,16)+(E52*2.5)+IF(G67="",0,G67)+IF(AC52>0,INT((combat/2)+((AC52-1)*2.5)),0)) -> 5 | Q52: =IF(A52="","",VLOOKUP('Character Equipment'!K18,weapons_table,17)+(E52*2.5)+IF(G67="",0,G67)+IF(AC52>0,INT((combat/2)+((AC52-1)*2.5)),0)) -> 0 | R52: =IF(A52="","",VLOOKUP('Character Equipment'!K18,weapons_table,18)+(E52*2.5)+IF(G67="",0,G67)+IF(AC52>0,INT((combat/2)+((AC52-1)*2.5)),0)) -> -5 | S52: =IF(A52="","",IF((E52+damage_bonus)>0,CONCATENATE(VLOOKUP('Character Equipment'!K18,weapons_table,19),"+",(E52+damage_bonus)),IF((E52+damage_bonus)<0,CONCATENATE(VLOOKUP('Character Equipment'!K18,weapons_table,19),(E52+damage_bonus)),VLOOKUP('Character Equipment'!K18,weapons_table,19)))) -> 1d10+5 | U52: =IF(A52="","",VLOOKUP('Character Equipment'!K18,weapons_table,21)) -> 4 | V52: =IF(AA52="Crossbows",IF(dexterity>15,dexterity-15,""),"") ->  | AA52: =IF(ISERROR(VLOOKUP('Character Equipment'!K18,weapons_table,26)),"",VLOOKUP('Character Equipment'!K18,weapons_table,26)) -> Self Bows | AC52: =IF(ISERROR(VLOOKUP(VLOOKUP('Character Equipment'!K18,weapons_table,26),character_skill_table,6,FALSE)),0,VLOOKUP(VLOOKUP('Character Equipment'!K18,weapons_table,26),character_skill_table,6,FALSE)) -> 0 | AD52: =IF(AC52>0,CONCATENATE(AA52,IF(dexterity<10,CONCATENATE("0",dexterity),dexterity)),"") ->  | AE52: =IF(AC52>0,VLOOKUP(AD52,missle_combat_plus_table,3),0) -> 0
A53: =IF('Character Equipment'!K19="","",IF('Character Equipment'!K19>1,IF(AC53<1,"",CHAR(186))&'Character Equipment'!L19)) -> Javelin | E53: =IF(A53="","",'Character Equipment'!S19) -> 0 | F53: =IF(A53="","",VLOOKUP('Character Equipment'!K19,weapons_table,6)+E53+IF(AC53>0,AE53,0)) -> 2 | G53: =IF(A53="","",dexterity+E53) -> 22 | H53: =IF(A53="","",VLOOKUP('Character Equipment'!K19,weapons_table,8)+(E53*2.5)+IF(G67="",0,G67)+IF(AC53>0,INT((combat/2)+((AC53-1)*2.5)),0)) -> 40 | I53: =IF(A53="","",VLOOKUP('Character Equipment'!K19,weapons_table,9)+(E53*2.5)+IF(G67="",0,G67)+IF(AC53>0,INT((combat/2)+((AC53-1)*2.5)),0)) -> 40 | J53: =IF(A53="","",VLOOKUP('Character Equipment'!K19,weapons_table,10)+(E53*2.5)+IF(G67="",0,G67)+IF(AC53>0,INT((combat/2)+((AC53-1)*2.5)),0)) -> 35 | K53: =IF(A53="","",VLOOKUP('Character Equipment'!K19,weapons_table,11)+(E53*2.5)+IF(G67="",0,G67)+IF(AC53>0,INT((combat/2)+((AC53-1)*2.5)),0)) -> 30 | L53: =IF(A53="","",VLOOKUP('Character Equipment'!K19,weapons_table,12)+(E53*2.5)+IF(G67="",0,G67)+IF(AC53>0,INT((combat/2)+((AC53-1)*2.5)),0)) -> 30 | M53: =IF(A53="","",VLOOKUP('Character Equipment'!K19,weapons_table,13)+(E53*2.5)+IF(G67="",0,G67)+IF(AC53>0,INT((combat/2)+((AC53-1)*2.5)),0)) -> 30 | N53: =IF(A53="","",VLOOKUP('Character Equipment'!K19,weapons_table,14)+(E53*2.5)+IF(G67="",0,G67)+IF(AC53>0,INT((combat/2)+((AC53-1)*2.5)),0)) -> 25 | O53: =IF(A53="","",VLOOKUP('Character Equipment'!K19,weapons_table,15)+(E53*2.5)+IF(G67="",0,G67)+IF(AC53>0,INT((combat/2)+((AC53-1)*2.5)),0)) -> 15 | P53: =IF(A53="","",VLOOKUP('Character Equipment'!K19,weapons_table,16)+(E53*2.5)+IF(G67="",0,G67)+IF(AC53>0,INT((combat/2)+((AC53-1)*2.5)),0)) -> 10 | Q53: =IF(A53="","",VLOOKUP('Character Equipment'!K19,weapons_table,17)+(E53*2.5)+IF(G67="",0,G67)+IF(AC53>0,INT((combat/2)+((AC53-1)*2.5)),0)) -> 10 | R53: =IF(A53="","",VLOOKUP('Character Equipment'!K19,weapons_table,18)+(E53*2.5)+IF(G67="",0,G67)+IF(AC53>0,INT((combat/2)+((AC53-1)*2.5)),0)) -> 5 | S53: =IF(A53="","",IF((E53+damage_bonus)>0,CONCATENATE(VLOOKUP('Character Equipment'!K19,weapons_table,19),"+",(E53+damage_bonus)),IF((E53+damage_bonus)<0,CONCATENATE(VLOOKUP('Character Equipment'!K19,weapons_table,19),(E53+damage_bonus)),VLOOKUP('Character Equipment'!K19,weapons_table,19)))) -> 1d8 | U53: =IF(A53="","",VLOOKUP('Character Equipment'!K19,weapons_table,21)) -> 4 | V53: =IF(AA53="Crossbows",IF(dexterity>15,dexterity-15,""),"") ->  | AA53: =IF(ISERROR(VLOOKUP('Character Equipment'!K19,weapons_table,26)),"",VLOOKUP('Character Equipment'!K19,weapons_table,26)) -> Thrown Weapons | AC53: =IF(ISERROR(VLOOKUP(VLOOKUP('Character Equipment'!K19,weapons_table,26),character_skill_table,6,FALSE)),0,VLOOKUP(VLOOKUP('Character Equipment'!K19,weapons_table,26),character_skill_table,6,FALSE)) -> 0 | AD53: =IF(AC53>0,CONCATENATE(AA53,IF(dexterity<10,CONCATENATE("0",dexterity),dexterity)),"") ->  | AE53: =IF(AC53>0,VLOOKUP(AD53,missle_combat_plus_table,3),0) -> 0
A63: Encumberance | E63: Carry | G63: Combat | I63: Stamina Recovery | M63: Hour 1 | O63: Hour +
A64: % Load | E64: =('Character Equipment'!I6*100) -> 47.53184713 | G64: =('Character Equipment'!O6*100) -> 47.53184713 | I64: Walking | M64: =TRUNC(O64/2) -> 0 | O64: =INT(constitution/10) -> 0
A65: Tests By | E65: =IF(VLOOKUP(E64,encumberance_table,2)=0,"",VLOOKUP(E64,encumberance_table,2)) ->  | G65: =IF(VLOOKUP(G64,encumberance_table,2)=0,"",VLOOKUP(G64,encumberance_table,2)) ->  | I65: Resting | M65: =TRUNC(O65/2) -> 0 | O65: =INT(constitution/3) -> 1
A66: Tests Against | E66: =IF(VLOOKUP(E64,encumberance_table,3)=0,"",VLOOKUP(E64,encumberance_table,3)) ->  | G66: =IF(VLOOKUP(G64,encumberance_table,3)=0,"",VLOOKUP(G64,encumberance_table,3)) ->  | I66: Sleeping | M66: =TRUNC(O66/2) -> 1 | O66: =INT(constitution/2) -> 2
A67: COMBAT | B67: By | E67: =IF(VLOOKUP(E64,encumberance_table,4)=0,"",VLOOKUP(E64,encumberance_table,4)) ->  | G67: =IF(VLOOKUP(G64,encumberance_table,4)=0,"",VLOOKUP(G64,encumberance_table,4)) ->  | I67: Body Recovery | O67: Day
B68: Against | E68: =IF(VLOOKUP(E64,encumberance_table,5)=0,"",VLOOKUP(E64,encumberance_table,5)) ->  | G68: =IF(VLOOKUP(G64,encumberance_table,5)=0,"",VLOOKUP(G64,encumberance_table,5)) ->  | I68: Strenuous | O68: =INT((constitution-10)/5) -> -1
B69: Stamina | E69: =VLOOKUP(E64,encumberance_table,6) -> 1/turn | G69: =VLOOKUP(G64,encumberance_table,6) -> 1/turn | I69: Moderate | O69: =INT((constitution-10)/3) -> -2
A70: Travel Stamina | E70: =VLOOKUP(E64,encumberance_table,7) -> 2/hour | G70: =VLOOKUP(G64,encumberance_table,7) -> 2/hour | I70: Resting | O70: =INT(constitution/5) -> 1

Sheet Character Equipment
A1: Enter the Equipment Item # from the equipment list in the green field. For general equipment enter the quantity, for weapons enter any plus's
A3: Character Name | D3: =character_name -> TBA | I3: Player Name | K3: =player_name -> 4.2 Beta | Q3: Date | R3: =NOW() -> 2015-08-19T15:38:35.760
U4: OPT: Restrict weapon choices by type. Then choose weapon.
A5: Equipment Cost | C5: =SUM(G8:G53)+SUM(Q8:Q53) -> 1113 | F5: Total Carried Weight | I5: =SUM(F8:F53)+SUM(P8:P53) -> 149.3 | J5: lb | L5: Combat Carried Weight | O5: =I5-(SUM(J21:J53)+SUM(T21:T53)) -> 149.3 | P5: lb
F6: Total Encumberance | I6: =I5/carryingcap -> 48% | L6: Combat Encumberance | M6: Encumberance | O6: =O5/carryingcap -> 48%
A7: Body Armour | D7: Description | F7: Weight | G7: Cost | I7: Magic + | K7: Melee Weapons | N7: Description | P7: Weight | Q7: Cost | R7: Size | S7: Magic +
A8: =IF(B8="","",VLOOKUP(B8,Armorcode,2)) -> 9 | B8: Cuirass | F8: =IF(A8="","",VLOOKUP(A8,body_armour_table,5)*weight) -> 57 | G8: =IF(A8="","",VLOOKUP(A8,body_armour_table,4)) -> 200 | K8: =IF(L8="","",VLOOKUP(L8,weaponcode,2)) -> 37 | L8: Short Sword | P8: =IF(K8="","",VLOOKUP(K8,weapons_table,5)) -> 5 | Q8: =IF(K8="","",VLOOKUP(K8,weapons_table,4)) -> 65 | R8: =IF(K8="","",VLOOKUP(K8,weapons_table,7)) -> 3 | T8: =IF(ISERROR(VLOOKUP(VLOOKUP('Character Equipment'!K8,weapons_table,26),character_skill_table,6,FALSE)),0,VLOOKUP(VLOOKUP('Character Equipment'!K8,weapons_table,26),character_skill_table,6,FALSE)) -> 0 | U8: All Weapons
A9: =IF(B9="","",VLOOKUP(B9,Surcoatcode,2)) -> 14 | B9: None | F9: =IF(A9="","",IF(A9>12,VLOOKUP(A9,body_armour_table,5)*weight,"")) -> 0 | G9: =IF(A9="","",VLOOKUP(A9,body_armour_table,4)) -> 0 | K9: 66 | L9: Warhammer | P9: 10 | Q9: 50 | R9: 5 | T9: =IF(ISERROR(VLOOKUP(VLOOKUP('Character Equipment'!K9,weapons_table,26),character_skill_table,6,FALSE)),0,VLOOKUP(VLOOKUP('Character Equipment'!K9,weapons_table,26),character_skill_table,6,FALSE)) -> 0 | U9: Hammers
K10: 72 | L10: Maul | P10: 12 | Q10: 75 | R10: 8 | T10: =IF(ISERROR(VLOOKUP(VLOOKUP('Character Equipment'!K10,weapons_table,26),character_skill_table,6,FALSE)),0,VLOOKUP(VLOOKUP('Character Equipment'!K10,weapons_table,26),character_skill_table,6,FALSE)) -> 0 | U10: Hammers
A11: Head Armour | D11: Description | F11: Weight | G11: Cost | I11: Magic + | K11: 78 | L11: Two-Handed Warhammer | P11: 12 | Q11: 100 | R11: 6 | T11: =IF(ISERROR(VLOOKUP(VLOOKUP('Character Equipment'!K11,weapons_table,26),character_skill_table,6,FALSE)),0,VLOOKUP(VLOOKUP('Character Equipment'!K11,weapons_table,26),character_skill_table,6,FALSE)) -> 0 | U11: Hammers
A12: =IF(B12="","",VLOOKUP(B12,helmcode,2)) -> 20 | B12: Norman Helm | F12: =IF(A12="","",VLOOKUP(A12,head_armour_table,5)) -> 4 | G12: =IF(A12="","",VLOOKUP(A12,head_armour_table,4)) -> 40 | K12: 72 | L12: Maul | P12: 12 | Q12: 75 | R12: 8 | T12: =IF(ISERROR(VLOOKUP(VLOOKUP('Character Equipment'!K12,weapons_table,26),character_skill_table,6,FALSE)),0,VLOOKUP(VLOOKUP('Character Equipment'!K12,weapons_table,26),character_skill_table,6,FALSE)) -> 0 | U12: Hammers
A13: =IF(B13="","",VLOOKUP(B13,coifcode,2)) -> 26 | B13: Leather Hood | F13: =IF(A13="","",VLOOKUP(A13,head_armour_table,5)) -> 2 | G13: =IF(A13="","",VLOOKUP(A13,head_armour_table,4)) -> 5 | K13: 29 | L13: Knife | P13: 2 | Q13: 18 | R13: 1.5 | T13: =IF(ISERROR(VLOOKUP(VLOOKUP('Character Equipment'!K13,weapons_table,26),character_skill_table,6,FALSE)),0,VLOOKUP(VLOOKUP('Character Equipment'!K13,weapons_table,26),character_skill_table,6,FALSE)) -> 0 | U13: Hammers
A15: Shield Weapon | D15: Description | F15: Weight | G15: Cost | H15: Size | I15: Magic + | K15: Missile Weapons | N15: Description | P15: Weight | Q15: Cost | S15: Magic +
A16: =IF(B16="","",VLOOKUP(B16,shieldcode,2)) -> 96 | B16: Rondache | F16: =IF($A16="","",VLOOKUP(A16,weapons_table,5)) -> 7 | G16: =IF(A16="","",VLOOKUP(A16,weapons_table,23)) -> 10 | H16: =IF(A16="","",VLOOKUP(A16,weapons_table,6)) -> 3 | K16: =IF(L16="","",VLOOKUP(L16,missilecode,2)) -> 108 | L16: Heavy Crossbow | P16: =IF(K16="","",VLOOKUP(K16,weapons_table,5)) -> 20 | Q16: =IF(K16="","",VLOOKUP(K16,weapons_table,4)) -> 250 | T16: =IF(ISERROR(VLOOKUP(VLOOKUP('Character Equipment'!K16,weapons_table,26),character_skill_table,6,FALSE)),0,VLOOKUP(VLOOKUP('Character Equipment'!K16,weapons_table,26),character_skill_table,6,FALSE)) -> 0 | U16: Crossbows
K17: =IF(L17="","",VLOOKUP(L17,missilecode,2)) -> 120 | L17: Chakra | P17: =IF(K17="","",VLOOKUP(K17,weapons_table,5)) -> 0.25 | Q17: =IF(K17="","",VLOOKUP(K17,weapons_table,4)) -> 40 | T17: =IF(ISERROR(VLOOKUP(VLOOKUP('Character Equipment'!K17,weapons_table,26),character_skill_table,6,FALSE)),0,VLOOKUP(VLOOKUP('Character Equipment'!K17,weapons_table,26),character_skill_table,6,FALSE)) -> 0 | U17: Eastern Hand Darts
K18: =IF(L18="","",VLOOKUP(L18,missilecode,2)) -> 111 | L18: Composite bow | P18: =IF(K18="","",VLOOKUP(K18,weapons_table,5)) -> 3 | Q18: =IF(K18="","",VLOOKUP(K18,weapons_table,4)) -> 125 | T18: =IF(ISERROR(VLOOKUP(VLOOKUP('Character Equipment'!K18,weapons_table,26),character_skill_table,6,FALSE)),0,VLOOKUP(VLOOKUP('Character Equipment'!K18,weapons_table,26),character_skill_table,6,FALSE)) -> 0 | U18: Self Bows
K19: =IF(L19="","",VLOOKUP(L19,missilecode,2)) -> 124 | L19: Javelin | P19: =IF(K19="","",VLOOKUP(K19,weapons_table,5)) -> 3 | Q19: =IF(K19="","",VLOOKUP(K19,weapons_table,4)) -> 60 | T19: =IF(ISERROR(VLOOKUP(VLOOKUP('Character Equipment'!K19,weapons_table,26),character_skill_table,6,FALSE)),0,VLOOKUP(VLOOKUP('Character Equipment'!K19,weapons_table,26),character_skill_table,6,FALSE)) -> 0 | U19: Thrown Weapons
A20: Equipment | C20: Description | F20: Weight | G20: Cost | H20: In Pack | I20: Quantity
B21: =IF(A21="","",VLOOKUP(A21,equipment_table,2)) ->  | F21: =IF(A21="","",VLOOKUP(A21,equipment_table,5)*IF(I21=0,1,I21)) ->  | G21: =IF(A21="","",VLOOKUP(A21,equipment_table,4)*IF(I21=0,1,I21)) ->  | J21: =IF(H21<>"",F21,0) -> 0 | K21: Equipment | M21: Description | P21: Weight | Q21: Cost | R21: In Pack | S21: Quantity
J22: =IF(H22<>"",F22,0) -> 0 | L22: =IF(K22="","",VLOOKUP(K22,equipment_table,2)) ->  | P22: =IF(K22="","",VLOOKUP(K22,equipment_table,5)*IF(S22=0,1,S22)) ->  | Q22: =IF(K22="","",VLOOKUP(K22,equipment_table,4)*IF(S22=0,1,S22)) ->  | T22: =IF(R24<>"",P24,0) -> 0
J23: 0 | P23: =IF(K23="","",VLOOKUP(K23,equipment_table,5)*IF(S23=0,1,S23)) ->  | Q23: =IF(K23="","",VLOOKUP(K23,equipment_table,4)*IF(S23=0,1,S23)) ->  | T23: 0
J24: 0 | T24: 0
J25: 0 | T25: 0
J26: 0 | T26: 0
J27: 0 | T27: 0
J28: 0 | T28: 0
J29: 0 | T29: 0
J30: 0 | T30: 0
J31: 0 | T31: 0
J32: 0 | T32: 0
J33: 0 | T33: 0
J34: 0 | T34: 0
J35: 0 | T35: 0
J36: 0 | T36: 0
J37: 0 | T37: 0
J38: 0 | T38: 0
J39: 0 | T39: 0
J40: 0 | T40: 0
J41: 0 | T41: 0
J42: 0 | T42: 0
J43: 0 | T43: 0
J44: 0 | T44: =IF(R46<>"",P46,0) -> 0
J45: 0 | T45: =IF(R47<>"",P47,0) -> 0
A47: Misc Items
A48: Description | F48: Weight | G48: Cost | H48: In Pack | I48: Quantity | K48: Description | P48: Weight | Q48: Cost | R48: In Pack | S48: Quantity
J49: 0 | T49: =IF(R49<>"",P49,0) -> 0
J50: 0 | T50: =IF(R50<>"",P50,0) -> 0
J51: 0 | T51: =IF(R51<>"",P51,0) -> 0
J52: 0 | T52: =IF(R52<>"",P52,0) -> 0
J53: 0 | T53: =IF(R53<>"",P53,0) -> 0
A56: NOTES:

Sheet Character Stats
A1: Character Name: | B1: TBA | J1: Gen'd? | L1: 0 | M1: Change this value from zero when character is generated
A2: Player Name: | B2: 4.2 Beta | J2: Date | L2: =IF(L1<>0,L2,N2) -> 2015-08-19T15:38:35.760 | N2: =NOW() -> 42235.6518
A3: =IF(A9="",IF(C9=0,IF(K9="",IF(K15="",IF(A15="",Z10,Z9),Z6),Z5),IF(C9>0,Z7,Z8)),Z4) -> Character attributes are correct. | C3: Base | D3: Mods | E3: Bonus | F3: Score | G3: Exp Cost | M3: Base | N3: Mods | O3: Score
A4: Intelligence (1-20) | B4: =IF(OR((E4>1),OR(C4>20,C4<1)),"X","") ->  | C4: 5 | D4: =VLOOKUP(horoscope_stat,Horoscope,3)+VLOOKUP(race_stat,Race,3) -> 0 | F4: =IF(E4>0,C4+D4+1,C4+D4) -> 5 | G4: =IF(E4>0,500,0) -> 0 | K4: Speech | L4: =IF(OR(M4>20,M4<2),"X","") ->  | M4: =IF(L1<>0,M4,P4) -> 12 | N4: =VLOOKUP(horoscope_stat,Horoscope,8)+VLOOKUP(race_stat,Race,8) -> 0 | O4: =MAXA(IF(C4+10<M4+N4,C4+10,M4+N4),1) -> 12 | P4: =TRUNC(RAND()*10+1)+TRUNC(RAND()*10+1) -> 12 | Z4: A Selected Attribute is out of range.
A5: ="Wisdom (1-"&TEXT(MIN(C4+10,20),0)&")" -> Wisdom (1-15) | B5: =IF(OR((E5>1),OR(C5>MIN(C4+10,20),C5<1)),"X","") ->  | C5: 15 | D5: =IF(OR(LEFT(N10,1)="f",LEFT(N10,1)="F"),1,0)+VLOOKUP(horoscope_stat,Horoscope,4)+VLOOKUP(race_stat,Race,4)-IF(C4+10<C5,C5-H5) -> 0 | F5: =IF(E5>0,C5+D5+1,C5+D5) -> 15 | G5: =IF(E5>0,500,0) -> 0 | H5: =MIN(C4+10,20) -> 15 | K5: Appearance | L5: =IF(OR(M5>20,M5<2),"X","") ->  | M5: =IF(L1<>0,M5,P5) -> 11 | N5: =VLOOKUP(horoscope_stat,Horoscope,9)+VLOOKUP(race_stat,Race,9) -> 0 | O5: =MAXA(M5+N5,1) -> 11 | P5: =TRUNC(RAND()*10+1)+TRUNC(RAND()*10+1) -> 11 | Z5: A Random Attribute exceeds its allowed range.
A6: Constitution (1-20) | B6: =IF(OR((E6>1),OR(C6>20,C6<1)),"X","") ->  | C6: 5 | D6: =VLOOKUP(horoscope_stat,Horoscope,5)+VLOOKUP(race_stat,Race,5) -> 0 | F6: =IF(E6>0,C6+D6+1,C6+D6) -> 5 | G6: =IF(E6>0,500,0) -> 0 | K6: Art | L6: =IF(OR(M6>20,M6<2),"X","") ->  | M6: =IF(L1<>0,M6,P6) -> 5 | N6: =VLOOKUP(horoscope_stat,Horoscope,10)+VLOOKUP(race_stat,Race,10) -> 1 | O6: =MAXA(IF((OR((C4+10<M6+N6),(C5+10<M6+N6))),MINA(C4,C5)+10,M6+N6),1) -> 6 | P6: =TRUNC(RAND()*10+1)+TRUNC(RAND()*10+1) -> 5 | Z6: Race, Size and/or Horoscope values exceed allowed ranges.
A7: ="Strength (1-"&TEXT(MIN(C6+10,20),0)&")" -> Strength (1-15) | B7: =IF(OR((E7>1),OR(C7>MIN(C6+10,20),C7<1)),"X","") ->  | C7: 15 | D7: =IF(OR(LEFT(N10,1)="f",LEFT(N10,1)="F"),-2,0)+VLOOKUP(horoscope_stat,Horoscope,6)+VLOOKUP(race_stat,Race,6)-IF(C6+10<C7,C7-H7) -> 1 | F7: =IF(E7>0,C7+D7+1,C7+D7) -> 16 | G7: =IF(E7>0,500,0) -> 0 | H7: =MIN(C6+10,20) -> 15 | J7: =ROUNDUP(IF(strength<4,-1,IF(strength>20,((strength-20)/2+1),(IF(strength>18,1,0)))),0) -> 0 | K7: Ethics | L7: =IF(OR(M7>10,M7<1),"X","") ->  | M7: =IF(L1<>0,M7,P7) -> 2 | N7: =VLOOKUP(horoscope_stat,Horoscope,11)+VLOOKUP(race_stat,Race,11) -> 0 | O7: =MAXA(M7+N7,1) -> 2 | P7: =TRUNC(RAND()*10)+1 -> 2 | Z7: Selected Attributes total greater than 60 points.
A8: Dexterity (1-20) | B8: =IF(OR((E8>1),OR(C8>20,C8<1)),"X","") ->  | C8: 20 | D8: =IF(OR(LEFT(N10,1)="f",LEFT(N10,1)="F"),1,0)+VLOOKUP(horoscope_stat,Horoscope,7)+VLOOKUP(race_stat,Race,7) -> 2 | F8: =IF(E8>0,C8+D8+1,C8+D8) -> 22 | G8: =IF(E8>0,500,0) -> 0 | K8: Faith | L8: =IF(OR(M8>10,M8<1),"X","") ->  | M8: =IF(L1<>0,M8,P8) -> 8 | N8: =VLOOKUP(horoscope_stat,Horoscope,12)+VLOOKUP(race_stat,Race,12) -> 0 | O8: =MAXA(M8+N8,1) -> 8 | P8: =TRUNC(RAND()*10)+1 -> 8 | Z8: Selected Attributes total less than 60 points.
A9: =IF(OR(OR(OR(OR(B4="X",B5="X"),B6="X"),B7="X"),B8="X"),"INVALID","") ->  | C9: =SUM(C4:C8)-60 -> 0 | D9: =HLOOKUP(size1,Build,IF(OR(LEFT(N10,1)="f",LEFT(N10,1)="F"),2,1)+1) -> 2 | F9: =HLOOKUP(size2,Stature,2*(VLOOKUP(race_stat,Race,17))) -> 68 | K9: =IF(OR(OR(OR(OR(L4="X",L5="X"),L6="X"),L7="X"),L8="X"),"INVALID","") ->  | Z9: Body or Stamia exceeds allowed range
A10: Charisma | F10: =ROUND((intelligence+wisdom+constitution+speech+appearance)/5,0)+E10 -> 10 | G10: =IF(E10>0,(VLOOKUP(F10-1,attrib_cost_table,2)-VLOOKUP(F10-E10-1,attrib_cost_table,2)),0) -> 0 | K10: Gender | M10: =IF(L1<>0,M10,P10) -> 34 | N10: =IF(gender_stat<61,"Male","Female") -> Male | P10: =TRUNC(RAND()*100)+1 -> 34 | Z10: Character attributes are correct.
A11: Charm | F11: =ROUND((intelligence+appearance+art+speech+dexterity)/5,0)+E11 -> 11 | G11: =IF(E11>0,(VLOOKUP(F11-1,attrib_cost_table,2)-VLOOKUP(F11-E11-1,attrib_cost_table,2)),0) -> 0 | K11: Race | L11: =IF(OR(M11>20,M11<2),"X","") ->  | M11: =IF(L1<>0,IF(L1=2,O11,M11),P11) -> 10 | N11: =VLOOKUP(race_stat,Race,2) -> Human | P11: =TRUNC(RAND()*10+1)+TRUNC(RAND()*10+1) -> 10
A12: Stamina | B12: =IF(stamina>stamina_max,"X","") ->  | C12: =2*constitution -> (10) | F12: =ROUND((constitution/4)+(faith/3),0)+E12 -> 4 | G12: =IF(E12>0,(VLOOKUP(F12-1,stamina_cost_table,2)-VLOOKUP(F12-E12-1,stamina_cost_table,2)),0) -> 0 | K12: Size | L12: =IF(OR(OR(OR(M12>10,M12<1),N12>20),N12<2),"X","") ->  | M12: =IF(L1<>0,M12,O12) -> 10 | N12: =IF(L1<>0,N12,P12) -> 13 | O12: =TRUNC(RAND()*10)+1 -> 10 | P12: =TRUNC(RAND()*10+1)+TRUNC(RAND()*10+1) -> 13 | Y12: Primary Attribute Cost Table | AC12: Secondary Attribute Cost Table | AG12: Body Attribute Cost Table | AK12: Stamina Attribute Cost Table | AO12: Professional Skill Cost Table
A13: Body | B13: =IF(body>body_max,"X","") ->  | C13: =(constitution+strength)*2 -> (42) | F13: =ROUND((intelligence/8)+(strength/3)+(constitution/3),0)+VLOOKUP(race_stat,Race,14)+HLOOKUP(size2+size_mod,Stature,42)+E13 -> 11 | G13: =IF(E13>0,(VLOOKUP(F13-1,body_cost_table,2)-VLOOKUP(F13-E13-1,body_cost_table,2)),0) -> 0 | K13: Horoscope | L13: =IF(OR(M13<1,M13>100),"X","") ->  | M13: =IF(L1<>0,M13,P13) -> 90 | N13: =LEFT(VLOOKUP(horoscope_stat,Horoscope,2),9) -> Pisces | P13: =TRUNC(RAND()*100)+1 -> 90 | Y13: Cost | Z13: Level | AA13: Exp Cost | AC13: Cost | AD13: Level | AE13: Exp Cost | AG13: Cost | AH13: Level | AI13: Exp Cost | AK13: Cost | AL13: Level | AM13: Exp Cost | AO13: Skill Level | AP13: Exp Cost
A14: Vigor | F14: =ROUND(carryingcap/200+dexterity/10+constitution/10,0) -> 4 | K14: Social Status | M14: =IF(L1<>0,M14,P14) -> 12 | P14: =TRUNC(RAND()*10+1)+TRUNC(RAND()*10+1) -> 12 | Y14: 75 | Z14: 1 | AA14: 0 | AC14: 10 | AD14: 1 | AE14: 0 | AG14: 15 | AH14: 1 | AI14: 0 | AK14: 15 | AL14: 1.00 | AM14: 0.00 | AO14: 0 | AP14: -500
A15: =IF(OR(B12="X",B13="X"),"INVALID","") ->  | K15: =IF(OR(OR(OR(OR(L11="X",L11="X"),L12="X"),L13="X"),L14="X"),"INVALID","") ->  | Z15: =Z14+1 -> 2 | AA15: =(Z15*attrib_cost)+AA14 -> 150 | AD15: =AD14+1 -> 2 | AE15: =(AD15*secondary_attrib_cost)+AE14 -> 20 | AH15: =AH14+1 -> 2 | AI15: =(AH15*body_cost)+AI14 -> 30 | AL15: =AL14+1 -> 2.00 | AM15: =(AL15*stamina_cost)+AM14 -> 30.00 | AO15: 1 | AP15: 0
A16: Stealth | F16: =ROUND((strength+(dexterity*2)+intelligence)/4,0)+E16+(IF(skill_cluster>4,IF(skill_cluster<8,2,0),0)) -> 16 | G16: =IF(E16>0,(VLOOKUP(F16-1,secondary_attrib_cost_table,2)-VLOOKUP(F16-E16-1,secondary_attrib_cost_table,2)),0) -> 0 | K16: Height | M16: =TRUNC(height_in_inches/12) -> 5' | N16: =MOD(height_in_inches,12) -> 8 | Z16: =Z15+1 -> 3 | AA16: =(Z16*attrib_cost)+AA15 -> 375 | AD16: =AD15+1 -> 3 | AE16: =(AD16*secondary_attrib_cost)+AE15 -> 50 | AH16: =AH15+1 -> 3 | AI16: =(AH16*body_cost)+AI15 -> 75 | AL16: =AL15+1 -> 3.00 | AM16: =(AL16*stamina_cost)+AM15 -> 75.00 | AO16: 2 | AP16: 100
A17: Combat | F17: =ROUND((constitution+(strength*2)+(dexterity*2))/5,0)+E17 -> 16 | G17: =IF(E17>0,(VLOOKUP(F17-1,secondary_attrib_cost_table,2)-VLOOKUP(F17-E17-1,secondary_attrib_cost_table,2)),0) -> 0 | K17: Weight | N17: =HLOOKUP(size2+size_mod,Stature,2*(VLOOKUP(race_stat,Race,17))+1) -> 190 | O17: lb | Z17: 4 | AA17: =(Z17*attrib_cost)+AA16 -> 675 | AD17: 4 | AE17: 90 | AH17: 4 | AI17: 135 | AL17: 4.00 | AM17: 135.00 | AO17: 3 | AP17: 300
A18: Magic | D18: =VLOOKUP(race_stat,Race,13) -> 0 | F18: =ROUND((intelligence+charm-ethics+5)/2,0)+D18+E18 -> 10 | G18: =IF(E18>0,(VLOOKUP(F18-1,secondary_attrib_cost_table,2)-VLOOKUP(F18-E18-1,secondary_attrib_cost_table,2)),0) -> 0 | K18: Carrying Cap. | N18: =ROUND((strength/10+constitution/100)*weight,0) -> 314 | O18: lb | Z18: 5 | AA18: 1050 | AD18: 5 | AE18: 140 | AH18: 5 | AI18: 210 | AL18: 5.00 | AM18: 210.00 | AO18: 4 | AP18: 600
A19: Miracle | F19: =ROUND((wisdom+charisma+faith-5)/2,0)+E19 -> 14 | G19: =IF(E19>0,(VLOOKUP(F19-1,secondary_attrib_cost_table,2)-VLOOKUP(F19-E19-1,secondary_attrib_cost_table,2)),0) -> 0 | K19: Age | N19: =VLOOKUP(race_stat,Race,15)+VLOOKUP(skill_cluster,Age,2) -> 29 | O19: yr | Z19: 6 | AA19: 1500 | AD19: 6 | AE19: 200 | AH19: 6 | AI19: 300 | AL19: 6.00 | AM19: 300.00 | AO19: 5 | AP19: 1000
Z20: 7 | AA20: 2025 | AD20: 7 | AE20: 270 | AH20: 7 | AI20: 405 | AL20: 7.00 | AM20: 405.00 | AO20: 6 | AP20: 1500
A21: Skill Cluster | C21: =VLOOKUP($E$21,skill_cluster_code,2) -> 4 | E21: Knight | K21: Money | M21: =INT((social_status*charisma*charm)/2) -> 660 | Z21: 8 | AA21: 2625 | AD21: 8 | AE21: 350 | AH21: 8 | AI21: 525 | AL21: 8.00 | AM21: 525.00 | AO21: 7 | AP21: 2100
Z22: 9 | AA22: 3300 | AD22: 9 | AE22: 440 | AH22: 9 | AI22: 660 | AL22: 9.00 | AM22: 660.00 | AO22: 8 | AP22: 2800
A23: Skills | B23: Skill Type | C23: Initial | D23: Skill Number | E23: Mods | F23: Level | G23: Exp Cost | K23: Experience | N23: Spell Affinity | Z23: 10 | AA23: 4050 | AD23: 10 | AE23: 540 | AH23: 10 | AI23: 810 | AL23: 10.00 | AM23: 810.00 | AO23: 9 | AP23: 3600
A24: =VLOOKUP(skill_cluster,Skills,3) -> Two Edge Blades | B24: =IF(A24>" ",VLOOKUP(A24,skill_by_name_table,5,FALSE),"") -> S | C24: =IF(skill1>" ",VLOOKUP(skill_cluster,Skills,4),"") -> 2 | D24: =IF(B24>"",VLOOKUP(A24,skill_by_name_table,4,FALSE),0) -> 23 | F24: =IF(C24="","",IF(C24=0,IF(E24>0,E24+N24,""),C24+E24+N24)) -> 2 | G24: =IF(F24<>"",(VLOOKUP(F24-N24,skill_cost_table,2)-VLOOKUP(C24,skill_cost_table,2)+IF(C24=0,IF(F24>1,100,0),0)),"") -> 0 | J24: 1 | K24: Exp Start | M24: =TRUNC(VLOOKUP(SUM(C4:D4),Sbonus,2)+VLOOKUP(SUM(C5:D5),Sbonus,3))+500 -> 675 | N24: =IF(D24>125,IF(VLOOKUP(D24,Spell_Skills_by_number,7)=skill_cluster,VLOOKUP(D24,Spell_Skills_by_number,8),0)+IF(VLOOKUP(D24,Spell_Skills_by_number,9)=skill_cluster,VLOOKUP(D24,Spell_Skills_by_number,10),0)+IF(VLOOKUP(D24,Spell_Skills_by_number,11)=skill_cluster,VLOOKUP(D24,Spell_Skills_by_number,12),0),0) -> 0 | Z24: =Z23+1 -> 11 | AA24: =(Z24*attrib_cost)+AA23 -> 4875 | AD24: =AD23+1 -> 11 | AE24: =(AD24*secondary_attrib_cost)+AE23 -> 650 | AH24: =AH23+1 -> 11 | AI24: =(AH24*body_cost)+AI23 -> 975 | AL24: =AL23+1 -> 11.00 | AM24: =(AL24*stamina_cost)+AM23 -> 975.00 | AO24: 10 | AP24: 4500
A25: =VLOOKUP(skill_cluster,Skills,5) -> Mounted Lance | B25: =IF(A25>" ",VLOOKUP(A25,skill_by_name_table,5,FALSE),"") -> S | C25: =IF(skill2>" ",VLOOKUP(skill_cluster,Skills,6),"") -> 1 | D25: =IF(B25>"",VLOOKUP(A25,skill_by_name_table,4,FALSE),0) -> 16 | F25: =IF(C25="","",IF(C25=0,IF(E25>0,E25+N25,""),C25+E25+N25)) -> 1 | G25: 0 | J25: =J24+1 -> 2 | K25: Exp Gained | N25: 0 | Z25: 12 | AA25: 5775 | AD25: 12 | AE25: 770 | AH25: 12 | AI25: 1155 | AL25: 12.00 | AM25: 1155.00 | AO25: 11 | AP25: 5500
A26: =VLOOKUP(skill_cluster,Skills,7) -> Single Edge Blades | B26: S | C26: =IF(skill3>" ",VLOOKUP(skill_cluster,Skills,8),"") -> 1 | D26: 20 | F26: 1 | G26: 0 | J26: =J25+1 -> 3 | K26: Exp Used | M26: =SUM(G3:G53) -> 0 | N26: 0 | Z26: 13 | AA26: 6750 | AD26: 13 | AE26: 900 | AH26: 13 | AI26: 1350 | AL26: 13.00 | AM26: 1350.00 | AO26: 12 | AP26: 6600
A27: =VLOOKUP(skill_cluster,Skills,9) -> Shields | B27: S | C27: =IF(skill4>" ",VLOOKUP(skill_cluster,Skills,10),"") -> 2 | D27: 19 | F27: 2 | G27: 0 | J27: 4 | K27: Exp UnUsed | M27: =SUM(M24:M25)-exp_used -> 675 | N27: 0 | Z27: 14 | AA27: 7800 | AD27: 14 | AE27: 1040 | AH27: 14 | AI27: 1560 | AL27: 14.00 | AM27: 1560.00 | AO27: 13 | AP27: 7800
A28: =VLOOKUP(skill_cluster,Skills,11) -> Dodge | B28: S | C28: =IF(skill5>" ",VLOOKUP(skill_cluster,Skills,12),"") -> 1 | D28: 32 | F28: 1 | G28: 0 | J28: 5 | N28: 0 | Z28: 15 | AA28: 8925 | AD28: 15 | AE28: 1190 | AH28: 15 | AI28: 1785 | AL28: 15.00 | AM28: 1785.00 | AO28: 14 | AP28: 9100
A29: =VLOOKUP(skill_cluster,Skills,13) -> Tackle | B29: S | C29: =IF(skill6>" ",VLOOKUP(skill_cluster,Skills,14),"") -> 1 | D29: 35 | F29: 1 | G29: 0 | J29: 6 | K29: General Information | N29: 0 | Z29: 16 | AA29: 10125 | AD29: 16 | AE29: 1350 | AH29: 16 | AI29: 2025 | AL29: 16.00 | AM29: 2025.00 | AO29: 15 | AP29: 10500
A30: =VLOOKUP(skill_cluster,Skills,15) -> Grapple | B30: S | C30: =IF(skill7>" ",VLOOKUP(skill_cluster,Skills,16),"") -> 1 | D30: 34 | F30: 1 | G30: =IF(F30<>"",(VLOOKUP(F30-N30,skill_cost_table,2)-VLOOKUP(C30,skill_cost_table,2)+IF(C30=0,IF(F30>1,100,0),0)),"") -> 0 | J30: 7 | K30: Hometown | N30: 0 | Z30: 17 | AA30: 11400 | AD30: 17 | AE30: 1520 | AH30: 17 | AI30: 2280 | AL30: 17.00 | AM30: 2280.00
A31: =VLOOKUP(skill_cluster,Skills,17) -> Protection from Evil (M) | B31: C | C31: =IF(skill8>" ",VLOOKUP(skill_cluster,Skills,18),"") -> 1 | D31: 228 | F31: 1 | G31: =IF(F31<>"",(VLOOKUP(F31-N31,skill_cost_table,2)-VLOOKUP(C31,skill_cost_table,2)+IF(C31=0,IF(F31>1,100,0),0)),"") -> 0 | J31: 8 | K31: Religion | N31: 0 | Z31: 18 | AA31: 12750 | AD31: 18 | AE31: 1700 | AH31: 18 | AI31: 2550 | AL31: 18.00 | AM31: 2550.00
A32: =VLOOKUP(skill_cluster,Skills,19) -> Protection from Magic (M) | B32: C | C32: =IF(skill9>" ",VLOOKUP(skill_cluster,Skills,20),"") -> 1 | D32: 229 | F32: 1 | G32: 0 | J32: 9 | K32: Affiliation | N32: 0 | Z32: 19 | AA32: 14175 | AD32: 19 | AE32: 1890 | AH32: 19 | AI32: 2835 | AL32: 19.00 | AM32: 2835.00
A33: =VLOOKUP(skill_cluster,Skills,21) -> Ritual Method | B33: M | C33: =IF(skill10>" ",VLOOKUP(skill_cluster,Skills,22),"") -> 1 | D33: 8 | F33: 1 | G33: 0 | J33: 10 | K33: Guild(s) | N33: 0 | Z33: 20 | AA33: 15675 | AD33: 20 | AE33: 2090 | AH33: 20 | AI33: 3135 | AL33: 20.00 | AM33: 3135.00
A34: =VLOOKUP(skill_cluster,Skills,23) -> Chirurgery | B34: S | C34: =IF(skill11>" ",VLOOKUP(skill_cluster,Skills,24),"") -> 1 | D34: 58 | F34: 1 | G34: 0 | J34: 11 | K34: Vision | L34: =VLOOKUP(race_stat,Race,18) -> Normal | N34: 0 | Z34: 21 | AA34: 17250 | AD34: 21 | AE34: 2300 | AH34: 21 | AI34: 3450 | AL34: 21.00 | AM34: 3450.00
A35: =VLOOKUP(skill_cluster,Skills,25) -> Military Engineer | B35: S | C35: =IF(skill12>" ",VLOOKUP(skill_cluster,Skills,26),"") -> 1 | D35: 65 | F35: 1 | G35: 0 | J35: 12 | K35: Handedness | N35: 0 | Z35: 22 | AA35: 18900 | AD35: 22 | AE35: 2520 | AH35: 22 | AI35: 3780 | AL35: 22.00 | AM35: 3780.00
A36: =VLOOKUP(skill_cluster,Skills,27) -> Service | B36: S | C36: =IF(skill13>" ",VLOOKUP(skill_cluster,Skills,28),"") -> 1 | D36: 125 | F36: 1 | G36: 0 | J36: 13 | K36: Complexion | N36: 0 | Z36: 23 | AA36: 20625 | AD36: 23 | AE36: 2750 | AH36: 23 | AI36: 4125 | AL36: 23.00 | AM36: 4125.00
A37: =VLOOKUP(skill_cluster,Skills,29) -> Armory | B37: S | C37: =IF(skill14>" ",VLOOKUP(skill_cluster,Skills,30),"") -> 1 | D37: 69 | F37: 1 | G37: 0 | J37: 14 | K37: Eye Color | N37: 0 | Z37: 24 | AA37: 22425 | AD37: 24 | AE37: 2990 | AH37: 24 | AI37: 4485 | AL37: 24.00 | AM37: 4485.00
A38: =VLOOKUP(skill_cluster,Skills,31) -> Riding | B38: S | C38: =IF(skill15>" ",VLOOKUP(skill_cluster,Skills,32),"") -> 1 | D38: 91 | F38: 1 | G38: 0 | J38: 15 | K38: Hair Color | N38: 0 | Z38: 25 | AA38: 24300 | AD38: 25 | AE38: 3240 | AH38: 25 | AI38: 4860 | AL38: 25.00 | AM38: 4860.00
A39: =VLOOKUP(skill_cluster,Skills,33) -> Finance | B39: S | C39: =IF(skill16>" ",VLOOKUP(skill_cluster,Skills,34),"") -> 1 | D39: 59 | F39: 1 | G39: 0 | J39: 16 | K39: Identifying Marks | N39: 0 | Z39: 26 | AA39: 26250 | AD39: 26 | AE39: 3500 | AH39: 26 | AI39: 5250 | AL39: 26.00 | AM39: 5250.00
A40: =VLOOKUP(skill_cluster,Skills,35) -> Falconry | B40: S | C40: =IF(skill17>" ",VLOOKUP(skill_cluster,Skills,36),"") -> 1 | D40: 77 | F40: 1 | G40: 0 | J40: 17 | N40: 0 | Z40: 27 | AA40: 28275 | AD40: 27 | AE40: 3770 | AH40: 27 | AI40: 5655 | AL40: 27.00 | AM40: 5655.00
A41: =VLOOKUP(skill_cluster,Skills,37) ->  | C41: =IF(skill18>" ",VLOOKUP(skill_cluster,Skills,38),"") ->  | D41: 0 | J41: 18 | N41: 0 | Z41: 28 | AA41: 30375 | AD41: 28 | AE41: 4050 | AH41: 28 | AI41: 6075 | AL41: 28.00 | AM41: 6075.00
A42: =VLOOKUP(skill_cluster,Skills,39) ->  | C42: =IF(skill19>" ",VLOOKUP(skill_cluster,Skills,40),"") ->  | D42: 0 | J42: 19 | N42: 0 | Z42: 29 | AA42: 32550 | AD42: 29 | AE42: 4340 | AH42: 29 | AI42: 6510 | AL42: 29.00 | AM42: 6510.00
A43: =VLOOKUP(skill_cluster,Skills,41) ->  | C43: =IF(skill20>" ",VLOOKUP(skill_cluster,Skills,42),"") ->  | D43: 0 | J43: 20 | N43: 0 | Z43: 30 | AA43: 34800 | AD43: 30 | AE43: 4640 | AH43: 30 | AI43: 6960 | AL43: 30.00 | AM43: 6960.00
C44: =IF(A44>" ",VLOOKUP(skill_cluster,Skills,42),"") ->  | D44: 0 | J44: 21 | N44: 0 | Z44: 31 | AA44: 37125 | AD44: 31 | AE44: 4950 | AH44: 31 | AI44: 7425 | AL44: 31.00 | AM44: 7425.00
C45: =IF(A45>" ",VLOOKUP(skill_cluster,Skills,42),"") ->  | D45: 0 | J45: 22 | N45: 0 | Z45: 32 | AA45: 39525 | AD45: 32 | AE45: 5270 | AH45: 32 | AI45: 7905 | AL45: 32.00 | AM45: 7905.00
D46: 0 | J46: 23 | N46: 0 | Z46: 33 | AA46: 42000 | AD46: 33 | AE46: 5600 | AH46: 33 | AI46: 8400 | AL46: 33.00 | AM46: 8400.00
D47: 0 | J47: 24 | N47: 0 | Z47: 34 | AA47: 44550 | AD47: 34 | AE47: 5940 | AH47: 34 | AI47: 8910 | AL47: 34.00 | AM47: 8910.00
D48: 0 | J48: 25 | N48: 0 | Z48: 35 | AA48: 47175 | AD48: 35 | AE48: 6290 | AH48: 35 | AI48: 9435 | AL48: 35.00 | AM48: 9435.00
D49: 0 | J49: 26 | N49: 0 | Z49: =Z42+1 -> 30 | AA49: 49425 | AD49: =AD42+1 -> 30 | AE49: 6590 | AH49: =AH42+1 -> 30 | AI49: 9885 | AL49: =AL42+1 -> 30.00 | AM49: 9885.00
D50: 0 | J50: 27 | N50: 0 | Z50: 31 | AA50: 51750 | AD50: =AD49+1 -> 31 | AE50: 6900 | AH50: =AH49+1 -> 31 | AI50: 10350 | AL50: =AL49+1 -> 31.00 | AM50: 10350.00
D51: 0 | J51: 28 | N51: 0 | Z51: 32 | AA51: 54150 | AD51: 32 | AE51: 7220 | AH51: 32 | AI51: 10830 | AL51: 32.00 | AM51: 10830.00
D52: 0 | J52: 29 | N52: 0 | Z52: 33 | AA52: 56625 | AD52: 33 | AE52: 7550 | AH52: 33 | AI52: 11325 | AL52: 33.00 | AM52: 11325.00
D53: 0 | J53: 30 | N53: 0 | Z53: 34 | AA53: 59175 | AD53: 34 | AE53: 7890 | AH53: 34 | AI53: 11835 | AL53: 34.00 | AM53: 11835.00
Z54: =Z53+1 -> 35 | AA54: =(Z54*attrib_cost)+AA53 -> 61800 | AD54: =AD53+1 -> 35 | AE54: =(AD54*secondary_attrib_cost)+AE53 -> 8240 | AH54: =AH53+1 -> 35 | AI54: =(AH54*body_cost)+AI53 -> 12360 | AL54: =AL53+1 -> 35.00 | AM54: =(AL54*stamina_cost)+AM53 -> 12360.00
Z55: 36 | AA55: 64500 | AD55: 36 | AE55: 8600 | AH55: 36 | AI55: 12900 | AL55: 36.00 | AM55: 12900.00
Z56: 37 | AA56: 67275 | AD56: 37 | AE56: 8970 | AH56: 37 | AI56: 13455 | AL56: 37.00 | AM56: 13455.00
Z57: 38 | AA57: 70125 | AD57: 38 | AE57: 9350 | AH57: 38 | AI57: 14025 | AL57: 38.00 | AM57: 14025.00
Z58: 39 | AA58: 73050 | AD58: 39 | AE58: 9740 | AH58: 39 | AI58: 14610 | AL58: 39.00 | AM58: 14610.00
Z59: 40 | AA59: 76050 | AD59: 40 | AE59: 10140 | AH59: 40 | AI59: 15210 | AL59: 40.00 | AM59: 15210.00
Z60: 41 | AA60: 79125 | AD60: 41 | AE60: 10550 | AH60: 41 | AI60: 15825 | AL60: 41.00 | AM60: 15825.00
Z61: 42 | AA61: 82275 | AD61: 42 | AE61: 10970 | AH61: 42 | AI61: 16455 | AL61: 42.00 | AM61: 16455.00
Z62: 43 | AA62: 85500 | AD62: 43 | AE62: 11400 | AH62: 43 | AI62: 17100 | AL62: 43.00 | AM62: 17100.00
Z63: 44 | AA63: 88800 | AD63: 44 | AE63: 11840 | AH63: 44 | AI63: 17760 | AL63: 44.00 | AM63: 17760.00
Z64: 45 | AA64: 92175 | AD64: 45 | AE64: 12290 | AH64: 45 | AI64: 18435 | AL64: 45.00 | AM64: 18435.00
Z65: 46 | AA65: 95625 | AD65: 46 | AE65: 12750 | AH65: 46 | AI65: 19125 | AL65: 46.00 | AM65: 19125.00
Z66: 47 | AA66: 99150 | AD66: 47 | AE66: 13220 | AH66: 47 | AI66: 19830 | AL66: 47.00 | AM66: 19830.00
Z67: 48 | AA67: 102750 | AD67: 48 | AE67: 13700 | AH67: 48 | AI67: 20550 | AL67: 48.00 | AM67: 20550.00
Z68: 49 | AA68: 106425 | AD68: 49 | AE68: 14190 | AH68: 49 | AI68: 21285 | AL68: 49.00 | AM68: 21285.00
Z69: 50 | AA69: 110175 | AD69: 50 | AE69: 14690 | AH69: 50 | AI69: 22035 | AL69: 50.00 | AM69: 22035.00
Z70: 51 | AA70: 114000 | AD70: 51 | AE70: 15200 | AH70: 51 | AI70: 22800 | AL70: 51.00 | AM70: 22800.00
Z71: 52 | AA71: 117900 | AD71: 52 | AE71: 15720 | AH71: 52 | AI71: 23580 | AL71: 52.00 | AM71: 23580.00
Z72: 53 | AA72: 121875 | AD72: 53 | AE72: 16250 | AH72: 53 | AI72: 24375 | AL72: 53.00 | AM72: 24375.00
Z73: 54 | AA73: 125925 | AD73: 54 | AE73: 16790 | AH73: 54 | AI73: 25185 | AL73: 54.00 | AM73: 25185.00
Z74: 55 | AA74: 130050 | AD74: 55 | AE74: 17340 | AH74: 55 | AI74: 26010 | AL74: 55.00 | AM74: 26010.00
Z75: 56 | AA75: 134250 | AD75: 56 | AE75: 17900 | AH75: 56 | AI75: 26850 | AL75: 56.00 | AM75: 26850.00
Z76: 57 | AA76: 138525 | AD76: 57 | AE76: 18470 | AH76: 57 | AI76: 27705 | AL76: 57.00 | AM76: 27705.00
Z77: 58 | AA77: 142875 | AD77: 58 | AE77: 19050 | AH77: 58 | AI77: 28575 | AL77: 58.00 | AM77: 28575.00
Z78: 59 | AA78: 147300 | AD78: 59 | AE78: 19640 | AH78: 59 | AI78: 29460 | AL78: 59.00 | AM78: 29460.00
Z79: 60 | AA79: 151800 | AD79: 60 | AE79: 20240 | AH79: 60 | AI79: 30360 | AL79: 60.00 | AM79: 30360.00
Z80: 61 | AA80: 156375 | AD80: 61 | AE80: =(AD80*secondary_attrib_cost)+AE79 -> 20850 | AH80: 61 | AI80: =(AH80*body_cost)+AI79 -> 31275 | AL80: 61.00 | AM80: =(AL80*stamina_cost)+AM79 -> 31275.00
Z81: =Z80+1 -> 62 | AA81: =(Z81*attrib_cost)+AA80 -> 161025 | AD81: 62 | AE81: 21470 | AH81: 62 | AI81: 32205 | AL81: 62.00 | AM81: 32205.00
Z82: 63 | AA82: 165750 | AD82: 63 | AE82: 22100 | AH82: 63 | AI82: 33150 | AL82: 63.00 | AM82: 33150.00
Z83: 64 | AA83: 170550 | AD83: 64 | AE83: 22740 | AH83: 64 | AI83: 34110 | AL83: 64.00 | AM83: 34110.00
Z84: 65 | AA84: 175425 | AD84: 65 | AE84: 23390 | AH84: 65 | AI84: 35085 | AL84: 65.00 | AM84: 35085.00
Z85: 66 | AA85: 180375 | AD85: 66 | AE85: 24050 | AH85: 66 | AI85: 36075 | AL85: 66.00 | AM85: 36075.00
Z86: 67 | AA86: 185400 | AD86: 67 | AE86: 24720 | AH86: 67 | AI86: 37080 | AL86: 67.00 | AM86: 37080.00
Z87: 68 | AA87: 190500 | AD87: 68 | AE87: 25400 | AH87: 68 | AI87: 38100 | AL87: 68.00 | AM87: 38100.00
Z88: 69 | AA88: 195675 | AD88: 69 | AE88: 26090 | AH88: 69 | AI88: 39135 | AL88: 69.00 | AM88: 39135.00
Z89: 70 | AA89: 200925 | AD89: 70 | AE89: 26790 | AH89: 70 | AI89: 40185 | AL89: 70.00 | AM89: 40185.00

Sheet Equipment List
B1: EQUIPMENT TABLE
A2: Item | B2: Body Armour | C2: Class | D2: Cost | E2: Weight | F2: Dodge Mod | AA2: Body Armour | AB2: Item
A3: 1 | B3: None | C3: 0 | D3: 0 | E3: 0 | F3: -1 | AA3: Banded | AB3: 7
A4: =A3+1 -> 2 | B4: Leather | C4: 1 | D4: 10 | E4: 0.1 | F4: -1 | AA4: Chain and Plate | AB4: 12
A5: =A4+1 -> 3 | B5: Cuir-Boulli | C5: 2 | D5: 45 | E5: 0.15 | F5: 0 | AA5: Chain Mail | AB5: 8
A6: 4 | B6: Quilt | C6: 2 | D6: 60 | E6: 0.1 | F6: 0 | AA6: Cuirass | AB6: 9
A7: 5 | B7: Scale | C7: 3 | D7: 50 | E7: 0.2 | F7: 0 | AA7: Cuir-Boulli | AB7: 3
A8: 6 | B8: Splint | C8: 3 | D8: 65 | E8: 0.2 | F8: 0 | AA8: Leather | AB8: 2
A9: 7 | B9: Banded | C9: 4 | D9: 80 | E9: 0.25 | F9: 0 | AA9: Mail Armour | AB9: 10
A10: 8 | B10: Chain Mail | C10: 5 | D10: 150 | E10: 0.25 | F10: 0 | AA10: None | AB10: 1
A11: 9 | B11: Cuirass | C11: 6 | D11: 200 | E11: 0.3 | F11: 0 | AA11: Plate | AB11: 13
A12: 10 | B12: Mail Armour | C12: 7 | D12: 550 | E12: 0.4 | F12: 0 | AA12: Quilt | AB12: 4
A13: =A12+1 -> 11 | B13: Superior Mail | C13: 8 | D13: 750 | E13: 0.45 | F13: 0 | AA13: Scale | AB13: 5
A14: =A13+1 -> 12 | B14: Chain and Plate | C14: 9 | D14: 1000 | E14: 0.6 | F14: 0 | AA14: Splint | AB14: 6
A15: =A14+1 -> 13 | B15: Plate | C15: 10 | D15: 2000 | E15: 0.75 | F15: 1 | AA15: Superior Mail | AB15: 11
B16: Surcoats | C16: Class | D16: Cost | E16: Weight | F16: Dodge Mod | AA16: Surcoats | AB16: Item
A17: =A15+1 -> 14 | B17: None | C17: 0 | D17: 0 | E17: 0 | F17: 0 | AA17: None | AB17: 14
A18: =A17+1 -> 15 | B18: Quilt Surcoat | C18: +1 | D18: 70 | E18: 0.1 | F18: 0 | AA18: Quilt Surcoat | AB18: 15
A19: =A18+1 -> 16 | B19: Splint Surcoat | C19: +2 | D19: 75 | E19: 0.25 | F19: 0 | AA19: Splint Surcoat | AB19: 16
A21: Item | B21: Head Armour | C21: Class | D21: Cost | E21: Weight | F21: Combat Mod | AA21: Head Armour | AB21: Item
A22: =A19+1 -> 17 | B22: None | C22: 0 | D22: 0 | E22: 0 | F22: -10 | AA22: Bascinet | AB22: 22
A23: =A22+1 -> 18 | B23: Cuir-Boulli | C23: 2 | D23: 15 | E23: 2 | F23: 0 | AA23: Classical Helm | AB23: 21
A24: 19 | B24: Conical Helm | C24: 3 | D24: 35 | E24: 3 | F24: 0 | AA24: Conical Helm | AB24: 19
A25: 20 | B25: Norman Helm | C25: 4 | D25: 40 | E25: 4 | F25: 0 | AA25: Crusader's Helm | AB25: 23
A26: 21 | B26: Classical Helm | C26: 5 | D26: 45 | E26: 4 | F26: 0 | AA26: Cuir-Boulli | AB26: 18
A27: 22 | B27: Bascinet | C27: 6 | D27: 55 | E27: 5 | F27: 0 | AA27: None | AB27: 17
A28: 23 | B28: Crusader's Helm | C28: 7 | D28: 90 | E28: 9 | F28: -5 | AA28: Norman Helm | AB28: 20
A29: 24 | B29: Visored Bascinet | C29: 8 | D29: 150 | E29: 10 | F29: -15 | AA29: Visored Bascinet | AB29: 24
B30: Coifs | C30: Class | D30: Cost | E30: Weight | F30: Combat Mod | AA30: Coifs | AB30: Item
A31: =A29+1 -> 25 | B31: None | C31: 0 | D31: 0 | E31: 0 | F31: 0 | AA31: Chain Coif | AB31: 27
A32: =A31+1 -> 26 | B32: Leather Hood | C32: 1 | D32: 5 | E32: 2 | F32: 0 | AA32: Leather Hood | AB32: 26
A33: =A32+1 -> 27 | B33: Chain Coif | C33: 3 | D33: 35 | E33: 3 | F33: 0 | AA33: None | AB33: 25
B35: Weapons
A36: Item | B36: Very Light Weapons | C36: Class | D36: Cost | E36: Weight | F36: Blows | G36: Length | H36: 0 | I36: 1 | J36: 2 | K36: 3 | L36: 4 | M36: 5 | N36: 6 | O36: 7 | P36: 8 | Q36: 9 | R36: 10 | S36: Damage | T36: Type | U36: VL | V36: L | W36: M | X36: H | Y36: P | Z36: Skill | AA36: Weapons | AB36: Item
A37: =A33+1 -> 28 | B37: Dagger | C37: VL | D37: 36 | E37: 2 | F37: 4 | G37: 1.5 | H37: 20 | I37: 10 | J37: 5 | K37: 0 | L37: -5 | M37: -10 | N37: -15 | O37: -20 | P37: -20 | Q37: -25 | R37: -30 | S37: 1d6 | T37: P | Z37: Knives | AA37: Bastard Sword | AB37: 56 | AD37: Axes | AE37: Axes | AF37: Battle Axe
A38: =A37+1 -> 29 | B38: Knife | C38: VL | D38: 18 | E38: 2 | F38: 4 | G38: 1.5 | H38: 20 | I38: 10 | J38: 5 | K38: 0 | L38: -5 | M38: -10 | N38: -15 | O38: -20 | P38: -20 | Q38: -25 | R38: -30 | S38: 1d6 | T38: C | Z38: Knives | AA38: Battle Axe | AB38: 53 | AD38: Cudgels | AE38: Axes | AF38: Norman War Axe
A39: =A38+1 -> 30 | B39: Sickle | C39: VL | D39: 35 | E39: 2 | F39: 4 | G39: 1 | H39: 20 | I39: 10 | J39: 5 | K39: 0 | L39: -5 | M39: -10 | N39: -15 | O39: -20 | P39: -20 | Q39: -25 | R39: -30 | S39: 1d3 | T39: C | Z39: Knives | AA39: Broadsword | AB39: 57 | AD39: Flails | AE39: Axes | AF39: Woodsman's Axe
A40: 31 | B40: Foil | C40: VL | D40: 150 | E40: 2 | F40: 4 | G40: 3.5 | H40: 55 | I40: 40 | J40: 25 | K40: 15 | L40: 5 | M40: 0 | N40: -20 | O40: -15 | P40: -20 | Q40: -25 | R40: -30 | S40: 1d8 | T40: P | Z40: Foil | AA40: Bullwhip | AB40: 39 | AD40: Foil | AE40: Axes | AF40: Halberd
A41: 32 | B41: Hatchet | C41: VL | D41: 15 | E41: 2 | F41: 3 | G41: 3 | H41: 20 | I41: 15 | J41: 5 | K41: 0 | L41: -5 | M41: -10 | N41: -15 | O41: -20 | P41: -25 | Q41: -30 | R41: -35 | S41: 1d12 | T41: B | Z41: Light Axes | AA41: Combat Lance | AB41: 71 | AD41: Hammers | AE41: Axes | AF41: Two-Handed Battle Axe
A42: 33 | B42: Light Axe | C42: VL | D42: 15 | E42: 2 | F42: 3 | G42: 3 | H42: 20 | I42: 15 | J42: 5 | K42: 0 | L42: -5 | M42: -10 | N42: -15 | O42: -20 | P42: -25 | Q42: -30 | R42: -35 | S42: 1d12 | T42: C | Z42: Light Axes | AA42: Conteux de Breche | AB42: 79 | AD42: Knives | AE42: Cudgels | AF42: Light Club
A43: 34 | B43: Light Club | C43: VL | D43: 1 | E43: 3 | F43: 3 | G43: 3 | H43: 20 | I43: 15 | J43: 5 | K43: 0 | L43: -5 | M43: -10 | N43: -15 | O43: -20 | P43: -25 | Q43: -30 | R43: -35 | S43: 1d10 | T43: B | Z43: Cudgels | AA43: Cudgel | AB43: 41 | AD43: Light Axes | AE43: Cudgels | AF43: Cudgel
A44: 35 | B44: Light Sword | C44: VL | D44: 100 | E44: 5 | F44: 3 | G44: 5 | H44: 35 | I44: 30 | J44: 25 | K44: 15 | L44: 10 | M44: 5 | N44: -5 | O44: -15 | P44: -20 | Q44: -25 | R44: -30 | S44: 2d6 | T44: C | Z44: Short Blades | AA44: Cutlass | AB44: 43 | AD44: Mounted Lance | AE44: Cudgels | AF44: War Pick
A45: 36 | B45: Rapier | C45: VL | D45: 100 | E45: 5 | F45: 3 | G45: 4 | H45: 50 | I45: 40 | J45: 30 | K45: 20 | L45: 10 | M45: 5 | N45: 0 | O45: -5 | P45: -15 | Q45: -20 | R45: -25 | S45: 1d10 | T45: C | Z45: Short Blades | AA45: Dagger | AB45: 28 | AD45: Polearms | AE45: Cudgels | AF45: Heavy Club
A46: 37 | B46: Short Sword | C46: VL | D46: 65 | E46: 5 | F46: 3 | G46: 3 | H46: 30 | I46: 25 | J46: 20 | K46: 10 | L46: 0 | M46: -5 | N46: -10 | O46: -15 | P46: -15 | Q46: -20 | R46: -25 | S46: 2d6 | T46: C | Z46: Short Blades | AA46: Dwarvish Warhammer | AB46: 58 | AD46: Short Blades | AE46: Cudgels | AF46: Mace
AA47: Fauchard | AB47: 80 | AD47: Single Edge Blades | AE47: Flails | AF47: Flail
A48: Item | B48: Light Weapons | C48: Class | D48: Cost | E48: Weight | F48: Blows | G48: Length | H48: 0 | I48: 1 | J48: 2 | K48: 3 | L48: 4 | M48: 5 | N48: 6 | O48: 7 | P48: 8 | Q48: 9 | R48: 10 | S48: Damage | T48: Type | U48: VL | V48: L | W48: M | X48: H | Y48: P | Z48: Skill | AA48: Fauchard Fork | AB48: 81 | AD48: Spears | AE48: Flails | AF48: Morning Star
A49: =A46+1 -> 38 | B49: Net | C49: L | D49: 10 | E49: 5 | F49: 1 | G49: 5 | H49: 5 | I49: 5 | J49: 5 | K49: 10 | L49: 25 | M49: 15 | N49: 25 | O49: 25 | P49: 30 | Q49: 35 | R49: 40 | Z49: Throwing Weapons | AA49: Flail | AB49: 67 | AD49: Staves | AE49: Flails | AF49: Two-Handed Flail
A50: =A49+1 -> 39 | B50: Bullwhip | C50: L | D50: 48 | E50: 3 | F50: 3 | G50: 12 | H50: 50 | I50: 50 | J50: 40 | K50: 25 | L50: 10 | M50: -5 | N50: -10 | O50: -15 | P50: -25 | Q50: -30 | R50: -30 | S50: 2d6 | T50: B | Z50: Whips | AA50: Foil | AB50: 31 | AD50: Throwing Weapons | AE50: Foil | AF50: Foil
A51: 40 | B51: Whipknife | C51: L | D51: 32 | E51: 4 | F51: 3 | G51: 8 | H51: 50 | I51: 50 | J51: 40 | K51: 25 | L51: 10 | M51: -5 | N51: -10 | O51: -15 | P51: -20 | Q51: -25 | R51: -30 | S51: 3d6 | T51: C | Z51: Whips | AA51: Footman's Lance | AB51: 89 | AD51: Two Edge Blades | AE51: Hammers | AF51: Dwarvish Warhammer
A52: 41 | B52: Cudgel | C52: L | D52: 5 | E52: 12 | F52: 3 | G52: 3.5 | H52: 20 | I52: 15 | J52: 5 | K52: 0 | L52: -5 | M52: -10 | N52: -15 | O52: -20 | P52: -25 | Q52: -30 | R52: -30 | S52: 2d6 | T52: B | Z52: Cudgels | AA52: Guisarme/Bill | AB52: 82 | AD52: Whips | AE52: Hammers | AF52: Warhammer
A53: 42 | B53: Tomahawk | C53: L | D53: 3 | E53: 2 | F53: 3 | G53: 3.5 | H53: 20 | I53: 15 | J53: 5 | K53: 0 | L53: -5 | M53: -10 | N53: -15 | O53: -20 | P53: -25 | Q53: -25 | R53: -30 | S53: 2d6 | T53: B | Z53: Light Axes | AA53: Halberd | AB53: 68 | AE53: Hammers | AF53: Maul
A54: 43 | B54: Cutlass | C54: L | D54: 100 | E54: 7 | F54: 3 | G54: 4 | H54: 35 | I54: 30 | J54: 20 | K54: 15 | L54: 10 | M54: 5 | N54: 0 | O54: -5 | P54: -10 | Q54: -15 | R54: -15 | S54: 1d12 | T54: C | Z54: Single Edge Blades | AA54: Hand-and-a-half Sword | AB54: 69 | AE54: Hammers | AF54: Two-Handed Warhammer
A55: 44 | B55: Saber | C55: L | D55: 100 | E55: 7 | F55: 3 | G55: 4 | H55: 35 | I55: 30 | J55: 20 | K55: 15 | L55: 15 | M55: 5 | N55: 0 | O55: -5 | P55: -10 | Q55: -15 | R55: -15 | S55: 1d12 | T55: C | Z55: Single Edge Blades | AA55: Hatchet | AB55: 32 | AE55: Knives | AF55: Dagger
A56: 45 | B56: Javelin (thrust) | C56: L | D56: 70 | E56: 3.5 | F56: 3 | G56: 7 | H56: 30 | I56: 25 | J56: 20 | K56: 15 | L56: 10 | M56: 0 | N56: -5 | O56: -10 | P56: -10 | Q56: -15 | R56: -15 | S56: 1d8 | T56: P | Z56: Spears | AA56: Heavy Club | AB56: 59 | AE56: Knives | AF56: Knife
A57: 46 | B57: Longsword | C57: L | D57: 100 | E57: 10 | F57: 3 | G57: 7 | H57: 30 | I57: 25 | J57: 20 | K57: 15 | L57: 10 | M57: 5 | N57: -5 | O57: -5 | P57: -10 | Q57: -15 | R57: -20 | S57: 2d6 | T57: C | Z57: Single Edge Blades | AA57: Hunting Spear | AB57: 60 | AE57: Knives | AF57: Sickle
A58: 47 | B58: Normal Sword | C58: L | D58: 100 | E58: 7 | F58: 3 | G58: 5 | H58: 35 | I58: 25 | J58: 20 | K58: 15 | L58: 10 | M58: 0 | N58: -5 | O58: -10 | P58: -10 | Q58: -15 | R58: -15 | S58: 2d6 | T58: C | Z58: Single Edge Blades | AA58: Ironshod Quarterstaff | AB58: 65 | AE58: Light Axes | AF58: Hatchet
A59: 48 | B59: Pitchfork | C59: L | D59: 3 | E59: 2 | F59: 3 | G59: 6 | H59: 20 | I59: 15 | J59: 10 | K59: 5 | L59: 0 | M59: -5 | N59: -15 | O59: -20 | P59: -25 | Q59: -30 | R59: -35 | S59: 2d6 | T59: P | Z59: Polearms | AA59: Javelin (thrust) | AB59: 45 | AE59: Light Axes | AF59: Light Axe
A60: 49 | B60: Scimitar | C60: L | D60: 100 | E60: 7 | F60: 4 | G60: 4 | H60: 35 | I60: 30 | J60: 20 | K60: 15 | L60: 10 | M60: 5 | N60: 0 | O60: -5 | P60: -10 | Q60: -15 | R60: -20 | S60: 1d12 | T60: C | Z60: Single Edge Blades | AA60: Jousting Lance | AB60: 70 | AE60: Light Axes | AF60: Tomahawk
A61: 50 | B61: Scimitar (Goblinoid) | C61: L | D61: Found | E61: 7 | F61: 3 | G61: 3 | H61: 30 | I61: 25 | J61: 15 | K61: 10 | L61: 5 | M61: 0 | N61: -5 | O61: -10 | P61: -15 | Q61: -15 | R61: -20 | S61: 1d12 | T61: C | Z61: Single Edge Blades | AA61: Knife | AB61: 29 | AE61: Mounted Lance | AF61: Jousting Lance
A62: 51 | B62: Staff | C62: L | D62: 24 | E62: 4 | F62: 3 | G62: 8 | H62: 40 | I62: 35 | J62: 25 | K62: 15 | L62: 15 | M62: -5 | N62: -10 | O62: -15 | P62: -25 | Q62: -35 | R62: -40 | S62: 1d8 | T62: B | U62: 10 | V62: 5 | W62: 5 | Z62: Staves | AA62: Light Axe | AB62: 33 | AE62: Mounted Lance | AF62: Combat Lance
A63: 52 | B63: War Pick | C63: L | D63: 50 | E63: 7 | F63: 4 | G63: 5 | H63: 35 | I63: 30 | J63: 20 | K63: 20 | L63: 20 | M63: 20 | N63: 20 | O63: 10 | P63: 0 | Q63: -10 | R63: -15 | S63: 2d6 | T63: P | Z63: Cudgels | AA63: Light Club | AB63: 34 | AE63: Polearms | AF63: Pitchfork
AA64: Light Sword | AB64: 35 | AE64: Polearms | AF64: Conteux de Breche
A65: Item | B65: Medium Weapons | C65: Class | D65: Cost | E65: Weight | F65: Blows | G65: Length | H65: 0 | I65: 1 | J65: 2 | K65: 3 | L65: 4 | M65: 5 | N65: 6 | O65: 7 | P65: 8 | Q65: 9 | R65: 10 | S65: Damage | T65: Type | U65: VL | V65: L | W65: M | X65: H | Y65: P | Z65: Skill | AA65: Long Pike | AB65: 85 | AE65: Polearms | AF65: Fauchard
A66: =A63+1 -> 53 | B66: Battle Axe | C66: M | D66: 50 | E66: 7 | F66: 3 | G66: 6.5 | H66: 25 | I66: 25 | J66: 25 | K66: 20 | L66: 20 | M66: 20 | N66: 10 | O66: 0 | P66: -5 | Q66: -10 | R66: -10 | S66: 1d12 | T66: C | Z66: Axes | AA66: Long Spear | AB66: 61 | AE66: Polearms | AF66: Fauchard Fork
A67: =A66+1 -> 54 | B67: Norman War Axe | C67: M | D67: 60 | E67: 10 | F67: 3 | G67: 5 | H67: 25 | I67: 20 | J67: 15 | K67: 15 | L67: 15 | M67: 5 | N67: 0 | O67: 0 | P67: -5 | Q67: -10 | R67: -10 | S67: 2d6 | T67: C | Z67: Axes | AA67: Longsword | AB67: 46 | AE67: Polearms | AF67: Guisarme/Bill
A68: 55 | B68: Woodsman's Axe | C68: M | D68: 30 | E68: 5 | F68: 3 | G68: 4 | H68: 25 | I68: 20 | J68: 15 | K68: 10 | L68: 10 | M68: 5 | N68: 0 | O68: -5 | P68: -10 | Q68: -10 | R68: -10 | S68: 2d6 | T68: C | Z68: Axes | AA68: Lucerne Hammer | AB68: 83 | AE68: Polearms | AF68: Lucerne Hammer
A69: 56 | B69: Bastard Sword | C69: M | D69: 150 | E69: 15 | F69: 2 | G69: 7 | H69: 25 | I69: 20 | J69: 15 | K69: 15 | L69: 15 | M69: 10 | N69: 10 | O69: 5 | P69: 0 | Q69: -5 | R69: -10 | S69: 2d8 | T69: C | Z69: Two Edge Blades | AA69: Mace | AB69: 63 | AE69: Polearms | AF69: Partisan
A70: 57 | B70: Broadsword | C70: M | D70: 150 | E70: 10 | F70: 3 | G70: 7 | H70: 30 | I70: 30 | J70: 25 | K70: 20 | L70: 15 | M70: 10 | N70: 5 | O70: 5 | P70: 0 | Q70: -10 | R70: -10 | S70: 2d6 | T70: C | Z70: Two Edge Blades | AA70: Maul | AB70: 72 | AE70: Polearms | AF70: Long Pike
A71: 58 | B71: Dwarvish Warhammer | C71: M | D71: 150 | E71: 10 | F71: 4 | G71: 4 | H71: 20 | I71: 20 | J71: 15 | K71: 15 | L71: 10 | M71: 5 | N71: 5 | O71: 0 | P71: -5 | Q71: -10 | R71: -10 | S71: 2d6 | T71: B | Z71: Hammers | AA71: Morning Star | AB71: 73 | AE71: Polearms | AF71: Normal Pike
A72: 59 | B72: Heavy Club | C72: M | D72: 3 | E72: 20 | F72: 3 | G72: 4 | H72: 25 | I72: 20 | J72: 15 | K72: 10 | L72: 10 | M72: 0 | N72: -5 | O72: -10 | P72: -15 | Q72: -20 | R72: -20 | S72: 2d6 | T72: B | Z72: Cudgels | AA72: Net | AB72: 38 | AE72: Polearms | AF72: Short Pike
A73: 60 | B73: Hunting Spear | C73: M | D73: 40 | E73: 4 | F73: 3 | G73: 8 | H73: 25 | I73: 25 | J73: 20 | K73: 15 | L73: 5 | M73: 0 | N73: -5 | O73: -10 | P73: -15 | Q73: -25 | R73: -30 | S73: 2d6 | T73: P | Z73: Spears | AA73: Normal Pike | AB73: 86 | AE73: Polearms | AF73: Spontoon
A74: 61 | B74: Long Spear | C74: M | D74: 75 | E74: 7.5 | F74: 2 | G74: 15 | H74: 25 | I74: 25 | J74: 20 | K74: 15 | L74: 15 | M74: 10 | N74: 5 | O74: 0 | P74: 5 | Q74: -10 | R74: -15 | S74: 1d12 | T74: P | Z74: Spears | AA74: Normal Spear | AB74: 62 | AE74: Polearms | AF74: Footman's Lance
A75: 62 | B75: Normal Spear | C75: M | D75: 32 | E75: 4 | F75: 3 | G75: 8 | H75: 30 | I75: 25 | J75: 20 | K75: 15 | L75: 10 | M75: 5 | N75: 0 | O75: -5 | P75: -10 | Q75: -15 | R75: -20 | S75: 2d6 | T75: P | Z75: Spears | AA75: Normal Sword | AB75: 47 | AE75: Polearms | AF75: Voulge
A76: 63 | B76: Mace | C76: M | D76: 60 | E76: 10 | F76: 3 | G76: 4 | H76: 15 | I76: 15 | J76: 15 | K76: 10 | L76: 10 | M76: 15 | N76: 10 | O76: 0 | P76: -5 | Q76: -10 | R76: -10 | S76: 2d6 | T76: B | Z76: Cudgels | AA76: Norman War Axe | AB76: 54 | AE76: Polearms | AF76: War Scythe
A77: 64 | B77: Quarterstaff | C77: M | D77: 32 | E77: 4 | F77: 5 | G77: 8 | H77: 40 | I77: 35 | J77: 25 | K77: 15 | L77: 15 | M77: -5 | N77: -10 | O77: -15 | P77: -25 | Q77: -30 | R77: -30 | S77: 1d8 | T77: B | U77: 10 | V77: 10 | W77: 5 | X77: 5 | Z77: Staves | AA77: Partisan | AB77: 84 | AE77: Short Blades | AF77: Light Sword
A78: 65 | B78: Ironshod Quarterstaff | C78: M | D78: 60 | E78: 6 | F78: 5 | G78: 6 | H78: 40 | I78: 35 | J78: 25 | K78: 20 | L78: 20 | M78: 0 | N78: -5 | O78: -10 | P78: -20 | Q78: -25 | R78: -30 | S78: 1d10 | T78: B | U78: 10 | V78: 10 | W78: 10 | X78: 5 | Z78: Staves | AA78: Pitchfork | AB78: 48 | AE78: Short Blades | AF78: Rapier
A79: 66 | B79: Warhammer | C79: M | D79: 50 | E79: 10 | F79: 3 | G79: 5 | H79: 15 | I79: 15 | J79: 15 | K79: 10 | L79: 10 | M79: 10 | N79: 5 | O79: 5 | P79: 0 | Q79: -5 | R79: -10 | S79: 2d6 | T79: B | Z79: Hammers | AA79: Quarterstaff | AB79: 64 | AE79: Short Blades | AF79: Short Sword
AA80: Rapier | AB80: 36 | AE80: Single Edge Blades | AF80: Cutlass
A81: Item | B81: Heavy Weapons | C81: Class | D81: Cost | E81: Weight | F81: Blows | G81: Length | H81: 0 | I81: 1 | J81: 2 | K81: 3 | L81: 4 | M81: 5 | N81: 6 | O81: 7 | P81: 8 | Q81: 9 | R81: 10 | S81: Damage | T81: Type | U81: VL | V81: L | W81: M | X81: H | Y81: P | Z81: Skill | AA81: Saber | AB81: 44 | AE81: Single Edge Blades | AF81: Saber
A82: =A79+1 -> 67 | B82: Flail | C82: H | D82: 150 | E82: 15 | F82: 3 | G82: 6 | H82: 30 | I82: 30 | J82: 30 | K82: 30 | L82: 30 | M82: 20 | N82: 15 | O82: 10 | P82: 0 | Q82: 0 | R82: -5 | S82: 1d12 | T82: B | U82: 10 | V82: 5 | W82: 5 | Z82: Flails | AA82: Scimitar | AB82: 49 | AE82: Single Edge Blades | AF82: Longsword
A83: =A82+1 -> 68 | B83: Halberd | C83: H | D83: 100 | E83: 18 | F83: 3 | G83: 7 | H83: 35 | I83: 35 | J83: 35 | K83: 35 | L83: 35 | M83: 30 | N83: 25 | O83: 15 | P83: 5 | Q83: 0 | R83: -5 | S83: 4d6 | T83: C | U83: 10 | V83: 5 | W83: 5 | Z83: Axes | AA83: Scimitar (Goblinoid) | AB83: 50 | AE83: Single Edge Blades | AF83: Normal Sword
A84: 69 | B84: Hand-and-a-half Sword | C84: H | D84: 175 | E84: 15 | F84: 2 | G84: 6 | H84: 35 | I84: 30 | J84: 25 | K84: 20 | L84: 15 | M84: 10 | N84: 15 | O84: 0 | P84: -5 | Q84: -10 | R84: -15 | S84: 2d8 | T84: C | Z84: Two Edge Blades | AA84: Short Pike | AB84: 87 | AE84: Single Edge Blades | AF84: Scimitar
A85: 70 | B85: Jousting Lance | C85: H | D85: 15 | E85: 10 | F85: 1 | G85: 16 | H85: 20 | I85: 20 | J85: 20 | K85: 20 | L85: 20 | M85: 20 | N85: 20 | O85: 20 | P85: 20 | Q85: 20 | R85: 20 | S85: 2+ | T85: B | Z85: Mounted Lance | AA85: Short Sword | AB85: 37 | AE85: Single Edge Blades | AF85: Scimitar (Goblinoid)
A86: 71 | B86: Combat Lance | C86: H | D86: 50 | E86: 18 | F86: 1 | G86: 16 | H86: 30 | I86: 30 | J86: 30 | K86: 30 | L86: 30 | M86: 30 | N86: 30 | O86: 30 | P86: 30 | Q86: 30 | R86: 30 | S86: 10+ | T86: P | Z86: Mounted Lance | AA86: Sickle | AB86: 30 | AE86: Single Edge Blades | AF86: Two-Handed Sword
A87: 72 | B87: Maul | C87: H | D87: 75 | E87: 12 | F87: 2 | G87: 8 | H87: 20 | I87: 20 | J87: 20 | K87: 20 | L87: 20 | M87: 25 | N87: 20 | O87: 15 | P87: 10 | Q87: 5 | R87: -10 | S87: 2d10 | T87: B | Z87: Hammers | AA87: Spontoon | AB87: 88 | AE87: Spears | AF87: Javelin (thrust)
A88: 73 | B88: Morning Star | C88: H | D88: 175 | E88: 13 | F88: 2 | G88: 6 | H88: 35 | I88: 35 | J88: 30 | K88: 30 | L88: 30 | M88: 25 | N88: 15 | O88: 10 | P88: 5 | Q88: 5 | R88: 0 | S88: 2d8 | T88: B | U88: 10 | V88: 5 | W88: 5 | Z88: Flails | AA88: Staff | AB88: 51 | AE88: Spears | AF88: Hunting Spear
A89: 74 | B89: Two-Handed Battle Axe | C89: H | D89: 175 | E89: 15 | F89: 2 | G89: 7 | H89: 25 | I89: 20 | J89: 15 | K89: 15 | L89: 15 | M89: 20 | N89: 20 | O89: 10 | P89: 5 | Q89: 0 | R89: -5 | S89: 4d6 | T89: C | Z89: Axes | AA89: Tomahawk | AB89: 42 | AE89: Spears | AF89: Long Spear
A90: 75 | B90: Two-Handed Broadsword | C90: H | D90: 150 | E90: 10 | F90: 2 | G90: 7 | H90: 25 | I90: 25 | J90: 25 | K90: 20 | L90: 15 | M90: 25 | N90: 20 | O90: 15 | P90: 10 | Q90: 0 | R90: 0 | S90: 2d10 | T90: C | Z90: Two Edge Blades | AA90: Two-Handed Battle Axe | AB90: 74 | AE90: Spears | AF90: Normal Spear
A91: 76 | B91: Two-Handed Flail | C91: H | D91: 200 | E91: 18 | F91: 2 | G91: 9 | H91: 30 | I91: 25 | J91: 25 | K91: 20 | L91: 20 | M91: 20 | N91: 20 | O91: 15 | P91: 10 | Q91: 5 | R91: 0 | S91: 4d6 | T91: B | Z91: Flails | AA91: Two-Handed Broadsword | AB91: 75 | AE91: Staves | AF91: Staff
A92: 77 | B92: Two-Handed Sword | C92: H | D92: 150 | E92: 18 | F92: 2 | G92: 7 | H92: 25 | I92: 25 | J92: 25 | K92: 15 | L92: 10 | M92: 25 | N92: 20 | O92: 15 | P92: 10 | Q92: 0 | R92: -5 | S92: 2d10 | T92: C | Z92: Single Edge Blades | AA92: Two-Handed Flail | AB92: 76 | AE92: Staves | AF92: Quarterstaff
A93: 78 | B93: Two-Handed Warhammer | C93: H | D93: 100 | E93: 12 | F93: 2 | G93: 6 | H93: 30 | I93: 20 | J93: 20 | K93: 20 | L93: 20 | M93: 20 | N93: 20 | O93: 15 | P93: 5 | Q93: 0 | R93: -5 | S93: 2d10 | T93: B | Z93: Hammers | AA93: Two-Handed Sword | AB93: 77 | AE93: Staves | AF93: Ironshod Quarterstaff
AA94: Two-Handed Warhammer | AB94: 78 | AE94: Throwing Weapons | AF94: Net
A95: Item | B95: Polearms | C95: Class | D95: Cost | E95: Weight | F95: Blows | G95: Length | H95: 0 | I95: 1 | J95: 2 | K95: 3 | L95: 4 | M95: 5 | N95: 6 | O95: 7 | P95: 8 | Q95: 9 | R95: 10 | S95: Damage | T95: Type | U95: VL | V95: L | W95: M | X95: H | Y95: P | Z95: Skill | AA95: Voulge | AB95: 90 | AE95: Two Edge Blades | AF95: Bastard Sword
A96: =A93+1 -> 79 | B96: Conteux de Breche | C96: P | D96: 100 | E96: 7 | F96: 2 | G96: 10 | H96: 30 | I96: 25 | J96: 25 | K96: 20 | L96: 20 | M96: 15 | N96: 10 | O96: 5 | P96: -5 | Q96: -5 | R96: -10 | S96: 2d10 | T96: C | U96: 10 | V96: 5 | W96: 5 | X96: 5 | Z96: Polearms | AA96: War Pick | AB96: 52 | AE96: Cudgels | AF96: Broadsword
A97: =A96+1 -> 80 | B97: Fauchard | C97: P | D97: 100 | E97: 6 | F97: 2 | G97: 10 | H97: 25 | I97: 25 | J97: 25 | K97: 20 | L97: 20 | M97: 15 | N97: 5 | O97: 0 | P97: -10 | Q97: -10 | R97: -15 | S97: 2d8 | T97: C | U97: 10 | V97: 5 | W97: 5 | X97: 5 | Z97: Polearms | AA97: War Scythe | AB97: 91 | AE97: Two Edge Blades | AF97: Hand-and-a-half Sword
A98: 81 | B98: Fauchard Fork | C98: P | D98: 120 | E98: 6 | F98: 2 | G98: 8 | H98: 35 | I98: 35 | J98: 30 | K98: 20 | L98: 20 | M98: 15 | N98: 10 | O98: 0 | P98: -5 | Q98: -5 | R98: -10 | S98: 2d10 | T98: C | U98: 10 | V98: 5 | W98: 5 | X98: 5 | Z98: Polearms | AA98: Warhammer | AB98: 66 | AE98: Two Edge Blades | AF98: Two-Handed Broadsword
A99: 82 | B99: Guisarme/Bill | C99: P | D99: 100 | E99: 14 | F99: 3 | G99: 14 | H99: 25 | I99: 25 | J99: 25 | K99: 20 | L99: 20 | M99: 15 | N99: 5 | O99: 0 | P99: -10 | Q99: -10 | R99: -15 | S99: 2d8 | T99: P | U99: 10 | V99: 5 | W99: 5 | X99: 5 | Z99: Polearms | AA99: Whipknife | AB99: 40 | AE99: Whips | AF99: Bullwhip
A100: 83 | B100: Lucerne Hammer | C100: P | D100: 150 | E100: 8 | F100: 2 | G100: 8 | H100: 30 | I100: 30 | J100: 30 | K100: 25 | L100: 25 | M100: 25 | N100: 20 | O100: 15 | P100: 5 | Q100: 5 | R100: 0 | S100: 2d6 | T100: P | U100: 10 | V100: 5 | W100: 5 | X100: 5 | Z100: Polearms | AA100: Woodsman's Axe | AB100: 55 | AE100: Whips | AF100: Whipknife
A101: 84 | B101: Partisan | C101: P | D101: 72 | E101: 6 | F101: 2 | G101: 12 | H101: 30 | I101: 25 | J101: 25 | K101: 20 | L101: 20 | M101: 15 | N101: 10 | O101: 5 | P101: 0 | Q101: 0 | R101: -5 | S101: 2d8 | T101: P | U101: 10 | V101: 5 | W101: 5 | X101: 5 | Z101: Polearms
A102: 85 | B102: Long Pike | C102: P | D102: 150 | E102: 7.5 | F102: 2 | G102: 15 | H102: 20 | I102: 20 | J102: 15 | K102: 10 | L102: 5 | M102: 20 | N102: 15 | O102: 10 | P102: 10 | Q102: 5 | R102: 0 | S102: 2d8 | T102: P | U102: 10 | V102: 5 | W102: 5 | X102: 5 | Z102: Polearms
A103: 86 | B103: Normal Pike | C103: P | D103: 120 | E103: 6 | F103: 2 | G103: 12 | H103: 25 | I103: 25 | J103: 20 | K103: 15 | L103: 15 | M103: 5 | N103: 5 | O103: 5 | P103: 5 | Q103: 0 | R103: -5 | S103: 1d12 | T103: P | U103: 10 | V103: 5 | W103: 5 | X103: 5 | Z103: Polearms
A104: 87 | B104: Short Pike | C104: P | D104: 80 | E104: 4 | F104: 3 | G104: 8 | H104: 30 | I104: 30 | J104: 25 | K104: 20 | L104: 15 | M104: 5 | N104: 5 | O104: 5 | P104: 5 | Q104: 0 | R104: -5 | S104: 1d12 | T104: P | U104: 10 | V104: 5 | W104: 5 | X104: 5 | Z104: Polearms
A105: 88 | B105: Spontoon | C105: P | D105: 50 | E105: 5 | F105: 2 | G105: 10 | H105: 35 | I105: 25 | J105: 25 | K105: 20 | L105: 20 | M105: 15 | N105: 10 | O105: 5 | P105: -5 | Q105: -5 | R105: -15 | S105: 1d12 | T105: P | U105: 10 | V105: 5 | W105: 5 | X105: 5 | Z105: Polearms
A106: 89 | B106: Footman's Lance | C106: P | D106: 50 | E106: 15 | F106: 2 | G106: 15 | H106: 20 | I106: 20 | J106: 15 | K106: 10 | L106: 5 | M106: 20 | N106: 15 | O106: 10 | P106: 10 | Q106: 5 | R106: 0 | S106: 2d6+2 | T106: P | U106: 10 | V106: 5 | W106: 5 | X106: 5 | Z106: Polearms
A107: 90 | B107: Voulge | C107: P | D107: 75 | E107: 10 | F107: 2 | G107: 10 | H107: 30 | I107: 25 | J107: 25 | K107: 25 | L107: 25 | M107: 20 | N107: 15 | O107: 5 | P107: -5 | Q107: -5 | R107: -10 | S107: 3d6 | T107: P/C | U107: 10 | V107: 5 | W107: 5 | X107: 5 | Z107: Polearms
A108: 91 | B108: War Scythe | C108: P | D108: 75 | E108: 5 | F108: 2 | G108: 8 | H108: 50 | I108: 45 | J108: 45 | K108: 40 | L108: 40 | M108: 30 | N108: 15 | O108: 0 | P108: -10 | Q108: -15 | R108: -15 | S108: 3d6 | T108: P/C | U108: 10 | V108: 5 | W108: 5 | X108: 5 | Z108: Polearms
A111: Item | B111: Shields | C111: Class | D111: Cost | E111: Weight | F111: Blows | G111: Length | H111: 0 | I111: 1 | J111: 2 | K111: 3 | L111: 4 | M111: 5 | N111: 6 | O111: 7 | P111: 8 | Q111: 9 | R111: 10 | S111: Damage | T111: Type | U111: VL | V111: L | W111: M | X111: H | Y111: P | Z111: Skill | AA111: Shields | AB111: Item
A112: =A113-0.1 -> 91.9 | C112: S | G112: 0 | Z112: Shields | AA112: Armoured Gauntlet | AB112: 92
A113: =A108+1 -> 92 | B113: Armoured Gauntlet | C113: S | D113: 200 | E113: 10 | G113: 2 | T113: B | U113: 10 | V113: 10 | W113: 5 | X113: 5 | Z113: Shields | AA113: Buckler | AB113: 93
A114: =A113+1 -> 93 | B114: Buckler | C114: S | D114: 25 | E114: 5 | F114: 3 | G114: 2 | H114: 40 | I114: 30 | J114: 25 | K114: 20 | L114: 15 | M114: 5 | N114: 0 | O114: -5 | P114: -5 | Q114: -10 | R114: -10 | S114: 1d6 | T114: B | U114: 10 | V114: 10 | W114: 5 | X114: 5 | Z114: Shields | AA114: Buckler (Bladed) | AB114: 94
A115: =A114+1 -> 94 | B115: Buckler (Bladed) | C115: S | D115: 125 | E115: 10 | F115: 3 | G115: 2 | H115: 40 | I115: 30 | J115: 25 | K115: 20 | L115: 15 | M115: 5 | N115: 0 | O115: -5 | P115: -5 | Q115: -10 | R115: -10 | S115: 2d6 | T115: B | U115: 10 | V115: 10 | W115: 5 | X115: 5 | Z115: Shields | AA115: Buckler (Spiked) | AB115: 95
A116: 95 | B116: Buckler (Spiked) | C116: S | D116: 75 | E116: 7 | F116: 3 | G116: 2 | H116: 40 | I116: 30 | J116: 25 | K116: 20 | L116: 15 | M116: 5 | N116: 0 | O116: -5 | P116: -5 | Q116: -10 | R116: -10 | S116: 2d6 | T116: B | U116: 10 | V116: 10 | W116: 5 | X116: 5 | Z116: Shields | AA116: Kite | AB116: 103
A117: 96 | B117: Rondache | C117: S | D117: 35 | E117: 7 | F117: 3 | G117: 2 | H117: 40 | I117: 30 | J117: 25 | K117: 20 | L117: 15 | M117: 5 | N117: 0 | O117: -5 | P117: -5 | Q117: -10 | R117: -10 | S117: 2d6 | T117: B | U117: 10 | V117: 10 | W117: 10 | X117: 5 | Y117: 5 | Z117: Shields | AA117: Pavis | AB117: 102
A118: 97 | B118: Target (Steel) | C118: S | D118: 100 | E118: 25 | F118: 3 | G118: 2 | H118: 40 | I118: 30 | J118: 25 | K118: 20 | L118: 15 | M118: 5 | N118: 0 | O118: -5 | P118: -5 | Q118: -10 | R118: -10 | S118: 1d8 | T118: B | U118: 10 | V118: 10 | W118: 10 | X118: 5 | Y118: 5 | Z118: Shields | AA118: Rondache | AB118: 96
A119: 98 | B119: Target (Iron) | C119: S | D119: 75 | E119: 50 | F119: 3 | G119: 2 | H119: 40 | I119: 30 | J119: 25 | K119: 20 | L119: 15 | M119: 5 | N119: 0 | O119: -5 | P119: -5 | Q119: -10 | R119: -10 | S119: 1d8 | T119: B | U119: 10 | V119: 10 | W119: 10 | X119: 5 | Y119: 5 | Z119: Shields | AA119: Scutum (Oval) | AB119: 104
A120: 99 | B120: Target (Bladed) | C120: S | D120: 250 | E120: 30 | F120: 3 | G120: 2 | H120: 40 | I120: 30 | J120: 25 | K120: 20 | L120: 15 | M120: 5 | N120: 0 | O120: -5 | P120: -5 | Q120: -10 | R120: -10 | S120: 2d6 | T120: B | U120: 10 | V120: 10 | W120: 10 | X120: 5 | Y120: 5 | Z120: Shields | AA120: Scutum (Square) | AB120: 105
A121: 100 | B121: Target (Spiked) | C121: S | D121: 150 | E121: 27 | F121: 3 | G121: 2 | H121: 40 | I121: 30 | J121: 25 | K121: 20 | L121: 15 | M121: 5 | N121: 0 | O121: -5 | P121: -5 | Q121: -10 | R121: -10 | S121: 2d6 | T121: B | U121: 10 | V121: 10 | W121: 10 | X121: 5 | Y121: 5 | Z121: Shields | AA121: Target (Bladed) | AB121: 99
A122: 101 | B122: Triangular | C122: S | D122: 50 | E122: 15 | F122: 3 | G122: 2 | H122: 40 | I122: 30 | J122: 25 | K122: 20 | L122: 15 | M122: 5 | N122: 0 | O122: -5 | P122: -5 | Q122: -10 | R122: -10 | S122: 2d6 | T122: B | U122: 10 | V122: 10 | W122: 10 | X122: 10 | Y122: 10 | Z122: Shields | AA122: Target (Iron) | AB122: 98
A123: 102 | B123: Pavis | C123: S | D123: 50 | E123: 15 | F123: 3 | G123: 2 | H123: 40 | I123: 30 | J123: 25 | K123: 20 | L123: 15 | M123: 5 | N123: 0 | O123: -5 | P123: -5 | Q123: -10 | R123: -10 | S123: 2d6 | T123: B | U123: 15 | V123: 15 | W123: 10 | X123: 10 | Y123: 10 | Z123: Shields | AA123: Target (Spiked) | AB123: 100
A124: 103 | B124: Kite | C124: S | D124: 75 | E124: 25 | F124: 3 | G124: 2 | H124: 40 | I124: 30 | J124: 25 | K124: 20 | L124: 15 | M124: 5 | N124: 0 | O124: -5 | P124: -5 | Q124: -10 | R124: -10 | S124: 2d6 | T124: B | U124: 15 | V124: 15 | W124: 10 | X124: 10 | Y124: 10 | Z124: Shields | AA124: Target (Steel) | AB124: 97
A125: 104 | B125: Scutum (Oval) | C125: S | D125: 50 | E125: 25 | F125: 1 | G125: 4 | H125: 25 | I125: 25 | J125: 25 | K125: 20 | L125: 20 | M125: 20 | N125: 15 | O125: 10 | P125: 5 | Q125: 0 | R125: 0 | S125: 4d6 | T125: B | U125: 15 | V125: 15 | W125: 15 | X125: 15 | Y125: 15 | Z125: Shields | AA125: Triangular | AB125: 101
A126: 105 | B126: Scutum (Square) | C126: S | D126: 75 | E126: 30 | F126: 1 | G126: 4 | H126: 25 | I126: 25 | J126: 25 | K126: 20 | L126: 20 | M126: 20 | N126: 15 | O126: 10 | P126: 5 | Q126: 0 | R126: 0 | S126: 4d6 | T126: B | U126: 15 | V126: 15 | W126: 15 | X126: 15 | Y126: 15 | Z126: Shields
A128: Item | B128: Missle Weapons | C128: Class | D128: Cost | E128: Weight | F128: Blows | G128: Range | H128: 0 | I128: 1 | J128: 2 | K128: 3 | L128: 4 | M128: 5 | N128: 6 | O128: 7 | P128: 8 | Q128: 9 | R128: 10 | S128: Damage | T128: Type | U128: VL | V128: L | W128: M | X128: H | Y128: P | Z128: Skill | AA128: Missle Weapons | AB128: Item
A129: =A130-0.1 -> 105.9 | C129: Ms | H129: 40 | I129: 35 | J129: 30 | K129: 25 | L129: 20 | M129: 15 | N129: 15 | O129: 10 | P129: 5 | Q129: 0 | R129: -5 | S129: 1d10+5 | T129: P | U129: 4 | Z129: Self Bows | AA129: Bolo | AB129: 119
A130: =A126+1 -> 106 | B130: Light Crossbow | C130: Ms | D130: 100 | E130: 10 | F130: 1 | G130: 600 | H130: 40 | I130: 35 | J130: 30 | K130: 25 | L130: 20 | M130: 15 | N130: 15 | O130: 10 | P130: 5 | Q130: 0 | R130: -5 | S130: 1d10+5 | T130: P | U130: 4 | Z130: Crossbows | AA130: Chakra | AB130: 120
A131: =A130+1 -> 107 | B131: Thieves Crossbow | C131: Ms | D131: 175 | E131: 7 | F131: 1 | G131: 600 | H131: 40 | I131: 35 | J131: 30 | K131: 25 | L131: 20 | M131: 15 | N131: 15 | O131: 10 | P131: 5 | Q131: 0 | R131: -5 | S131: 1d10+5 | T131: P | U131: 3 | Z131: Crossbows | AA131: Composite bow | AB131: 111
A132: =A131+1 -> 108 | B132: Heavy Crossbow | C132: Ms | D132: 250 | E132: 20 | F132: 0.5 | G132: 750 | H132: 45 | I132: 40 | J132: 40 | K132: 35 | L132: 30 | M132: 25 | N132: 25 | O132: 20 | P132: 15 | Q132: 10 | R132: 5 | S132: 1d10+7 | T132: P | U132: 5 | Z132: Crossbows | AA132: Dart | AB132: 117
A133: 109 | B133: Shortbow | C133: Ms | D133: 50 | E133: 3 | F133: 2 | G133: 450 | H133: 35 | I133: 35 | J133: 30 | K133: 20 | L133: 15 | M133: 10 | N133: 5 | O133: 10 | P133: -5 | Q133: -10 | R133: -15 | S133: 1d10+3 | T133: P | U133: =INT(Frontsheet!E6/6) -> 2 | Z133: Self Bows | AA133: Elvish Longbow | AB133: 112
A134: 110 | B134: Longbow | C134: Ms | D134: 100 | E134: 4 | F134: 2 | G134: 600 | H134: 45 | I134: 45 | J134: 40 | K134: 30 | L134: 25 | M134: 20 | N134: 15 | O134: 10 | P134: 5 | Q134: 0 | R134: -5 | S134: 1d10+5 | T134: P | U134: =INT(Frontsheet!E6/4) -> 4 | Z134: Self Bows | AA134: Hand Sling | AB134: 113
A135: 111 | B135: Composite bow | C135: Ms | D135: 125 | E135: 3 | F135: 2 | G135: 600 | H135: 45 | I135: 45 | J135: 40 | K135: 30 | L135: 25 | M135: 20 | N135: 15 | O135: 10 | P135: 5 | Q135: 0 | R135: -5 | S135: 1d10+5 | T135: P | U135: =INT(Frontsheet!E6/4) -> 4 | Z135: Self Bows | AA135: Heavy Crossbow | AB135: 108
A136: 112 | B136: Elvish Longbow | C136: Ms | E136: 4 | F136: 3 | G136: 750 | H136: 50 | I136: 50 | J136: 40 | K136: 30 | L136: 25 | M136: 20 | N136: 20 | O136: 10 | P136: 5 | Q136: 0 | R136: -5 | S136: 1d10+6 | T136: P | U136: =INT(Frontsheet!E6/4) -> 4 | Z136: Self Bows | AA136: Javelin | AB136: 124
A137: 113 | B137: Hand Sling | C137: Ms | D137: 5 | E137: 1 | F137: 2 | G137: 400 | H137: 35 | I137: 35 | J137: 30 | K137: 15 | L137: 10 | M137: 5 | N137: 5 | O137: 0 | P137: -5 | Q137: -10 | R137: -15 | S137: 1d6+3 | T137: B | U137: 3 | Z137: Thrown Weapons | AA137: Large Blowgun | AB137: 116
A138: 114 | B138: Staff Sling | C138: Ms | D138: 6 | E138: 10 | F138: 1 | G138: 450 | H138: 40 | I138: 40 | J138: 40 | K138: 40 | L138: 30 | M138: 20 | N138: 10 | O138: 0 | P138: -10 | Q138: -15 | R138: -25 | S138: 1d10+1 | T138: B | U138: 3 | Z138: Thrown Weapons | AA138: Light Crossbow | AB138: 106
A139: 115 | B139: Small Blowgun | C139: Ms | D139: 10 | E139: 1 | F139: 1 | G139: 30 | H139: 65 | I139: 65 | J139: 55 | K139: 25 | L139: 10 | M139: -5 | N139: -20 | O139: -30 | P139: -40 | Q139: -45 | R139: -55 | S139: 1d2+(p) | T139: P | U139: 1 | Z139: Eastern Hand Darts | AA139: Longbow | AB139: 110
A140: 116 | B140: Large Blowgun | C140: Ms | D140: 20 | E140: 1.5 | F140: 1 | G140: 50 | H140: 65 | I140: 65 | J140: 55 | K140: 35 | L140: 25 | M140: 15 | N140: 5 | O140: -5 | P140: -15 | Q140: -25 | R140: -35 | S140: 1d4+(p) | T140: P | U140: 2 | Z140: Eastern Hand Darts | AA140: Rock | AB140: 118
A141: 117 | B141: Dart | C141: Ms | D141: 2 | E141: 0.5 | F141: 4 | G141: 100 | H141: 35 | I141: 35 | J141: 35 | K141: 25 | L141: 15 | M141: 10 | N141: 0 | O141: -10 | P141: -20 | Q141: -25 | R141: -35 | S141: 1d10+(p) | T141: P | U141: 3 | Z141: Thrown Weapons | AA141: Shortbow | AB141: 109
A142: 118 | B142: Rock | C142: Ms | E142: 0.5 | F142: 5 | G142: 150 | H142: 40 | I142: 40 | J142: 30 | K142: 10 | L142: 0 | M142: -10 | N142: -20 | O142: -30 | P142: -40 | Q142: -55 | R142: -55 | S142: 1d4 | T142: B | U142: 2 | Z142: Thrown Weapons | AA142: Small Blowgun | AB142: 115
A143: 119 | B143: Bolo | C143: Ms | D143: 50 | E143: 3 | F143: 1 | G143: 60 | H143: 30 | I143: 30 | J143: 30 | K143: 30 | L143: 30 | M143: 30 | N143: 20 | O143: 10 | P143: 0 | Q143: -5 | R143: -20 | S143: 1d12 | T143: B | U143: 6 | Z143: Thrown Weapons | AA143: Spear | AB143: 123
A144: 120 | B144: Chakra | C144: Ms | D144: 40 | E144: 0.25 | F144: 5 | G144: 60 | H144: 45 | I144: 45 | J144: 40 | K144: 30 | L144: 20 | M144: 0 | N144: -10 | O144: -15 | P144: -20 | Q144: -25 | R144: -35 | S144: 1d3+(p) | T144: C | U144: 2 | Z144: Eastern Hand Darts | AA144: Staff Sling | AB144: 114
A145: 121 | B145: Throwing Knife | C145: Ms | D145: 20 | E145: 1 | F145: 4 | G145: 75 | H145: 60 | I145: 60 | J145: 50 | K145: 40 | L145: 40 | M145: 30 | N145: 20 | O145: 10 | P145: 0 | Q145: -5 | R145: -10 | S145: 1d6+(p) | T145: P | U145: 2 | Z145: Thrown Weapons | AA145: Thieves Crossbow | AB145: 107
A146: 122 | B146: Throwing Axe | C146: Ms | D146: 20 | E146: 2 | F146: 3 | G146: 75 | H146: 55 | I146: 55 | J146: 45 | K146: 35 | L146: 35 | M146: 30 | N146: 20 | O146: 10 | P146: 0 | Q146: 0 | R146: -10 | S146: 2d6 | T146: C | U146: 3 | Z146: Thrown Weapons | AA146: Throwing Axe | AB146: 122
A147: 123 | B147: Spear | C147: Ms | D147: 24 | E147: 3 | F147: 2 | G147: 75 | H147: 30 | I147: 30 | J147: 30 | K147: 30 | L147: 30 | M147: 30 | N147: 30 | O147: 20 | P147: 10 | Q147: 10 | R147: 0 | S147: 2d4 | T147: P | U147: 5 | Z147: Thrown Weapons | AA147: Throwing Knife | AB147: 121
A148: 124 | B148: Javelin | C148: Ms | D148: 60 | E148: 3 | F148: 2 | G148: 100 | H148: 40 | I148: 40 | J148: 35 | K148: 30 | L148: 30 | M148: 30 | N148: 25 | O148: 15 | P148: 10 | Q148: 10 | R148: 5 | S148: 1d8 | T148: P | U148: 4 | Z148: Thrown Weapons | AB148: 105.9
A150: Item | B150: Bare Handed Weapons | C150: Class | D150: Cost | E150: Weight | F150: Blows | G150: Length | H150: 0 | I150: 1 | J150: 2 | K150: 3 | L150: 4 | M150: 5 | N150: 6 | O150: 7 | P150: 8 | Q150: 9 | R150: 10 | S150: Damage | T150: Type | U150: VL | V150: L | W150: M | X150: H | Y150: P | Z150: Skill
A151: =A148+1 -> 125 | B151: Two Hand Grab-Hd/Lg/Bd | C151: B | F151: 2 | H151: 20 | I151: 20 | J151: 10 | K151: 10 | L151: 10 | M151: 10 | N151: 10 | O151: 10 | P151: 10 | Q151: 0 | R151: 0 | Z151: Hand-to-hand
A152: =A151+1 -> 126 | B152: Two Hand Grab-Arm/Hand | C152: B | F152: 4 | H152: 20 | I152: 20 | J152: 10 | K152: 10 | L152: 10 | M152: 10 | N152: 10 | O152: 10 | P152: 10 | Q152: 0 | R152: 0 | Z152: Hand-to-hand
A153: =A152+1 -> 127 | B153: Two Hand Grab-Weapon | C153: B | F153: 4 | H153: 25 | I153: 25 | J153: 15 | K153: 15 | L153: 15 | M153: 15 | N153: 15 | O153: 15 | P153: 15 | Q153: 5 | R153: 5 | Z153: Hand-to-hand
A154: 128 | B154: One Hand Grab-Head | C154: B | F154: 4 | H154: 0 | I154: 0 | J154: -10 | K154: -10 | L154: -10 | M154: -10 | N154: -10 | O154: -10 | P154: -10 | Q154: -20 | R154: -20 | Z154: Hand-to-hand
A155: 129 | B155: One Hand Grab-Arm/Hand | C155: B | F155: 6 | H155: 15 | I155: 15 | J155: 5 | K155: 5 | L155: 5 | M155: 5 | N155: 5 | O155: 5 | P155: 5 | Q155: -5 | R155: -5 | Z155: Hand-to-hand
A156: 130 | B156: One Hand Grab-Weapon | C156: B | F156: 7 | H156: 10 | I156: 10 | J156: 0 | K156: 0 | L156: 0 | M156: 0 | N156: 0 | O156: 0 | P156: 0 | Q156: -10 | R156: -10 | Z156: Hand-to-hand
A157: 131 | B157: One Hand Grab-Leg/Foot | C157: B | F157: 4 | H157: -20 | I157: -20 | J157: -30 | K157: -30 | L157: -30 | M157: -30 | N157: -30 | O157: -30 | P157: -30 | Q157: -40 | R157: -40 | Z157: Hand-to-hand
A158: 132 | B158: One Hand Grab-Body | C158: B | F158: 4 | H158: -30 | I158: -30 | J158: -40 | K158: -40 | L158: -40 | M158: -40 | N158: -40 | O158: -40 | P158: -40 | Q158: -40 | R158: -40 | Z158: Hand-to-hand
A159: 133 | B159: Tackle | C159: B | F159: 4 | H159: 15 | I159: 10 | J159: 15 | K159: 10 | L159: 15 | M159: 20 | N159: 20 | O159: 20 | P159: 20 | Q159: 20 | R159: 20 | Z159: Hand-to-hand
A160: 134 | B160: Armoured Fist | C160: B | F160: 4 | H160: 30 | I160: 25 | J160: 20 | K160: 15 | L160: 10 | M160: 5 | N160: 0 | O160: -5 | P160: -10 | Q160: -15 | R160: -20 | S160: =CONCATENATE("1d",INT(strength/2)) -> 1d8 | Z160: Hand-to-hand
A161: 135 | B161: Armoured Foot | C161: B | H161: 25 | I161: 20 | J161: 15 | K161: 10 | L161: 5 | M161: 0 | N161: -10 | O161: -15 | P161: -15 | Q161: -20 | R161: -25 | S161: =CONCATENATE("2d",INT(strength/3)) -> 2d5 | Z161: Hand-to-hand
A162: 136 | B162: Bare Fist | C162: B | F162: 6 | H162: 30 | I162: 20 | J162: 15 | K162: 10 | L162: -10 | M162: n/a | N162: n/a | O162: n/a | P162: n/a | Q162: n/a | R162: n/a | S162: =CONCATENATE("1d",INT(strength/3)) -> 1d5 | Z162: Hand-to-hand
A163: 137 | B163: Bare Foot | C163: B | H163: 20 | I163: 10 | J163: 5 | K163: 0 | L163: -20 | M163: n/a | N163: n/a | O163: n/a | P163: n/a | Q163: n/a | R163: n/a | S163: =CONCATENATE("2d",INT(strength/4)) -> 2d4 | Z163: Hand-to-hand
B165: Miscellaneous Equipement
B166: Clothing | D166: Cost | E166: Weight
A167: =A163+1 -> 138 | B167: Tunic (Mans) | D167: 9 | E167: 2
A168: =A167+1 -> 139 | B168: Tunic (Womans) | D168: 20 | E168: 2
A169: =A168+1 -> 140 | B169: Chemis (Shirt) | D169: 5 | E169: 1
A170: 141 | B170: Wool Shirt | D170: 10 | E170: 3
A171: 142 | B171: Hose (Stockings) | D171: 4 | E171: 0.5
A172: 143 | B172: Cloth Pants | D172: 5 | E172: 1
A173: 144 | B173: Wool Pants | D173: 10 | E173: 3
A174: 145 | B174: Belt | D174: 5 | E174: 0.25
A175: 146 | B175: Girdle | D175: 5 | E175: 0.25
A176: 147 | B176: Hat | D176: 4 | E176: 0.25
A177: 148 | B177: Mantle/Cloak (Mans) | D177: 25 | E177: 3
A178: 149 | B178: Mantle/Cloak (Womans) | D178: 40 | E178: 3
A179: 150 | B179: Pellison (Gown) | D179: 6 | E179: 2
A180: 151 | B180: Sandels | D180: 2 | E180: 0.5
A181: 152 | B181: Sheath, Dagger | D181: 3 | E181: 0.25
A182: 153 | B182: Sheath, Sword | D182: 20 | E182: 0.5
A183: 154 | B183: Sword Belt | D183: 6 | E183: 0.25
B185: Boots | D185: Cost | E185: Weight
A186: =A183+1 -> 155 | B186: Boots,Cloth Riding | D186: 50 | E186: 4
A187: =A186+1 -> 156 | B187: Boots,Leather | D187: 20 | E187: 3
A188: =A187+1 -> 157 | B188: Boots,Steel Toe | D188: 50 | E188: 4
A189: =A188+1 -> 158 | B189: Boots,Leather Infantry | D189: 25 | E189: 3
A190: =A189+1 -> 159 | B190: Boots,Steel Toe Infantry | D190: 50 | E190: 5
A191: =A190+1 -> 160 | B191: Boots,Steel Plate | D191: 100 | E191: 7
B193: Gauntlets | D193: Cost | E193: Weight
A194: =A191+1 -> 161 | B194: Reinforced Mail | D194: 150 | E194: 10
A195: =A194+1 -> 162 | B195: Plain Chain Mail | D195: 100 | E195: 5
A196: =A195+1 -> 163 | B196: Hardened Leather Gloves | D196: 10 | E196: 1
A197: =A196+1 -> 164 | B197: Soft Leather Gloves | D197: 5 | E197: 0.25
B199: Projectiles | D199: Cost | E199: Weight
A200: =A197+1 -> 165 | B200: Crossbow Quarrels (20) | D200: 12 | E200: 6
A201: =A200+1 -> 166 | B201: Belt Pouch (holds 20 bolts) | D201: 3 | E201: 1
A202: =A201+1 -> 167 | B202: Arrows (20) | D202: 10 | E202: 2
A203: 168 | B203: Quiver (holds 20 arrows) | D203: 5 | E203: 3
A204: 169 | B204: Stone Bullets (20) | E204: 1
A205: 170 | B205: Bronze Bullets (20) | D205: 35 | E205: 2
A206: 171 | B206: Steel Barbed Bullets (20) | D206: 60 | E206: 2
A207: 172 | B207: Glass Hollow Barbed Bullets (20) | D207: 20 | E207: 1
A208: 173 | B208: Belt Pouch (holds 20 bullets) | D208: 2 | E208: 1
A209: 174 | B209: Large Blowgun Darts (10) | D209: 15 | E209: 1
A210: 175 | B210: Large Blowgun Darts,Injector (5) | D210: 250 | E210: 0.5
... 187 more rows

Sheet Skill List
B1: Skill Table
A2: # | B2: Methods | F2: Type
A3: 1 | B3: Essence Method | E3: =A3 -> 1 | F3: M
A4: =A3+1 -> 2 | B4: Enchantment Method | E4: 2 | F4: M
A5: 3 | B5: Word Method | E5: 3 | F5: M
A6: 4 | B6: Prayer Method | E6: 4 | F6: M
A7: 5 | B7: Cabal Method | E7: 5 | F7: M
A8: 6 | B8: Magic Square Method | E8: 6 | F8: M
A9: 7 | B9: Thaumaturgy Method | E9: 7 | F9: M
A10: 8 | B10: Ritual Method | E10: 8 | F10: M
B12: Combat Skills
A13: =A10+1 -> 9 | B13: Axes | E13: =A13 -> 9 | F13: S
A14: =A13+1 -> 10 | B14: Cudgels | E14: 10 | F14: S
A15: 11 | B15: Foil | E15: 11 | F15: S
A16: 12 | B16: Flails | E16: 12 | F16: S
A17: =A16+1 -> 13 | B17: Hammers | E17: =A17 -> 13 | F17: S
A18: =A16+1 -> 13 | B18: Hand-to-Hand | E18: 13 | F18: S
A19: 14 | B19: Knives | E19: 14 | F19: S
A20: 15 | B20: Light Axes | E20: 15 | F20: S
A21: 16 | B21: Mounted Lance | E21: 16 | F21: S
A22: 17 | B22: Polearms | E22: 17 | F22: S
A23: 18 | B23: Short Blades | E23: 18 | F23: S
A24: 19 | B24: Shields | E24: 19 | F24: S
A25: 20 | B25: Single Edge Blades | E25: 20 | F25: S
A26: 21 | B26: Spears | E26: 21 | F26: S
A27: 22 | B27: Staves | E27: 22 | F27: S
A28: 23 | B28: Two Edge Blades | E28: 23 | F28: S
A29: 24 | B29: Whips | E29: 24 | F29: S
A30: 25 | B30: Bolo | E30: 25 | F30: S
A31: 26 | B31: Crossbows | E31: 26 | F31: S
A32: 27 | B32: Eastern Hand Darts | E32: 27 | F32: S
A33: 28 | B33: Guns | E33: 28 | F33: S
A34: 29 | B34: Self Bows | E34: 29 | F34: S
A35: 30 | B35: Thrown Weapons | E35: 30 | F35: S
B37: Weaponless Combat Skills
A38: =A35+1 -> 31 | B38: Brawl | E38: =A38 -> 31 | F38: S
A39: =A38+1 -> 32 | B39: Dodge | E39: =A39 -> 32 | F39: S
A40: =A39+1 -> 33 | B40: Fisticuffs | E40: =A40 -> 33 | F40: S
A41: =A40+1 -> 34 | B41: Grapple | E41: =A41 -> 34 | F41: S
A42: =A41+1 -> 35 | B42: Tackle | E42: =A42 -> 35 | F42: S
B44: Non-Weapon Class Specific Combat Skills
A45: =A42+1 -> 36 | B45: Berserker Rage | E45: =A45 -> 36 | F45: S
A46: =A45+1 -> 37 | B46: Immobile Opponent Removal | E46: =A46 -> 37 | F46: S
B48: Stealth Skills
A49: =A46+1 -> 38 | B49: Acrobatics | E49: =A49 -> 38 | F49: S
A50: =A49+1 -> 39 | B50: Administration of Poison | E50: 39 | F50: S
A51: =A50+1 -> 40 | B51: Backstab | E51: 40 | F51: S
A52: =A51+1 -> 41 | B52: Detect Noises | E52: 41 | F52: S
A53: =A51+1 -> 41 | B53: Disguise | E53: 41 | F53: S
A54: =A52+1 -> 42 | B54: Disarm Trap | E54: 42 | F54: S
A55: =A54+1 -> 43 | B55: Hide in Shadows | E55: 43 | F55: S
A56: 44 | B56: Hide in Heat Source | E56: 44 | F56: S
A57: 45 | B57: Move Silently | E57: 45 | F57: S
A58: 46 | B58: Pick Lock | E58: 46 | F58: S
A59: 47 | B59: Pick Pocket | E59: 47 | F59: S
A60: 48 | B60: Physical Torture | E60: 48 | F60: S
A61: =A60+1 -> 49 | B61: Sleight of Hand | E61: =A61 -> 49 | F61: S
B63: General Skills
A64: =A61+1 -> 50 | B64: any craft skill | E64: =A64 -> 50 | F64: S
A65: =A64+1 -> 51 | B65: Leadership | E65: =A65 -> 51 | F65: S
B67: Academic
A68: =A65+1 -> 52 | B68: Apothecary | E68: =A68 -> 52 | F68: S
A69: =A68+1 -> 53 | B69: Architect,Civil | E69: 53 | F69: S
A70: 54 | B70: Architect,Naval | E70: 54 | F70: S
A71: 55 | B71: Astronomy | E71: 55 | F71: S
A72: 56 | B72: Botany | E72: 56 | F72: S
A73: 57 | B73: Chemistry | E73: 57 | F73: S
A74: 58 | B74: Chirurgery | E74: 58 | F74: S
A75: 59 | B75: Finance | E75: 59 | F75: S
A76: 60 | B76: Gemology | E76: 60 | F76: S
A77: 61 | B77: Herbalism | E77: 61 | F77: S
A78: 62 | B78: Mathematics | E78: 62 | F78: S
A79: 63 | B79: Mechanician | E79: 63 | F79: S
A80: 64 | B80: Metallurgy | E80: 64 | F80: S
A81: 65 | B81: Military Engineer | E81: 65 | F81: S
A82: 66 | B82: Physician | E82: 66 | F82: S
B84: Arts & Crafts
A85: =A82+1 -> 67 | B85: Agriculture | E85: =A85 -> 67 | F85: S
A86: =A85+1 -> 68 | B86: Animal Training | E86: 68 | F86: S
A87: =A86+1 -> 69 | B87: Armory | E87: 69 | F87: S
A88: =A86+1 -> 69 | B88: Bargain | E88: 69 | F88: S
A89: =A87+1 -> 70 | B89: Blacksmithy | E89: 70 | F89: S
A90: =A89+1 -> 71 | B90: Cabinetry | E90: 71 | F90: S
A91: 72 | B91: Carpentry | E91: 72 | F91: S
A92: 73 | B92: Cartwright | E92: 73 | F92: S
A93: 74 | B93: Cobbling | E93: 74 | F93: S
A94: 75 | B94: Cordmaking | E94: 75 | F94: S
A95: 76 | B95: Dancing | E95: 76 | F95: S
A96: 77 | B96: Falconry | E96: 77 | F96: S
A97: 78 | B97: Fishing | E97: 78 | F97: S
A98: 79 | B98: Forestry | E98: 79 | F98: S
A99: 80 | B99: Gambling | E99: =A99 -> 80 | F99: S
A100: 81 | B100: Glassblowing | E100: 81 | F100: S
A101: 82 | B101: Ink & Paper Making | E101: 82 | F101: S
A102: 83 | B102: Instrument Playing | E102: 83 | F102: S
A103: 84 | B103: Jewelsmithy | E103: 84 | F103: S
A104: 85 | B104: Juggling/Foolery | E104: 85 | F104: S
A105: 86 | B105: Masonry | E105: 86 | F105: S
A106: 87 | B106: Mining | E106: 87 | F106: S
A107: 88 | B107: Painting & Drawing | E107: 88 | F107: S
A108: 89 | B108: Poetry | E108: 89 | F108: S
A109: 90 | B109: Ranching | E109: 90 | F109: S
A110: 91 | B110: Riding | E110: 91 | F110: S
A111: 92 | B111: Sailmaking | E111: 92 | F111: S
A112: 93 | B112: Sculpting | E112: 93 | F112: S
A113: 94 | B113: Shipbuilding | E113: 94 | F113: S
A114: 95 | B114: Singing | E114: 95 | F114: S
A115: 96 | B115: Weaving | E115: 96 | F115: S
B117: Language
A118: =A115+1 -> 97 | B118: language:modern | E118: =A118 -> 97 | F118: S
A119: =A118+1 -> 98 | B119: language:ancient | E119: 98 | F119: S
A120: =A119+1 -> 99 | B120: language:secret | E120: 99 | F120: S
A121: 100 | B121: Language:Centaur | E121: 100 | F121: S
A122: 101 | B122: Language:Dwarf | E122: 101 | F122: S
A123: 102 | B123: Language:High Dwarf | E123: 102 | F123: S
A124: 103 | B124: Language:Elvish | E124: 103 | F124: S
A125: 104 | B125: Language:High Elvish | E125: 104 | F125: S
A126: 105 | B126: Language:Gnome | E126: 105 | F126: S
A127: 106 | B127: Language:Hobbit | E127: 106 | F127: S
A128: 107 | B128: Language:Orc | E128: 107 | F128: S
A129: 108 | B129: Language:Pixie | E129: 108 | F129: S
A130: 109 | B130: Language:Saurig | E130: 109 | F130: S
A131: 110 | B131: Language(A):Arabic | E131: 110 | F131: S
A132: 111 | B132: Language(A):Celtic | E132: 111 | F132: S
A133: 112 | B133: Language(A):Greek | E133: 112 | F133: S
A134: 113 | B134: Language(A):Hebrew | E134: 113 | F134: S
A135: 114 | B135: Language(A):Latin | E135: 114 | F135: S
A136: 115 | B136: Language(A):Mandrin | E136: 115 | F136: S
A137: 116 | B137: Language(A):Sanscrit | E137: 116 | F137: S
A138: 117 | B138: Language(S):Assassin | E138: 117 | F138: S
A139: 118 | B139: Language(S):Trade | E139: 118 | F139: S
A140: 119 | B140: Language(S):Thief | E140: 119 | F140: S
A141: 120 | B141: Language:Signing | E141: 120 | F141: S
A142: 121 | B142: Language:Music | E142: 121 | F142: S
B144: Service Skills
A145: =A142+1 -> 122 | B145: Barbering | E145: =A145 -> 122 | F145: S
A146: =A145+1 -> 123 | B146: Cooking | E146: =A146 -> 123 | F146: S
A147: =A146+1 -> 124 | B147: Courtesan | E147: =A147 -> 124 | F147: S
A148: =A147+1 -> 125 | B148: Service | E148: =A148 -> 125 | F148: S
B150: Spell Skills | G150: Affinity | H150: Plus | I150: Affinity2 | J150: Plus2 | K150: Affinity3 | L150: Plus3 | M150: Affinity4 | N150: Plus4 | O150: Difficulty | P150: Stamina | Q150: Save | R150: Effect
A151: =A148+1 -> 126 | B151: any spell | E151: =A151 -> 126 | F151: C | H151: 0 | J151: 0 | L151: 0 | N151: 0 | Q151: -
A152: =A151+1 -> 127 | B152: augury spell | E152: =A152 -> 127 | F152: C | G152: 20 | H152: 1 | J152: 0 | L152: 0 | N152: 0 | Q152: -
A153: =A152+1 -> 128 | B153: coercive spell | E153: =A153 -> 128 | F153: C | G153: 9 | H153: 1 | I153: 10 | J153: 2 | K153: 11 | L153: 1 | M153: 12 | N153: 1 | Q153: -
A154: 129 | B154: constitutive spell | E154: 129 | F154: C | G154: 13 | H154: 1 | J154: 0 | L154: 0 | N154: 0 | Q154: -
A155: 130 | B155: miraculous spell | E155: =A155 -> 130 | F155: C | G155: 17 | H155: 2 | I155: 18 | J155: 2 | L155: 0 | N155: 0 | Q155: -
A156: 131 | B156: nature miracle | E156: =A156 -> 131 | F156: C | G156: 20 | H156: 2 | J156: 0 | L156: 0 | N156: 0 | Q156: -
A157: 132 | B157: physical spell | E157: 132 | F157: C | G157: 13 | H157: 1 | J157: 0 | L157: 0 | N157: 0 | Q157: -
A158: 133 | B158: thereputic spell | E158: 133 | F158: C | G158: 12 | H158: 1 | I158: 16 | J158: 2 | K158: 19 | L158: 2 | M158: 20 | N158: 2 | Q158: -
A159: 134 | B159: traumatic spell | E159: 134 | F159: C | G159: 9 | H159: 2 | I159: 19 | J159: 1 | L159: 0 | N159: 0 | Q159: -
B161: Augury Spells | G161: Affinity | H161: Plus | I161: Affinity2 | J161: Plus2 | K161: Affinity3 | L161: Plus3 | M161: Affinity4 | N161: Plus4 | O161: Difficulty | P161: Stamina | Q161: Save | R161: Effect
A162: =A159+1 -> 135 | B162: Detect Demeanor | E162: =A162 -> 135 | F162: C | G162: 20 | H162: 1 | J162: 0 | L162: 0 | N162: 0 | O162: d3 | P162: 1 | Q162: -
A163: =A162+1 -> 136 | B163: Detect Altitude | E163: 136 | F163: C | G163: 20 | H163: 1 | J163: 0 | L163: 0 | N163: 0 | O163: d2 | P163: 1 | Q163: -
A164: 137 | B164: Detect Life | E164: 137 | F164: C | G164: 20 | H164: 1 | J164: 0 | L164: 0 | N164: 0 | O164: d3 | P164: 1 | Q164: -
A165: 138 | B165: Detect Etheric | E165: 138 | F165: C | G165: 20 | H165: 1 | J165: 0 | L165: 0 | N165: 0 | O165: d3 | P165: 2 | Q165: -
A166: 139 | B166: Detect Metal | E166: 139 | F166: C | G166: 20 | H166: 1 | J166: 0 | L166: 0 | N166: 0 | O166: d3 | P166: 1 | Q166: -
A167: 140 | B167: Detect Secret Door | E167: 140 | F167: C | G167: 20 | H167: 1 | J167: 0 | L167: 0 | N167: 0 | O167: d3 | P167: 1 | Q167: -
A168: 141 | B168: Detect Tracks | E168: 141 | F168: C | G168: 20 | H168: 1 | J168: 0 | L168: 0 | N168: 0 | O168: d3 | P168: 1 | Q168: -
A169: 142 | B169: Detect Direction | E169: 142 | F169: C | G169: 20 | H169: 1 | J169: 0 | L169: 0 | N169: 0 | O169: d2 | P169: 1 | Q169: -
A170: 143 | B170: Detect Distance | E170: 143 | F170: C | G170: 20 | H170: 1 | J170: 0 | L170: 0 | N170: 0 | O170: d3 | P170: 1 | Q170: -
A171: 144 | B171: Detect Volume | E171: 144 | F171: C | G171: 20 | H171: 1 | J171: 0 | L171: 0 | N171: 0 | O171: d3 | P171: 1 | Q171: -
A172: 145 | B172: Detect Shifting Walls | E172: 145 | F172: C | G172: 20 | H172: 1 | J172: 0 | L172: 0 | N172: 0 | O172: d3 | P172: 1 | Q172: -
A173: 146 | B173: Detect Sloping | E173: 146 | F173: C | G173: 20 | H173: 1 | J173: 0 | L173: 0 | N173: 0 | O173: d3 | P173: 1 | Q173: -
A174: 147 | B174: Detect Passages | E174: 147 | F174: C | G174: 20 | H174: 1 | J174: 0 | L174: 0 | N174: 0 | O174: d3 | P174: 1 | Q174: -
A175: 148 | B175: Detect Small Traps | E175: 148 | F175: C | G175: 20 | H175: 1 | J175: 0 | L175: 0 | N175: 0 | O175: d3 | P175: 1 | Q175: -
A176: 149 | B176: Detect Large Traps | E176: 149 | F176: C | G176: 20 | H176: 1 | J176: 0 | L176: 0 | N176: 0 | O176: d3 | P176: 1 | Q176: -
A177: 150 | B177: Detect Enemies | E177: 150 | F177: C | G177: 20 | H177: 1 | J177: 0 | L177: 0 | N177: 0 | O177: d3 | P177: 2 | Q177: -
A178: 151 | B178: Detect Evil | E178: 151 | F178: C | G178: 20 | H178: 1 | J178: 0 | L178: 0 | N178: 0 | O178: d3 | P178: 2 | Q178: -
A179: 152 | B179: Detect Good | E179: 152 | F179: C | G179: 20 | H179: 1 | J179: 0 | L179: 0 | N179: 0 | O179: d3 | P179: 2 | Q179: -
A180: 153 | B180: Detect Jewel | E180: 153 | F180: C | G180: 20 | H180: 1 | J180: 0 | L180: 0 | N180: 0 | O180: d3 | P180: 3 | Q180: -
A181: 154 | B181: Detect Poison | E181: 154 | F181: C | G181: 20 | H181: 1 | J181: 0 | L181: 0 | N181: 0 | O181: d3 | P181: 2 | Q181: -
A182: 155 | B182: Detect Old Tracks | E182: 155 | F182: C | G182: 20 | H182: 1 | J182: 0 | L182: 0 | N182: 0 | O182: Spcl | P182: 2 | Q182: -
A183: 156 | B183: Detect Observation | E183: 156 | F183: C | G183: 20 | H183: 1 | J183: 0 | L183: 0 | N183: 0 | O183: d3 | P183: 2 | Q183: -
A184: 157 | B184: Detect Path | E184: 157 | F184: C | G184: 20 | H184: 1 | J184: 0 | L184: 0 | N184: 0 | O184: d2 | P184: 3 | Q184: -
A185: 158 | B185: Detect Unknown Path | E185: 158 | F185: C | G185: 20 | H185: 1 | J185: 0 | L185: 0 | N185: 0 | O185: d3 | P185: 1/5m | Q185: -
A186: 159 | B186: Detect Illusion | E186: 159 | F186: C | G186: 20 | H186: 1 | J186: 0 | L186: 0 | N186: 0 | O186: d3 | P186: 4 | Q186: -
A187: 160 | B187: Detect Damage/Disease | E187: =A187 -> 160 | F187: C | G187: 20 | H187: 1 | J187: 0 | L187: 0 | N187: 0 | O187: d3 | P187: 2 | Q187: -
B189: Coercive Magic | G189: Affinity | H189: Plus | I189: Affinity2 | J189: Plus2 | K189: Affinity3 | L189: Plus3 | M189: Affinity4 | N189: Plus4 | O189: Difficulty | P189: Stamina | Q189: Save | R189: Effect
A190: =A187+1 -> 161 | B190: Awaken | E190: =A190 -> 161 | F190: C | G190: 9 | H190: 1 | I190: 10 | J190: 2 | K190: 11 | L190: 1 | M190: 12 | N190: 1 | O190: d2 | P190: 1+ | Q190: -
A191: =A190+1 -> 162 | B191: Charm Person | E191: 162 | F191: C | G191: 9 | H191: 1 | I191: 10 | J191: 2 | K191: 11 | L191: 1 | M191: 12 | N191: 1 | O191: Chrm | P191: 1 | Q191: -
A192: 163 | B192: Sleep | E192: 163 | F192: C | G192: 9 | H192: 1 | I192: 10 | J192: 2 | K192: 11 | L192: 1 | M192: 12 | N192: 1 | O192: d2 | P192: 1+ | Q192: -
A193: 164 | B193: Charm Small Animal | E193: 164 | F193: C | G193: 9 | H193: 1 | I193: 10 | J193: 2 | K193: 11 | L193: 1 | M193: 12 | N193: 1 | O193: d3 | P193: 2 | Q193: -
A194: 165 | B194: Clumsiness | E194: 165 | F194: C | G194: 9 | H194: 1 | I194: 10 | J194: 2 | K194: 11 | L194: 1 | M194: 12 | N194: 1 | O194: d3 | P194: 2 | Q194: -
A195: 166 | B195: Hold Small Animal | E195: 166 | F195: C | G195: 9 | H195: 1 | I195: 10 | J195: 2 | K195: 11 | L195: 1 | M195: 12 | N195: 1 | O195: d3 | P195: 2 | Q195: -
A196: 167 | B196: Muscle Spasm | E196: 167 | F196: C | G196: 9 | H196: 1 | I196: 10 | J196: 2 | K196: 11 | L196: 1 | M196: 12 | N196: 1 | O196: d2 | P196: 2 | Q196: -
A197: 168 | B197: Command Small Animal | E197: 168 | F197: C | G197: 9 | H197: 1 | I197: 10 | J197: 2 | K197: 11 | L197: 1 | M197: 12 | N197: 1 | O197: d4 | P197: 2 | Q197: -
A198: 169 | B198: Hold Large Animal | E198: 169 | F198: C | G198: 9 | H198: 1 | I198: 10 | J198: 2 | K198: 11 | L198: 1 | M198: 12 | N198: 1 | O198: d3 | P198: 3 | Q198: -
A199: 170 | B199: Command Large Animal | E199: 170 | F199: C | G199: 9 | H199: 1 | I199: 10 | J199: 2 | K199: 11 | L199: 1 | M199: 12 | N199: 1 | O199: d4 | P199: 4 | Q199: -
A200: 171 | B200: Hold Person | E200: 171 | F200: C | G200: 9 | H200: 1 | I200: 10 | J200: 2 | K200: 11 | L200: 1 | M200: 12 | N200: 1 | O200: d4 | P200: 4 | Q200: -
A201: 172 | B201: Summan Animal | E201: 172 | F201: C | G201: 9 | H201: 1 | I201: 10 | J201: 2 | K201: 11 | L201: 1 | M201: 12 | N201: 1 | O201: d5 | P201: 4 | Q201: -
A202: 173 | B202: Hold Monster | E202: 173 | F202: C | G202: 9 | H202: 1 | I202: 10 | J202: 2 | K202: 11 | L202: 1 | M202: 12 | N202: 1 | O202: d5 | P202: 5 | Q202: -
A203: 174 | B203: Word of Power:Deafen | E203: 174 | F203: C | G203: 9 | H203: 1 | I203: 10 | J203: 2 | K203: 11 | L203: 1 | M203: 12 | N203: 1 | O203: d4 | P203: 4 | Q203: -
A204: 175 | B204: Word of Power:Stun | E204: 175 | F204: C | G204: 9 | H204: 1 | I204: 10 | J204: 2 | K204: 11 | L204: 1 | M204: 12 | N204: 1 | O204: d5 | P204: 5 | Q204: -
A205: 176 | B205: Berserker Rage | E205: 176 | F205: C | G205: 9 | H205: 1 | I205: 10 | J205: 2 | K205: 11 | L205: 1 | M205: 12 | N205: 1 | O205: d6 | P205: 6 | Q205: -
A206: 177 | B206: Bravery | E206: 177 | F206: C | G206: 9 | H206: 1 | I206: 10 | J206: 2 | K206: 11 | L206: 1 | M206: 12 | N206: 1 | O206: d6 | P206: 6 | Q206: -
A207: 178 | B207: Confusion | E207: 178 | F207: C | G207: 9 | H207: 1 | I207: 10 | J207: 2 | K207: 11 | L207: 1 | M207: 12 | N207: 1 | O207: d6 | P207: 6 | Q207: -
A208: 179 | B208: Fear | E208: 179 | F208: C | G208: 9 | H208: 1 | I208: 10 | J208: 2 | K208: 11 | L208: 1 | M208: 12 | N208: 1 | O208: d6 | P208: 6 | Q208: -
A209: 180 | B209: Hate | E209: 180 | F209: C | G209: 9 | H209: 1 | I209: 10 | J209: 2 | K209: 11 | L209: 1 | M209: 12 | N209: 1 | O209: d6 | P209: 5 | Q209: -
A210: 181 | B210: Love | E210: 181 | F210: C | G210: 9 | H210: 1 | I210: 10 | J210: 2 | K210: 11 | L210: 1 | M210: 12 | N210: 1 | O210: d6 | P210: 5 | Q210: -
A211: 182 | B211: Hypnotize | E211: 182 | F211: C | G211: 9 | H211: 1 | I211: 10 | J211: 2 | K211: 11 | L211: 1 | M211: 12 | N211: 1 | O211: Int | P211: 4 | Q211: -
B213: Constitutive Magic | G213: Affinity | H213: Plus | I213: Affinity2 | J213: Plus2 | K213: Affinity3 | L213: Plus3 | M213: Affinity4 | N213: Plus4 | O213: Difficulty | P213: Stamina | Q213: Save | R213: Effect
... 241 more rows

Sheet Initial Skills
B1: Skill Cluster Inclusion Table
A2: 1 | B2: Warrior | C2: Light Axes | D2: 1 | E2: Hand-to-hand | F2: 1 | G2: Cudgels | H2: 1 | I2: Spears | J2: 1 | K2: Thrown Weapons | L2: 1 | M2: Shields | N2: 1 | O2: Dodge | P2: 1 | Q2: Berserker Rage | R2: 1 | S2: Grapple | T2: 1 | U2: Tackle | V2: 1 | W2: Immobile Opponent Removal | X2: 1 | Y2: Hide in Shadows | Z2: 1 | AA2: Move Silently | AB2: 1 | AC2: Acrobatics | AD2: 1 | AE2: Ward Self | AF2: 1 | AG2: Ritual Method | AH2: 1 | AI2: Chirurgery | AJ2: 1 | AK2: Forestry | AL2: 1 | AN2: 0 | AP2: 0
A3: 2 | B3: Man-at-Arms | C3: Polearms | D3: 2 | E3: Single Edge Blades | F3: 1 | G3: Short Blades | H3: 2 | I3: Hammers | J3: 2 | K3: Self Bows | L3: 2 | M3: Dodge | N3: 1 | O3: Immobile Opponent Removal | P3: 1 | Q3: Grapple | R3: 1 | S3: Tackle | T3: 1 | U3: Acrobatics | V3: 1 | W3: Move Silently | X3: 1 | Y3: Chirurgery | Z3: 1 | AA3: Military Engineer | AB3: 1 | AD3: 0 | AF3: 0 | AH3: 0 | AJ3: 0 | AL3: 0 | AN3: 0 | AP3: 0
A4: 3 | B4: Chivalry | C4: Polearms | D4: 2 | E4: Two Edge Blades | F4: 1 | G4: Single Edge Blades | H4: 1 | I4: Shields | J4: 2 | K4: Crossbows | L4: 1 | M4: Dodge | N4: 1 | O4: Grapple | P4: 1 | Q4: Tackle | R4: 1 | S4: Protection from Evil (M) | T4: 1 | U4: Protection from Magic (M) | V4: 1 | W4: Ritual Method | X4: 1 | Y4: Chirurgery | Z4: 1 | AA4: Military Engineer | AB4: 1 | AC4: Service | AD4: 1 | AE4: Armory | AF4: 1 | AG4: Riding | AH4: 1 | AJ4: 0 | AL4: 0 | AN4: 0 | AP4: 0
A5: 4 | B5: Knight | C5: Two Edge Blades | D5: 2 | E5: Mounted Lance | F5: 1 | G5: Single Edge Blades | H5: 1 | I5: Shields | J5: 2 | K5: Dodge | L5: 1 | M5: Tackle | N5: 1 | O5: Grapple | P5: 1 | Q5: Protection from Evil (M) | R5: 1 | S5: Protection from Magic (M) | T5: 1 | U5: Ritual Method | V5: 1 | W5: Chirurgery | X5: 1 | Y5: Military Engineer | Z5: 1 | AA5: Service | AB5: 1 | AC5: Armory | AD5: 1 | AE5: Riding | AF5: 1 | AG5: Finance | AH5: 1 | AI5: Falconry | AJ5: 1 | AL5: 0 | AN5: 0 | AP5: 0
A6: 5 | B6: Cutpurse | C6: Knives | D6: 1 | E6: Hand-to-Hand | F6: 1 | G6: Dodge | H6: 1 | I6: Tackle | J6: 1 | K6: Charm Person | L6: 1 | M6: Charm Small Animal | N6: 1 | O6: Essence Method | P6: 1 | Q6: Acrobatics | R6: 1 | S6: Detect Noises | T6: 2 | U6: Hide in Shadows | V6: 2 | W6: Move Silently | X6: 1 | Y6: Pick Pocket | Z6: 2 | AA6: Animal Training | AB6: 1 | AC6: Dancing | AD6: 1 | AE6: Bargain | AF6: 1 | AH6: 0 | AJ6: 0 | AL6: 0 | AN6: 0 | AP6: 0
A7: 6 | B7: Thief | C7: Knives | D7: 1 | E7: Thrown Weapons | F7: 1 | G7: Hand-to-Hand | H7: 1 | I7: Grapple | J7: 1 | K7: Dodge | L7: 1 | M7: Gemology | N7: 1 | O7: Chirurgery | P7: 1 | Q7: Acrobatics | R7: 1 | S7: Detect Noises | T7: 1 | U7: Hide in Shadows | V7: 2 | W7: Move Silently | X7: 2 | Y7: Disarm Trap | Z7: 2 | AA7: Pick Lock | AB7: 2 | AC7: Backstab | AD7: 1 | AF7: 0 | AH7: 0 | AJ7: 0 | AL7: 0 | AN7: 0 | AP7: 0
A8: 7 | B8: Assassin | C8: Knives | D8: 2 | E8: Eastern Hand Darts | F8: 1 | G8: Short Blades | H8: 1 | I8: Single Edge Blades | J8: 1 | K8: Dodge | L8: 1 | M8: Immobile Opponent Removal | N8: 1 | O8: Chemistry | P8: 1 | Q8: Chirurgery | R8: 1 | S8: Acrobatics | T8: 1 | U8: Detect Noises | V8: 1 | W8: Hide in Shadows | X8: 1 | Y8: Move Silently | Z8: 1 | AA8: Administration of Poison | AB8: 1 | AC8: Backstab | AD8: 1 | AE8: Physical Torture | AF8: 1 | AG8: Disarm Trap | AH8: 1 | AI8: Pick Lock | AJ8: 1 | AL8: 0 | AN8: 0 | AP8: 0
A9: 8 | B9: Primative Talent | C9: Knives | D9: 1 | E9: Dodge | F9: 1 | G9: any craft skill | H9: 2 | I9: Hide in Shadows | J9: 1 | K9: Hold Small Animal | L9: 1 | M9: Circle of Protection | N9: 1 | O9: Detect Tracks | P9: 1 | Q9: Detect Direction | R9: 1 | S9: Detect Etheric | T9: 1 | U9: Charm Person | V9: 1 | W9: any spell | X9: 1 | Y9: any spell | Z9: 1 | AA9: any spell | AB9: 1 | AC9: any spell | AD9: 1 | AE9: any spell | AF9: 1 | AG9: Ward Self | AH9: 1 | AI9: Essence Method | AJ9: 1 | AL9: 0 | AN9: 0 | AP9: 0
A10: 9 | B10: Hex Master | C10: Knives | D10: 1 | E10: Staves | F10: 1 | G10: Dodge | H10: 1 | I10: Mathematics | J10: 2 | K10: Ink & Paper Making | L10: 2 | M10: Finance | N10: 1 | O10: coercive spell | P10: 1 | Q10: coercive spell | R10: 1 | S10: coercive spell | T10: 1 | U10: traumatic spell | V10: 1 | W10: traumatic spell | X10: 1 | Y10: Circle of Protection | Z10: 1 | AA10: Magic Square Method | AB10: 1 | AC10: Ritual Method | AD10: 1 | AE10: augury spell | AF10: 1 | AH10: 0 | AJ10: 0 | AL10: 0 | AN10: 0 | AP10: 0
A11: 10 | B11: Enchanter | C11: Knives | D11: 1 | E11: Staves | F11: 1 | G11: Dodge | H11: 1 | I11: Language:Music | J11: 2 | K11: Instrument Playing | L11: 2 | M11: Dancing | N11: 1 | O11: coercive spell | P11: 1 | Q11: coercive spell | R11: 1 | S11: coercive spell | T11: 1 | U11: coercive spell | V11: 1 | W11: Circle of Protection | X11: 1 | Y11: Ward Self | Z11: 1 | AA11: Enchantment Method | AB11: 1 | AC11: Ritual Method | AD11: 1 | AE11: augury spell | AF11: 1 | AH11: 0 | AJ11: 0 | AL11: 0 | AN11: 0 | AP11: 0
A12: 11 | B12: Thaumaturgist | C12: Thrown Weapons | D12: 1 | E12: Knives | F12: 1 | G12: Dodge | H12: 1 | I12: Herbalism | J12: 1 | K12: Gemology | L12: 1 | M12: Chemistry | N12: 1 | O12: Juggling/Foolery | P12: 1 | Q12: Metallurgy | R12: 1 | S12: Illusion,Sight | T12: 1 | U12: Illusion,Sound | V12: 1 | W12: Illusion,Smell | X12: 1 | Y12: Illusion,Touch | Z12: 1 | AA12: Illusion,Taste | AB12: 1 | AC12: Illusion,Change | AD12: 1 | AE12: Thaumaturgy Method | AF12: 1 | AG12: Acrobatics | AH12: 1 | AJ12: 0 | AL12: 0 | AN12: 0 | AP12: 0
A13: 12 | B13: Power Word | C13: Staves | D13: 1 | E13: Dodge | F13: 1 | G13: language:modern | H13: 1 | I13: language:modern | J13: 1 | K13: language:modern | L13: 1 | M13: language:modern | N13: 1 | O13: language:ancient | P13: 1 | Q13: language:ancient | R13: 1 | S13: Ink & Paper Making | T13: 1 | U13: coercive spell | V13: 1 | W13: coercive spell | X13: 1 | Y13: coercive spell | Z13: 1 | AA13: coercive spell | AB13: 1 | AC13: thereputic spell | AD13: 1 | AE13: thereputic spell | AF13: 1 | AG13: Circle of Protection | AH13: 1 | AI13: Word Method | AJ13: 1 | AK13: Ritual Method | AL13: 1 | AN13: 0 | AP13: 0
A14: 13 | B14: Cabbalist | C14: Staves | D14: 1 | E14: Dodge | F14: 1 | G14: Painting & Drawing | H14: 1 | I14: Ink & Paper Making | J14: 1 | K14: physical spell | L14: 1 | M14: physical spell | N14: 1 | O14: physical spell | P14: 1 | Q14: physical spell | R14: 1 | S14: traumatic spell | T14: 1 | U14: traumatic spell | V14: 1 | W14: Circle of Protection | X14: 1 | Y14: Fly | Z14: 1 | AA14: Detect Life | AB14: 1 | AC14: Detect Etheric | AD14: 1 | AE14: Cabal Method | AF14: 1 | AG14: Ritual Method | AH14: 1 | AJ14: 0 | AL14: 0 | AN14: 0 | AP14: 0
A15: 14 | B15: Technologist | D15: 0 | F15: 0 | H15: 0 | I15: Not Available at this time. | J15: 0 | L15: 0 | N15: 0 | P15: 0 | R15: 0 | T15: 0 | V15: 0 | X15: 0 | Z15: 0 | AB15: 0 | AD15: 0 | AF15: 0 | AH15: 0 | AJ15: 0 | AL15: 0 | AN15: 0 | AP15: 0
A16: 15 | B16: Alchemist | D16: 0 | F16: 0 | H16: 0 | I16: Not Available at this time. | J16: 0 | L16: 0 | N16: 0 | P16: 0 | R16: 0 | T16: 0 | V16: 0 | X16: 0 | Z16: 0 | AB16: 0 | AD16: 0 | AF16: 0 | AH16: 0 | AJ16: 0 | AL16: 0 | AN16: 0 | AP16: 0
A17: 16 | B17: Healer | C17: Staves | D17: 1 | E17: Dodge | F17: 1 | G17: Chirurgery | H17: 2 | I17: Herbalism | J17: 3 | K17: Service | L17: 1 | M17: thereputic spell | N17: 1 | O17: thereputic spell | P17: 1 | Q17: thereputic spell | R17: 1 | S17: Cure Disease (M) | T17: 1 | U17: Heal Minor Wound (M) | V17: 1 | W17: Prayer Method | X17: 1 | Y17: Ritual Method | Z17: 1 | AB17: 0 | AD17: 0 | AF17: 0 | AH17: 0 | AJ17: 0 | AL17: 0 | AN17: 0 | AP17: 0
A18: 17 | B18: Friar | C18: Staves | D18: 1 | E18: Dodge | F18: 1 | G18: Chirurgery | H18: 1 | I18: Herbalism | J18: 1 | K18: Service | L18: 3 | M18: Agriculture | N18: 2 | O18: Cure Disease (M) | P18: 1 | Q18: Heal Minor Wound (M) | R18: 1 | S18: Heal Serious Wound (M) | T18: 1 | U18: Call Food Animal (M) | V18: 1 | W18: miraculous spell | X18: 1 | Y18: Water to Wine (M) | Z18: 1 | AA18: Prayer Method | AB18: 1 | AC18: Ritual Method | AD18: 1 | AE18: miraculous spell | AF18: 1 | AH18: 0 | AJ18: 0 | AL18: 0 | AN18: 0 | AP18: 0
A19: 18 | B19: Cleric | C19: Staves | D19: 1 | E19: Dodge | F19: 1 | G19: Service | H19: 1 | I19: Ink & Paper Making | J19: 1 | K19: Language(A):Latin | L19: 1 | M19: Cure Disease (M) | N19: 1 | O19: Heal Minor Wound (M) | P19: 1 | Q19: Confession/Absolution (M) | R19: 1 | S19: Recognize Evil (M) | T19: 1 | U19: Exorcism (M) | V19: 1 | W19: Benediction (M) | X19: 1 | Y19: Protection from Evil (M) | Z19: 1 | AA19: Prayer Method | AB19: 1 | AC19: Ritual Method | AD19: 1 | AE19: miraculous spell | AF19: 1 | AH19: 0 | AJ19: 0 | AL19: 0 | AN19: 0 | AP19: 0
A20: 19 | B20: Shaman | C20: Knives | D20: 1 | E20: Staves | F20: 1 | G20: Self Bows | H20: 1 | I20: Dodge | J20: 1 | K20: Chirurgery | L20: 1 | M20: Herbalism | N20: 1 | O20: Forestry | P20: 1 | Q20: Agriculture | R20: 1 | S20: Cure Disease (M) | T20: 1 | U20: Heal Minor Wound (M) | V20: 1 | W20: Circle of Protection | X20: 1 | Y20: Detect Damage/Disease | Z20: 1 | AA20: Prayer Method | AB20: 1 | AC20: Ritual Method | AD20: 1 | AE20: Move Silently | AF20: 1 | AG20: Detect Noises | AH20: 1 | AJ20: 0 | AL20: 0 | AN20: 0 | AP20: 0
A21: 20 | B21: Druid | C21: Knives | D21: 1 | E21: Staves | F21: 1 | G21: Dodge | H21: 1 | I21: Chirurgery | J21: 1 | K21: Herbalism | L21: 2 | M21: Forestry | N21: 1 | O21: Astronomy | P21: 1 | Q21: Mathematics | R21: 1 | S21: Cure Disease (M) | T21: 1 | U21: Heal Minor Wound (M) | V21: 1 | W21: Circle of Protection | X21: 1 | Y21: Prayer Method | Z21: 1 | AA21: Ritual Method | AB21: 1 | AC21: Move Silently | AD21: 1 | AE21: Detect Noises | AF21: 1 | AG21: nature miracle | AH21: 1 | AI21: nature miracle | AJ21: 1 | AL21: 0 | AN21: 0 | AP21: 0
A22: 21 | B22: Coursair | C22: Single Edge Blades | D22: 1 | E22: Guns and Crossbows | F22: 1 | H22: 0 | I22: Not Available at this time. | J22: 0 | L22: 0 | N22: 0 | P22: 0 | R22: 0 | T22: 0 | V22: 0 | X22: 0 | Z22: 0 | AB22: 0 | AD22: 0 | AF22: 0 | AH22: 0 | AJ22: 0 | AL22: 0 | AN22: 0 | AP22: 0
A23: 22 | B23: Courtesan | C23: Knives | D23: 1 | F23: 0 | H23: 0 | I23: Not Available at this time. | J23: 0 | L23: 0 | N23: 0 | P23: 0 | R23: 0 | T23: 0 | V23: 0 | X23: 0 | Z23: 0 | AB23: 0 | AD23: 0 | AF23: 0 | AH23: 0 | AJ23: 0 | AL23: 0 | AN23: 0 | AP23: 0
A24: 23 | B24: Unselected | D24: 0 | F24: 0 | H24: 0 | J24: 0 | L24: 0 | N24: 0 | P24: 0 | R24: 0 | T24: 0 | V24: 0 | X24: 0 | Z24: 0 | AB24: 0 | AD24: 0 | AF24: 0 | AH24: 0 | AJ24: 0 | AL24: 0 | AN24: 0 | AP24: 0

Sheet Tables
A1: Race Selection Table
A2: roll | B2: race | C2: IQ | D2: WIS | E2: CON | F2: STR | G2: DEX | H2: SP | I2: AP | J2: ART | K2: ETH | L2: FAI | M2: MAG | N2: BOD | O2: AGE | P2: LE | R2: VISION
A3: 2 | B3: Pixie | E3: -1 | F3: -1 | G3: 3 | H3: -1 | I3: 2 | J3: 1 | K3: 3 | M3: 3 | N3: -3 | O3: 30 | P3: 0 | Q3: 1 | R3: Normal
A4: 3 | B4: Saurig | C4: 1 | E4: 1 | G4: 2 | H4: -2 | I4: -1 | M4: -1 | O4: 10 | P4: 150 | Q4: 2 | R4: Normal
A5: 4 | B5: Hobbit | E5: 3 | G5: 3 | K5: 2 | M5: -4 | N5: -2 | O5: 30 | P5: 150 | Q5: 3 | R5: Night Vision
A6: 5 | B6: Dwarf | E6: 3 | F6: 2 | G6: -2 | H6: -1 | I6: -2 | J6: 1 | K6: -1 | L6: -2 | N6: 2 | O6: 50 | P6: 300 | Q6: 4 | R6: Night Vision
A7: 6 | B7: Half-Elf | E7: 2 | G7: 1 | I7: 1 | M7: 1 | O7: 40 | P7: 1000 | Q7: 5 | R7: Normal
A8: 7 | B8: Human | O8: 14 | P8: 80 | Q8: 6 | R8: Normal
A9: 17 | B9: Elf | E9: -2 | F9: -1 | G9: 3 | H9: 1 | I9: 1 | J9: 1 | K9: 1 | L9: 2 | M9: 2 | N9: -1 | O9: 100 | P9: 0 | Q9: 7 | R9: Infra-Vision
A10: 18 | B10: Gnome | E10: 3 | F10: 2 | G10: -2 | I10: -2 | J10: 2 | K10: -1 | O10: 55 | P10: 330 | Q10: 8 | R10: Normal
A11: 19 | B11: Half-Orc | E11: 2 | F11: 1 | I11: -1 | K11: -1 | L11: -2 | N11: 1 | O11: 16 | P11: 500 | Q11: 9 | R11: Night Vision
A12: 20 | B12: Centaur | D12: -1 | E12: 3 | F12: 2 | G12: -2 | J12: -1 | K12: 2 | L12: -2 | M12: -2 | N12: 4 | O12: 15 | P12: 500 | Q12: 10 | R12: Normal
A13: 21 | B13: Kobold | C13: -2 | D13: -1 | E13: 1 | F13: -1 | G13: 3 | H13: -1 | I13: -2 | J13: 1 | K13: 3 | N13: -3 | O13: 12 | P13: 45 | Q13: 11
A14: 22 | B14: Orc | C14: -2 | D14: -1 | E14: 3 | F14: 3 | G14: 1 | H14: -2 | I14: -3 | J14: -1 | K14: -2 | L14: -2 | M14: -2 | N14: 3 | O14: 15 | P14: 500 | Q14: 12
A15: 23 | B15: Goblin | C15: -1 | E15: 2 | F15: 2 | G15: 2 | H15: -2 | I15: -2 | J15: -1 | L15: 2 | M15: 1 | O15: 15 | P15: 75 | Q15: 13
A16: 24 | B16: Urikhai | E16: 4 | F16: 4 | G16: 2 | H16: -1 | I16: -2 | J16: -1 | K16: -3 | N16: 5 | O16: 18 | P16: 500 | Q16: 14
A17: 25 | B17: Skeleton | E17: 2 | G17: 1 | I17: 1 | M17: 1 | O17: 0 | P17: 0 | Q17: 15
A18: 26 | B18: Skeleton2 | O18: 0 | P18: 0 | Q18: 16
A19: 27 | E19: -2 | F19: -1 | G19: 3 | H19: 1 | I19: 1 | J19: 1 | K19: 1 | L19: 2 | M19: 2 | N19: -1 | O19: 0 | P19: 0 | Q19: 17
A20: 28 | E20: 3 | F20: 2 | G20: -2 | I20: -2 | J20: 2 | K20: -1 | O20: 0 | P20: 0 | Q20: 18
A21: 29 | B21: Demon Major | C21: 3 | E21: 4 | F21: 4 | G21: 2 | H21: -2 | I21: -4 | K21: -10 | L21: -10 | M21: 4 | N21: 25 | O21: 0 | P21: 1000 | Q21: 19
A22: 30 | B22: Dragon | C22: 5 | D22: 4 | E22: 5 | F22: 8 | G22: -2 | H22: 2 | I22: -2 | J22: -1 | L22: -2 | M22: 5 | N22: 75 | O22: 500 | P22: 2500 | Q22: 20
A24: Racial Size Table (Stature)
A25: RACE | B25: -1 | C25: 0 | D25: 1 | E25: 2 | F25: 3 | G25: 4 | H25: 5 | I25: 6 | J25: 7 | K25: 8 | L25: 9 | M25: 10 | N25: 11 | O25: 12 | P25: 13 | Q25: 14 | R25: 15 | S25: 16 | T25: 17 | U25: 18 | V25: 19 | W25: 20 | X25: 21 | Y25: 22
A26: Pixie | E26: 15 | F26: 15 | G26: 16 | H26: 16 | I26: 17 | J26: 17 | K26: 17 | L26: 18 | M26: 18 | N26: 18 | O26: 19 | P26: 19 | Q26: 20 | R26: 20 | S26: 20 | T26: 21 | U26: 21 | V26: 21 | W26: 24
B27: 7 | C27: 8 | D27: 9 | E27: 10 | F27: 11 | G27: 12 | H27: 13 | I27: 14 | J27: 15 | K27: 16 | L27: 17 | M27: 18 | N27: 19 | O27: 19 | P27: 20 | Q27: 21 | R27: 22 | S27: 23 | T27: 24 | U27: 25 | V27: 26 | W27: 27 | X27: 28 | Y27: 30
A28: Saurig | E28: 60 | F28: 61 | G28: 62 | H28: 63 | I28: 64 | J28: 65 | K28: 66 | L28: 67 | M28: 68 | N28: 69 | O28: 70 | P28: 71 | Q28: 72 | R28: 73 | S28: 74 | T28: 75 | U28: 76 | V28: 77 | W28: 84
B29: 100 | C29: 106 | D29: 113 | E29: 119 | F29: 125 | G29: 131 | H29: 138 | I29: 144 | J29: 150 | K29: 156 | L29: 163 | M29: 169 | N29: 175 | O29: 181 | P29: 188 | Q29: 194 | R29: 200 | S29: 206 | T29: 213 | U29: 219 | V29: 225 | W29: 231 | X29: 238 | Y29: 250
A30: Hobbit | E30: 43 | F30: 44 | G30: 44 | H30: 45 | I30: 45 | J30: 46 | K30: 47 | L30: 47 | M30: 48 | N30: 48 | O30: 49 | P30: 49 | Q30: 50 | R30: 51 | S30: 51 | T30: 52 | U30: 52 | V30: 53 | W30: 57
B31: 50 | C31: 53 | D31: 56 | E31: 59 | F31: 63 | G31: 66 | H31: 69 | I31: 72 | J31: 75 | K31: 78 | L31: 81 | M31: 84 | N31: 88 | O31: 91 | P31: 94 | Q31: 97 | R31: 100 | S31: 103 | T31: 106 | U31: 109 | V31: 113 | W31: 116 | X31: 119 | Y31: 125
A32: Dwarf | E32: 45 | F32: 46 | G32: 46 | H32: 47 | I32: 48 | J32: 48 | K32: 49 | L32: 50 | M32: 50 | N32: 51 | O32: 52 | P32: 52 | Q32: 53 | R32: 54 | S32: 54 | T32: 55 | U32: 56 | V32: 56 | W32: 61
B33: 60 | C33: 65 | D33: 69 | E33: 74 | F33: 78 | G33: 83 | H33: 87 | I33: 92 | J33: 97 | K33: 101 | L33: 106 | M33: 110 | N33: 115 | O33: 120 | P33: 124 | Q33: 129 | R33: 133 | S33: 138 | T33: 142 | U33: 147 | V33: 152 | W33: 156 | X33: 161 | Y33: 170
A34: Half-Elf | E34: 60 | F34: 61 | G34: 62 | H34: 63 | I34: 64 | J34: 65 | K34: 66 | L34: 67 | M34: 68 | N34: 69 | O34: 70 | P34: 71 | Q34: 72 | R34: 73 | S34: 74 | T34: 75 | U34: 76 | V34: 77 | W34: 84
B35: 70 | C35: 76 | D35: 83 | E35: 89 | F35: 95 | G35: 101 | H35: 108 | I35: 114 | J35: 120 | K35: 126 | L35: 133 | M35: 139 | N35: 145 | O35: 151 | P35: 158 | Q35: 164 | R35: 170 | S35: 176 | T35: 183 | U35: 189 | V35: 195 | W35: 201 | X35: 208 | Y35: 220
A36: Men | E36: 55 | F36: 56 | G36: 57 | H36: 59 | I36: 60 | J36: 61 | K36: 62 | L36: 63 | M36: 65 | N36: 66 | O36: 67 | P36: 68 | Q36: 70 | R36: 71 | S36: 72 | T36: 73 | U36: 74 | V36: 76 | W36: 84
B37: 70 | C37: 78 | D37: 85 | E37: 93 | F37: 100 | G37: 108 | H37: 115 | I37: 123 | J37: 130 | K37: 138 | L37: 145 | M37: 153 | N37: 160 | O37: 168 | P37: 175 | Q37: 183 | R37: 190 | S37: 198 | T37: 205 | U37: 213 | V37: 220 | W37: 228 | X37: 235 | Y37: 250
A38: Elf | E38: 54 | F38: 55 | G38: 56 | H38: 57 | I38: 58 | J38: 59 | K38: 60 | L38: 61 | M38: 62 | N38: 63 | O38: 64 | P38: 65 | Q38: 66 | R38: 66 | S38: 67 | T38: 68 | U38: 69 | V38: 70 | W38: 77
B39: 65 | C39: 72 | D39: 80 | E39: 87 | F39: 94 | G39: 101 | H39: 109 | I39: 116 | J39: 123 | K39: 131 | L39: 138 | M39: 145 | N39: 153 | O39: 160 | P39: 167 | Q39: 174 | R39: 182 | S39: 189 | T39: 196 | U39: 204 | V39: 211 | W39: 218 | X39: 225 | Y39: 240
A40: Gnome | E40: 45 | F40: 46 | G40: 46 | H40: 47 | I40: 48 | J40: 48 | K40: 49 | L40: 50 | M40: 50 | N40: 51 | O40: 52 | P40: 52 | Q40: 53 | R40: 54 | S40: 54 | T40: 55 | U40: 56 | V40: 56 | W40: 61
B41: 60 | C41: 64 | D41: 68 | E41: 71 | F41: 75 | G41: 79 | H41: 83 | I41: 86 | J41: 90 | K41: 94 | L41: 98 | M41: 101 | N41: 105 | O41: 109 | P41: 113 | Q41: 116 | R41: 120 | S41: 124 | T41: 128 | U41: 131 | V41: 135 | W41: 139 | X41: 143 | Y41: 150
A42: Half-Orc | E42: 54 | F42: 55 | G42: 56 | H42: 57 | I42: 57 | J42: 58 | K42: 59 | L42: 60 | M42: 61 | N42: 62 | O42: 62 | P42: 63 | Q42: 64 | R42: 65 | S42: 66 | T42: 67 | U42: 67 | V42: 68 | W42: 74
B43: 75 | C43: 88 | D43: 100 | E43: 113 | F43: 125 | G43: 138 | H43: 150 | I43: 163 | J43: 175 | K43: 188 | L43: 200 | M43: 213 | N43: 225 | O43: 238 | P43: 250 | Q43: 263 | R43: 275 | S43: 288 | T43: 300 | U43: 313 | V43: 325 | W43: 338 | X43: 350 | Y43: 375
A44: Centaur | E44: 72 | F44: 74 | G44: 76 | H44: 78 | I44: 80 | J44: 82 | K44: 84 | L44: 86 | M44: 88 | N44: 90 | O44: 92 | P44: 94 | Q44: 96 | R44: 98 | S44: 100 | T44: 102 | U44: 104 | V44: 106 | W44: 120
B45: 1000 | C45: 1042 | D45: 1083 | E45: 1125 | F45: 1167 | G45: 1208 | H45: 1250 | I45: 1292 | J45: 1333 | K45: 1375 | L45: 1417 | M45: 1458 | N45: 1500 | O45: 1542 | P45: 1583 | Q45: 1625 | R45: 1667 | S45: 1708 | T45: 1750 | U45: 1792 | V45: 1833 | W45: 1875 | X45: 1917 | Y45: 2000
A46: Kobold | E46: 15 | F46: 15 | G46: 16 | H46: 16 | I46: 17 | J46: 17 | K46: 17 | L46: 18 | M46: 18 | N46: 18 | O46: 19 | P46: 19 | Q46: 20 | R46: 20 | S46: 20 | T46: 21 | U46: 21 | V46: 21 | W46: 24
B47: 7 | C47: 8 | D47: 9 | E47: 10 | F47: 11 | G47: 12 | H47: 13 | I47: 14 | J47: 15 | K47: 16 | L47: 17 | M47: 18 | N47: 19 | O47: 19 | P47: 20 | Q47: 21 | R47: 22 | S47: 23 | T47: 24 | U47: 25 | V47: 26 | W47: 27 | X47: 28 | Y47: 30
A48: Orc | E48: 54 | F48: 55 | G48: 56 | H48: 57 | I48: 57 | J48: 58 | K48: 59 | L48: 60 | M48: 61 | N48: 62 | O48: 62 | P48: 63 | Q48: 64 | R48: 65 | S48: 66 | T48: 67 | U48: 67 | V48: 68 | W48: 74
B49: 100 | C49: 106 | D49: 113 | E49: 119 | F49: 125 | G49: 131 | H49: 138 | I49: 144 | J49: 150 | K49: 156 | L49: 163 | M49: 169 | N49: 175 | O49: 181 | P49: 188 | Q49: 194 | R49: 200 | S49: 206 | T49: 213 | U49: 219 | V49: 225 | W49: 231 | X49: 238 | Y49: 250
A50: Goblin | E50: 43 | F50: 44 | G50: 44 | H50: 45 | I50: 45 | J50: 46 | K50: 47 | L50: 47 | M50: 48 | N50: 48 | O50: 49 | P50: 49 | Q50: 50 | R50: 51 | S50: 51 | T50: 52 | U50: 52 | V50: 53 | W50: 57
B51: 50 | C51: 53 | D51: 56 | E51: 59 | F51: 63 | G51: 66 | H51: 69 | I51: 72 | J51: 75 | K51: 78 | L51: 81 | M51: 84 | N51: 88 | O51: 91 | P51: 94 | Q51: 97 | R51: 100 | S51: 103 | T51: 106 | U51: 109 | V51: 113 | W51: 116 | X51: 119 | Y51: 125
A52: Urikhai | E52: 60 | F52: 62 | G52: 64 | H52: 66 | I52: 68 | J52: 70 | K52: 72 | L52: 74 | M52: 76 | N52: 78 | O52: 80 | P52: 82 | Q52: 84 | R52: 86 | S52: 88 | T52: 90 | U52: 92 | V52: 94 | W52: 96
B53: 105 | C53: =B53+5 -> 110 | D53: =C53+5 -> 115 | E53: 120 | F53: 125 | G53: 130 | H53: 135 | I53: 140 | J53: 145 | K53: 150 | L53: 155 | M53: 160 | N53: 165 | O53: 170 | P53: 175 | Q53: 180 | R53: 185 | S53: 190 | T53: 195 | U53: 200 | V53: 205 | W53: 210 | X53: 215 | Y53: 220
A54: Skeleton | E54: 60 | F54: 61 | G54: 62 | H54: 63 | I54: 64 | J54: 65 | K54: 66 | L54: 67 | M54: 68 | N54: 69 | O54: 70 | P54: 71 | Q54: 72 | R54: 73 | S54: 74 | T54: 75 | U54: 76 | V54: 77 | W54: 84
B55: 70 | C55: 76 | D55: 83 | E55: 89 | F55: 95 | G55: 101 | H55: 108 | I55: 114 | J55: 120 | K55: 126 | L55: 133 | M55: 139 | N55: 145 | O55: 151 | P55: 158 | Q55: 164 | R55: 170 | S55: 176 | T55: 183 | U55: 189 | V55: 195 | W55: 201 | X55: 208 | Y55: 220
A56: Skeleton2 | E56: 55 | F56: 56 | G56: 57 | H56: 59 | I56: 60 | J56: 61 | K56: 62 | L56: 63 | M56: 65 | N56: 66 | O56: 67 | P56: 68 | Q56: 70 | R56: 71 | S56: 72 | T56: 73 | U56: 74 | V56: 76 | W56: 84
B57: 70 | C57: 78 | D57: 85 | E57: 93 | F57: 100 | G57: 108 | H57: 115 | I57: 123 | J57: 130 | K57: 138 | L57: 145 | M57: 153 | N57: 160 | O57: 168 | P57: 175 | Q57: 183 | R57: 190 | S57: 198 | T57: 205 | U57: 213 | V57: 220 | W57: 228 | X57: 235 | Y57: 250
A58: x | E58: 54 | F58: 55 | G58: 56 | H58: 57 | I58: 58 | J58: 59 | K58: 60 | L58: 61 | M58: 62 | N58: 63 | O58: 64 | P58: 65 | Q58: 66 | R58: 66 | S58: 67 | T58: 68 | U58: 69 | V58: 70 | W58: 77
B59: 65 | C59: 72 | D59: 80 | E59: 87 | F59: 94 | G59: 101 | H59: 109 | I59: 116 | J59: 123 | K59: 131 | L59: 138 | M59: 145 | N59: 153 | O59: 160 | P59: 167 | Q59: 174 | R59: 182 | S59: 189 | T59: 196 | U59: 204 | V59: 211 | W59: 218 | X59: 225 | Y59: 240
A60: x | E60: 45 | F60: 46 | G60: 46 | H60: 47 | I60: 48 | J60: 48 | K60: 49 | L60: 50 | M60: 50 | N60: 51 | O60: 52 | P60: 52 | Q60: 53 | R60: 54 | S60: 54 | T60: 55 | U60: 56 | V60: 56 | W60: 61
B61: 60 | C61: 64 | D61: 68 | E61: 71 | F61: 75 | G61: 79 | H61: 83 | I61: 86 | J61: 90 | K61: 94 | L61: 98 | M61: 101 | N61: 105 | O61: 109 | P61: 113 | Q61: 116 | R61: 120 | S61: 124 | T61: 128 | U61: 131 | V61: 135 | W61: 139 | X61: 143 | Y61: 150
A62: Demon Major | E62: 400 | F62: 400 | G62: 400 | H62: 400 | I62: 400 | J62: 400 | K62: 400 | L62: 400 | M62: 400 | N62: 400 | O62: 400 | P62: 400 | Q62: 400 | R62: 400 | S62: 400 | T62: 400 | U62: 400 | V62: 400 | W62: 400
B63: 400 | C63: 400 | D63: 400 | E63: 400 | F63: 400 | G63: 400 | H63: 400 | I63: 400 | J63: 400 | K63: 400 | L63: 400 | M63: 400 | N63: 400 | O63: 400 | P63: 400 | Q63: 400 | R63: 400 | S63: 400 | T63: 400 | U63: 400 | V63: 400 | W63: 400 | X63: 400 | Y63: 400
A64: Dragon | E64: 100 | F64: 105 | G64: 110 | H64: 115 | I64: 120 | J64: 125 | K64: 130 | L64: 135 | M64: 140 | N64: 145 | O64: 150 | P64: 155 | Q64: 160 | R64: 165 | S64: 170 | T64: 175 | U64: 180 | V64: 185 | W64: 190
B65: 1500 | C65: 1750 | D65: 2000 | E65: 2250 | F65: 2500 | G65: 2750 | H65: 3000 | I65: 3250 | J65: 3500 | K65: 3750 | L65: 4000 | M65: 4250 | N65: 4500 | O65: 4750 | P65: 5000 | Q65: 5250 | R65: 5500 | S65: 5750 | T65: 6000 | U65: 6250 | V65: 6500 | W65: 6750 | X65: 7000 | Y65: 7250
A66: BODY | B66: -2 | C66: -2 | D66: -1 | E66: -1 | F66: 0 | G66: 0 | H66: 0 | I66: 0 | J66: 0 | K66: 0 | L66: 0 | M66: 0 | N66: 0 | O66: 1 | P66: 1 | Q66: 2 | R66: 3 | S66: 4 | T66: 5 | U66: 6 | V66: 7 | W66: 8 | X66: 9 | Y66: 10
A68: Build Modifications Table
B69: 1 | C69: 2 | D69: 4 | E69: 8 | F69: 10
A70: male | B70: -2 | C70: -1 | E70: 1 | F70: 2
A71: female | B71: -3 | C71: -2 | D71: -1 | F71: 1
A73: Horoscope Table
A74: roll | B74: zodiac | C74: IQ | D74: WIS | E74: CON | F74: STR | G74: DEX | H74: SP | I74: AP | J74: ART | K74: ETH | L74: FAI
A75: 1 | B75: Aries | G75: 2 | H75: 1 | I75: 1
A76: 11 | B76: Taurus | E76: 2 | K76: 2
A77: 19 | B77: Gemini | C77: 2 | H77: 2
A78: 26 | B78: Cancer | E78: 2 | J78: 1 | L78: 1
A79: 33 | B79: Leo | E79: 1 | F79: 3
A80: 41 | B80: Virgo | D80: 1 | I80: 2 | K80: 1
A81: 49 | B81: Libra | D81: 2 | J81: 1 | L81: 1
A82: 57 | B82: Scorpio | C82: 3 | J82: 1
A83: 66 | B83: Sagittarius | D83: 2 | F83: 2
A84: 73 | B84: Capricorn | E84: 1 | G84: 1 | I84: 2
A85: 81 | B85: Aquarius | E85: 1 | J85: 1 | K85: 1 | L85: 1
A86: 89 | B86: Pisces | F86: 1 | G86: 2 | J86: 1
A88: Racial Characteristics
A89: Index | B89: Characteristic | E89: Int | F89: Wis | G89: Con | H89: Str | I89: Dex | J89: Spe | K89: App | L89: Art | M89: Eth | N89: Fat | O89: Bod | P89: Sta | Q89: Com | R89: Ste | S89: Mag | T89: Mir
A90: 1 | B90: Infravision | D90: =A90 -> 1 | Q90: 1 | R90: 2
A91: =A90+1 -> 2 | B91: Night Vision | D91: =A91 -> 2 | Q91: 1 | R91: 2
A92: =A91+1 -> 3 | B92: Far Sight | D92: 3 | Q92: 2
A93: 4 | B93: Blind | D93: 4 | K93: -1 | Q93: -10 | R93: -10
A94: 5 | D94: 5
A95: 6 | D95: 6
A96: 7 | D96: 7
A97: 8 | D97: 8
A99: Skill Class / Age Table
A100: Skill C | B100: Age Cost
A101: 1 | B101: 2
A102: 2 | B102: 4
A103: 3 | B103: 8
A104: 4 | B104: 15
A105: 5 | B105: 2
A106: 6 | B106: 4
A107: 7 | B107: 10
A108: 8 | B108: 0
A109: 9 | B109: 5
A110: 10 | B110: 4
A111: 11 | B111: 8
A112: 12 | B112: 10
A113: 13 | B113: 7
A114: 14
A115: 15
A116: =A115+1 -> 16 | B116: 7
A117: 17 | B117: 3
A118: 18 | B118: 5
A119: 19 | B119: 10
A120: 20 | B120: 8
A121: 21
A122: 22
A123: 23
A125: Starting Skill Bonus Table
A126: 0 | B126: 50 | C126: 25
A127: 6 | B127: 100 | C127: 50
A128: 10 | B128: 150 | C128: 100
A129: 15 | B129: 200 | C129: 125
A130: 17 | B130: 250 | C130: 150
A131: 19 | B131: 275 | C131: 175
A132: 20 | B132: 300 | C132: 200
A134: Combat Bonus Tables
A135: Axes | B135: =CONCATENATE(A135,C135) -> Axes0 | C135: 0 | D135: 0
A136: Axes | B136: Axes10 | C136: 10 | D136: 1
A137: Axes | B137: Axes13 | C137: 13 | D137: 2
A138: Axes | B138: Axes17 | C138: 17 | D138: 3
A139: Axes | B139: Axes23 | C139: 23 | D139: 4
A140: Axes | B140: Axes30 | C140: 30 | D140: 5
A141: Axes | B141: Axes34 | C141: 34 | D141: 6
A142: Axes | B142: Axes40 | C142: 40 | D142: 7
A143: Axes | B143: Axes50 | C143: 50 | D143: 8
A144: Cudgels | B144: Cudgels0 | C144: 0 | D144: 0
A145: Cudgels | B145: Cudgels10 | C145: 10 | D145: 1
A146: Cudgels | B146: Cudgels13 | C146: 13 | D146: 2
A147: Cudgels | B147: Cudgels17 | C147: 17 | D147: 3
A148: Cudgels | B148: Cudgels23 | C148: 23 | D148: 4
A149: Cudgels | B149: Cudgels30 | C149: 30 | D149: 5
A150: Cudgels | B150: Cudgels34 | C150: 34 | D150: 6
A151: Cudgels | B151: Cudgels40 | C151: 40 | D151: 7
A152: Cudgels | B152: Cudgels50 | C152: 50 | D152: 8
A153: Flails | B153: =CONCATENATE(A153,C153) -> Flails0 | C153: 0 | D153: 0
A154: Flails | B154: Flails10 | C154: 10 | D154: 1
A155: Flails | B155: Flails17 | C155: 17 | D155: 2
A156: Flails | B156: Flails23 | C156: 23 | D156: 3
A157: Flails | B157: Flails30 | C157: 30 | D157: 4
A158: Flails | B158: Flails37 | C158: 37 | D158: 5
A159: Flails | B159: Flails45 | C159: 45 | D159: 6
A160: Foil | B160: Foil0 | C160: 0 | D160: 0
A161: Foil | B161: Foil10 | C161: 10 | D161: 1
A162: Foil | B162: Foil13 | C162: 13 | D162: 2
A163: Foil | B163: Foil17 | C163: 17 | D163: 3
A164: Foil | B164: Foil23 | C164: 23 | D164: 4
A165: Foil | B165: Foil30 | C165: 30 | D165: 5
A166: Foil | B166: Foil34 | C166: 34 | D166: 6
A167: Foil | B167: Foil40 | C167: 40 | D167: 7
A168: Foil | B168: Foil50 | C168: 50 | D168: 8
A169: Hammers | B169: Hammers0 | C169: 0 | D169: 0
A170: Hammers | B170: Hammers10 | C170: 10 | D170: 1
A171: Hammers | B171: Hammers17 | C171: 17 | D171: 2
A172: Hammers | B172: Hammers23 | C172: 23 | D172: 3
A173: Hammers | B173: =CONCATENATE(A173,C173) -> Hammers30 | C173: 30 | D173: 4
A174: Hammers | B174: Hammers37 | C174: 37 | D174: 5
A175: Hammers | B175: Hammers45 | C175: 45 | D175: 6
A176: Hand-to-Hand | B176: Hand-to-Hand0 | C176: 0 | D176: 0
A177: Hand-to-Hand | B177: Hand-to-Hand10 | C177: 10 | D177: 1
A178: Hand-to-Hand | B178: =CONCATENATE(A178,C178) -> Hand-to-Hand13 | C178: 13 | D178: 2
A179: Hand-to-Hand | B179: Hand-to-Hand17 | C179: 17 | D179: 3
A180: Hand-to-Hand | B180: Hand-to-Hand23 | C180: 23 | D180: 4
A181: Hand-to-Hand | B181: Hand-to-Hand30 | C181: 30 | D181: 5
A182: Hand-to-Hand | B182: Hand-to-Hand34 | C182: 34 | D182: 6
A183: Hand-to-Hand | B183: Hand-to-Hand40 | C183: 40 | D183: 7
A184: Hand-to-Hand | B184: Hand-to-Hand50 | C184: 50 | D184: 8
A185: Knives | B185: Knives0 | C185: 0 | D185: 0
A186: Knives | B186: Knives10 | C186: 10 | D186: 1
A187: Knives | B187: Knives13 | C187: 13 | D187: 2
A188: Knives | B188: Knives17 | C188: 17 | D188: 3
A189: Knives | B189: Knives23 | C189: 23 | D189: 4
A190: Knives | B190: Knives30 | C190: 30 | D190: 5
A191: Knives | B191: Knives34 | C191: 34 | D191: 6
A192: Knives | B192: Knives40 | C192: 40 | D192: 7
A193: Knives | B193: Knives50 | C193: 50 | D193: 8
A194: Light Axes | B194: Light Axes0 | C194: 0 | D194: 0
A195: Light Axes | B195: Light Axes10 | C195: 10 | D195: 1
A196: Light Axes | B196: Light Axes13 | C196: 13 | D196: 2
A197: Light Axes | B197: Light Axes17 | C197: 17 | D197: 3
A198: Light Axes | B198: Light Axes23 | C198: 23 | D198: 4
A199: Light Axes | B199: Light Axes30 | C199: 30 | D199: 5
A200: Light Axes | B200: Light Axes34 | C200: 34 | D200: 6
A201: Light Axes | B201: Light Axes40 | C201: 40 | D201: 7
A202: Light Axes | B202: Light Axes50 | C202: 50 | D202: 8
A203: Mounted Lance | B203: Mounted Lance0 | C203: 0 | D203: 0
A204: Polearms | B204: =CONCATENATE(A204,C204) -> Polearms0 | C204: 0 | D204: 0
A205: Polearms | B205: Polearms11 | C205: 11 | D205: 1
A206: Polearms | B206: Polearms17 | C206: 17 | D206: 2
A207: Polearms | B207: Polearms23 | C207: 23 | D207: 3
... 135 more rows

Sheet Choosers
A2: Axes | B2: Axes | C2: Battle Axe | F2: Crossbows | G2: Crossbows | H2: Light Crossbow
A3: Cudgels | B3: Axes | C3: Norman War Axe | F3: Eastern Hand Darts | G3: Crossbows | H3: Thieves Crossbow
A4: Flails | B4: Axes | C4: Woodsman's Axe | F4: Self Bows | G4: Crossbows | H4: Heavy Crossbow
A5: Foil | B5: Axes | C5: Halberd | F5: Thrown Weapons | G5: Eastern Hand Darts | H5: Small Blowgun
A6: Hammers | B6: Axes | C6: Two-Handed Battle Axe | F6: All Missile Weapons | G6: Eastern Hand Darts | H6: Large Blowgun
A7: Knives | B7: Cudgels | C7: Light Club | G7: Eastern Hand Darts | H7: Chakra
A8: Light Axes | B8: Cudgels | C8: Cudgel | G8: Self Bows | H8: Shortbow
A9: Lance | B9: Cudgels | C9: War Pick | G9: Self Bows | H9: Longbow
A10: Polearms | B10: Cudgels | C10: Heavy Club | G10: Self Bows | H10: Composite bow
A11: Short Blades | B11: Cudgels | C11: Mace | G11: Self Bows | H11: Elvish Longbow
A12: Single Edge Blades | B12: Flails | C12: Flail | G12: Thrown Weapons | H12: Hand Sling
A13: Spears | B13: Flails | C13: Morning Star | G13: Thrown Weapons | H13: Staff Sling
A14: Staves | B14: Flails | C14: Two-Handed Flail | G14: Thrown Weapons | H14: Dart
A15: Net | B15: Foil | C15: Foil | G15: Thrown Weapons | H15: Rock
A16: Two Edge Blades | B16: Hammers | C16: Dwarvish Warhammer | G16: Thrown Weapons | H16: Bolo
A17: Whips | B17: Hammers | C17: Warhammer | G17: Thrown Weapons | H17: Throwing Knife
A18: All Weapons | B18: Hammers | C18: Maul | G18: Thrown Weapons | H18: Throwing Axe
B19: Hammers | C19: Two-Handed Warhammer | G19: Thrown Weapons | H19: Spear
B20: Knives | C20: Dagger | G20: Thrown Weapons | H20: Javelin
B21: Knives | C21: Knife
B22: Knives | C22: Sickle
B23: LightAxes | C23: Hatchet
B24: LightAxes | C24: Light Axe | F24: All Missile Weapons
B25: LightAxes | C25: Tomahawk | G25: Light Crossbow
B26: Lance | C26: Jousting Lance
B27: Lance | C27: Combat Lance
B28: Polearms | C28: Pitchfork
B29: Polearms | C29: Conteux de Breche
B30: Polearms | C30: Fauchard
B31: Polearms | C31: Fauchard Fork
B32: Polearms | C32: Guisarme/Bill
B33: Polearms | C33: Lucerne Hammer
B34: Polearms | C34: Partisan
B35: Polearms | C35: Long Pike
B36: Polearms | C36: Normal Pike
B37: Polearms | C37: Short Pike
B38: Polearms | C38: Spontoon
B39: Polearms | C39: Footman's Lance
B40: Polearms | C40: Voulge
B41: Polearms | C41: War Scythe
B42: ShortBlades | C42: Light Sword
B43: ShortBlades | C43: Rapier
B44: ShortBlades | C44: Short Sword
B45: SingleEdgeBlades | C45: Cutlass
B46: SingleEdgeBlades | C46: Saber
B47: SingleEdgeBlades | C47: Longsword
B48: SingleEdgeBlades | C48: Normal Sword
B49: SingleEdgeBlades | C49: Scimitar
B50: SingleEdgeBlades | C50: Scimitar (Goblinoid)
B51: SingleEdgeBlades | C51: Two-Handed Sword
B52: Spears | C52: Javelin (thrust)
B53: Spears | C53: Hunting Spear
B54: Spears | C54: Long Spear
B55: Spears | C55: Normal Spear
B56: Staves | C56: Staff
B57: Staves | C57: Quarterstaff
B58: Staves | C58: Ironshod Quarterstaff
B59: Net | C59: Net
B60: TwoEdgeBlades | C60: Bastard Sword
B61: TwoEdgeBlades | C61: Broadsword
B62: TwoEdgeBlades | C62: Hand-and-a-half Sword
B63: TwoEdgeBlades | C63: Two-Handed Broadsword
B64: Whips | C64: Bullwhip
B65: Whips | C65: Whipknife

Sheet Crunch
A1: =B1&C1&D1&E1&F1&G1&H1 -> |Intelligence |={border:1px dashed blue}.5||Charisma |={border:1px dashed green}.10||Stealth |={border:1px solid black}.16| | B1: |Intelligence |={border:1px dashed blue}. | C1: =Frontsheet!E3 -> 5 | D1: ||Charisma |={border:1px dashed green}. | E1: =Frontsheet!E14 -> 10 | F1: ||Stealth |={border:1px solid black}. | G1: =Frontsheet!E9 -> 16 | H1: |
A2: |Wisdom |={border:1px dashed blue}.15||Charm |={border:1px dashed green}.11||Combat |={border:1px solid black}.16| | B2: |Wisdom |={border:1px dashed blue}. | C2: =Frontsheet!E4 -> 15 | D2: ||Charm |={border:1px dashed green}. | E2: =Frontsheet!E15 -> 11 | F2: ||Combat |={border:1px solid black}. | G2: =Frontsheet!E10 -> 16 | H2: |
A3: |Constitution |={border:1px dashed blue}.5||Stamina |={border:1px solid black}.4||Magic |={border:1px solid black}.10| | B3: |Constitution |={border:1px dashed blue}. | C3: =Frontsheet!E5 -> 5 | D3: ||Stamina |={border:1px solid black}. | E3: =Frontsheet!E16 -> 4 | F3: ||Magic |={border:1px solid black}. | G3: =Frontsheet!E11 -> 10 | H3: |
A4: |Strength |={border:1px dashed blue}.16||Vigor |={border:1px solid black}.4||Miracle |={border:1px solid black}.14| | B4: |Strength |={border:1px dashed blue}. | C4: =Frontsheet!E6 -> 16 | D4: ||Vigor |={border:1px solid black}. | E4: =Frontsheet!E18 -> 4 | F4: ||Miracle |={border:1px solid black}. | G4: =Frontsheet!E12 -> 14 | H4: |
A5: |Dexterity |={border:1px dashed blue}.22||Body |={border:1px solid black}.11||Armor Class |={border:1px dashed blue}.6(0)| | B5: |Dexterity |={border:1px dashed blue}. | C5: =Frontsheet!E7 -> 22 | D5: ||Body |={border:1px solid black}. | E5: =Frontsheet!E17 -> 11 | F5: ||Armor Class |={border:1px dashed blue}. | G5: =CONCATENATE(-VALUE(Frontsheet!E31),IF(Frontsheet!E32>0,Frontsheet!E32,"")) -> 6(0) | H5: |
A6: |_\2.*Human*||_\2.*Male*||Speech |=.12| | B6: |_\2.* | C6: =Frontsheet!Q4 -> Human | D6: *||_\2.* | E6: =Frontsheet!Q3 -> Male | F6: *||Speech |=. | G6: =Frontsheet!K3 -> 12 | H6: |
A7: |\2.5 ft 8 in tall||\2.190 lbs||Appearance |=.11| | B7: ="|\2."&Frontsheet!J9&" ft "&Frontsheet!K9&" in tall" -> |\2.5 ft 8 in tall | D7: ="||\2."&Frontsheet!J10&" lbs" -> ||\2.190 lbs | F7: ||Appearance |=. | G7: =Frontsheet!K4 -> 11 | H7: |
A8: |\2.29 years of age||\2.able to carry 314 lbs||Art |=.6| | B8: ="|\2."&Frontsheet!J12&" years of age" -> |\2.29 years of age | D8: ="||\2.able to carry "&Frontsheet!J11&" lbs" -> ||\2.able to carry 314 lbs | F8: ||Art |=. | G8: =Frontsheet!K5 -> 6 | H8: |
A9: |\5.A Townsman born in the sign of Pisces||Ethics |=.2| | B9: |\5.A | C9: =Frontsheet!Q7 -> Townsman | D9: born in the sign of | E9: =Frontsheet!Q6 -> Pisces | F9: ||Ethics |=. | G9: =Frontsheet!K6 -> 2 | H9: |
A10: |\5.Generally trained as a *Knight*||Faith |=.8| | B10: ="|\5.Generally trained as a *"&Frontsheet!E20&"*" -> |\5.Generally trained as a *Knight* | F10: ||Faith |=. | G10: =Frontsheet!K7 -> 8 | H10: |
A12: =IF(B12="","",CONCATENATE("|_.",B12,"|_=.",C12,"|_=.Init|_=.",E12,"|_=.",F12,"|_=.",G12,"|_=.",H12,"|_=.",I12,"|_=.",J12,"|_=.",K12,"|_=.",L12,"|_=.",M12,"|_=.",N12,"|_=.",O12,"|_.Damage|")) -> |_.Melee Weapons|_=.#B|_=.Init|_=.0|_=.1|_=.2|_=.3|_=.4|_=.5|_=.6|_=.7|_=.8|_=.9|_=.10|_.Damage| | B12: =Frontsheet!A38 -> Melee Weapons | C12: =Frontsheet!F38 -> #B | D12: =Frontsheet!G38 -> Int | E12: =Frontsheet!H38 -> 0 | F12: =Frontsheet!I38 -> 1 | G12: =Frontsheet!J38 -> 2 | H12: =Frontsheet!K38 -> 3 | I12: =Frontsheet!L38 -> 4 | J12: =Frontsheet!M38 -> 5 | K12: =Frontsheet!N38 -> 6 | L12: =Frontsheet!O38 -> 7 | M12: =Frontsheet!P38 -> 8 | N12: =Frontsheet!Q38 -> 9 | O12: =Frontsheet!R38 -> 10 | P12: =Frontsheet!S38 -> Dam
A13: =IF(B13="","",CONCATENATE("|.",B13,"|=.",C13,"|=.",D13,"|=.",E13,"|=.",F13,"|=.",G13,"|=.",H13,"|=.",I13,"|=.",J13,"|=.",K13,"|=.",L13,"|=.",M13,"|=.",N13,"|=.",O13,"|",P13&"|")) -> |.Short Sword|=.3|=.25|=.30|=.25|=.20|=.10|=.0|=.-5|=.-10|=.-15|=.-15|=.-20|=.-25|2d6| | B13: =Frontsheet!A39 -> Short Sword | C13: =Frontsheet!F39 -> 3 | D13: =Frontsheet!G39 -> 25 | E13: =Frontsheet!H39 -> 30 | F13: =Frontsheet!I39 -> 25 | G13: =Frontsheet!J39 -> 20 | H13: =Frontsheet!K39 -> 10 | I13: =Frontsheet!L39 -> 0 | J13: =Frontsheet!M39 -> -5 | K13: =Frontsheet!N39 -> -10 | L13: =Frontsheet!O39 -> -15 | M13: =Frontsheet!P39 -> -15 | N13: =Frontsheet!Q39 -> -20 | O13: =Frontsheet!R39 -> -25 | P13: =Frontsheet!S39 -> 2d6
A14: |.Warhammer|=.3|=.27|=.15|=.15|=.15|=.10|=.10|=.10|=.5|=.5|=.0|=.-5|=.-10|2d6| | B14: =Frontsheet!A40 -> Warhammer | C14: =Frontsheet!F40 -> 3 | D14: =Frontsheet!G40 -> 27 | E14: =Frontsheet!H40 -> 15 | F14: =Frontsheet!I40 -> 15 | G14: =Frontsheet!J40 -> 15 | H14: =Frontsheet!K40 -> 10 | I14: =Frontsheet!L40 -> 10 | J14: =Frontsheet!M40 -> 10 | K14: =Frontsheet!N40 -> 5 | L14: =Frontsheet!O40 -> 5 | M14: =Frontsheet!P40 -> 0 | N14: =Frontsheet!Q40 -> -5 | O14: =Frontsheet!R40 -> -10 | P14: =Frontsheet!S40 -> 2d6
A15: |.Maul|=.2|=.30|=.20|=.20|=.20|=.20|=.20|=.25|=.20|=.15|=.10|=.5|=.-10|2d10| | B15: =Frontsheet!A41 -> Maul | C15: =Frontsheet!F41 -> 2 | D15: =Frontsheet!G41 -> 30 | E15: =Frontsheet!H41 -> 20 | F15: =Frontsheet!I41 -> 20 | G15: =Frontsheet!J41 -> 20 | H15: =Frontsheet!K41 -> 20 | I15: =Frontsheet!L41 -> 20 | J15: =Frontsheet!M41 -> 25 | K15: =Frontsheet!N41 -> 20 | L15: =Frontsheet!O41 -> 15 | M15: =Frontsheet!P41 -> 10 | N15: =Frontsheet!Q41 -> 5 | O15: =Frontsheet!R41 -> -10 | P15: =Frontsheet!S41 -> 2d10
A16: |.Two-Handed Warhammer|=.2|=.28|=.30|=.20|=.20|=.20|=.20|=.20|=.20|=.15|=.5|=.0|=.-5|2d10| | B16: =Frontsheet!A42 -> Two-Handed Warhammer | C16: =Frontsheet!F42 -> 2 | D16: =Frontsheet!G42 -> 28 | E16: =Frontsheet!H42 -> 30 | F16: =Frontsheet!I42 -> 20 | G16: =Frontsheet!J42 -> 20 | H16: =Frontsheet!K42 -> 20 | I16: =Frontsheet!L42 -> 20 | J16: =Frontsheet!M42 -> 20 | K16: =Frontsheet!N42 -> 20 | L16: =Frontsheet!O42 -> 15 | M16: =Frontsheet!P42 -> 5 | N16: =Frontsheet!Q42 -> 0 | O16: =Frontsheet!R42 -> -5 | P16: =Frontsheet!S42 -> 2d10
A17: |.Maul|=.2|=.30|=.20|=.20|=.20|=.20|=.20|=.25|=.20|=.15|=.10|=.5|=.-10|2d10| | B17: =Frontsheet!A43 -> Maul | C17: =Frontsheet!F43 -> 2 | D17: =Frontsheet!G43 -> 30 | E17: =Frontsheet!H43 -> 20 | F17: =Frontsheet!I43 -> 20 | G17: =Frontsheet!J43 -> 20 | H17: =Frontsheet!K43 -> 20 | I17: =Frontsheet!L43 -> 20 | J17: =Frontsheet!M43 -> 25 | K17: =Frontsheet!N43 -> 20 | L17: =Frontsheet!O43 -> 15 | M17: =Frontsheet!P43 -> 10 | N17: =Frontsheet!Q43 -> 5 | O17: =Frontsheet!R43 -> -10 | P17: =Frontsheet!S43 -> 2d10
A18: |.Knife|=.4|=.23.5|=.20|=.10|=.5|=.0|=.-5|=.-10|=.-15|=.-20|=.-20|=.-25|=.-30|1d6| | B18: =Frontsheet!A44 -> Knife | C18: =Frontsheet!F44 -> 4 | D18: =Frontsheet!G44 -> 23.5 | E18: =Frontsheet!H44 -> 20 | F18: =Frontsheet!I44 -> 10 | G18: =Frontsheet!J44 -> 5 | H18: =Frontsheet!K44 -> 0 | I18: =Frontsheet!L44 -> -5 | J18: =Frontsheet!M44 -> -10 | K18: =Frontsheet!N44 -> -15 | L18: =Frontsheet!O44 -> -20 | M18: =Frontsheet!P44 -> -20 | N18: =Frontsheet!Q44 -> -25 | O18: =Frontsheet!R44 -> -30 | P18: =Frontsheet!S44 -> 1d6
A19: =IF(B19="","",CONCATENATE("|_.",B19,"|_=.",C19,"|_=.Init|_=.",E19,"|_=.",F19,"|_=.",G19,"|_=.",H19,"|_=.",I19,"|_=.",J19,"|_=.",K19,"|_=.",L19,"|_=.",M19,"|_=.",N19,"|_=.",O19,"|_.Damage|")) -> |_.Shield Weapon|_=.#B|_=.Init|_=.0|_=.1|_=.2|_=.3|_=.4|_=.5|_=.6|_=.7|_=.8|_=.9|_=.10|_.Damage| | B19: =Frontsheet!A46 -> Shield Weapon | C19: =Frontsheet!F46 -> #B | D19: =Frontsheet!G46 -> Int | E19: =Frontsheet!H46 -> 0 | F19: =Frontsheet!I46 -> 1 | G19: =Frontsheet!J46 -> 2 | H19: =Frontsheet!K46 -> 3 | I19: =Frontsheet!L46 -> 4 | J19: =Frontsheet!M46 -> 5 | K19: =Frontsheet!N46 -> 6 | L19: =Frontsheet!O46 -> 7 | M19: =Frontsheet!P46 -> 8 | N19: =Frontsheet!Q46 -> 9 | O19: =Frontsheet!R46 -> 10 | P19: =Frontsheet!S46 -> Dam
A20: =IF(B20="","",CONCATENATE("|.",B20,"|=.",C20,"|=.",D20,"|=.",E20,"|=.",F20,"|=.",G20,"|=.",H20,"|=.",I20,"|=.",J20,"|=.",K20,"|=.",L20,"|=.",M20,"|=.",N20,"|=.",O20,"|",P20&"|")) -> |.ºRondache|=.4|=.24|=.61|=.51|=.46|=.41|=.36|=.26|=.21|=.16|=.16|=.11|=.11|2d6| | B20: =Frontsheet!A47 -> ºRondache | C20: =Frontsheet!F47 -> 4 | D20: =Frontsheet!G47 -> 24 | E20: =Frontsheet!H47 -> 61 | F20: =Frontsheet!I47 -> 51 | G20: =Frontsheet!J47 -> 46 | H20: =Frontsheet!K47 -> 41 | I20: =Frontsheet!L47 -> 36 | J20: =Frontsheet!M47 -> 26 | K20: =Frontsheet!N47 -> 21 | L20: =Frontsheet!O47 -> 16 | M20: =Frontsheet!P47 -> 16 | N20: =Frontsheet!Q47 -> 11 | O20: =Frontsheet!R47 -> 11 | P20: =Frontsheet!S47 -> 2d6
A21: =IF(B21="","",CONCATENATE("|_.",B21,"|_=.",C21,"|_=.Init|_=.",E21,"|_=.",F21,"|_=.",G21,"|_=.",H21,"|_=.",I21,"|_=.",J21,"|_=.",K21,"|_=.",L21,"|_=.",M21,"|_=.",N21,"|_=.",O21,"|_.Damage|")) -> |_.Missile Weapons|_=.#B|_=.Init|_=.0|_=.1|_=.2|_=.3|_=.4|_=.5|_=.6|_=.7|_=.8|_=.9|_=.10|_.Damage| | B21: =Frontsheet!A49 -> Missile Weapons | C21: =Frontsheet!F49 -> #B | D21: =Frontsheet!G49 -> Int | E21: =Frontsheet!H49 -> 0 | F21: =Frontsheet!I49 -> 1 | G21: =Frontsheet!J49 -> 2 | H21: =Frontsheet!K49 -> 3 | I21: =Frontsheet!L49 -> 4 | J21: =Frontsheet!M49 -> 5 | K21: =Frontsheet!N49 -> 6 | L21: =Frontsheet!O49 -> 7 | M21: =Frontsheet!P49 -> 8 | N21: =Frontsheet!Q49 -> 9 | O21: =Frontsheet!R49 -> 10 | P21: =Frontsheet!S49 -> Dam
A22: =IF(B22="","",CONCATENATE("|.",B22,"|=.",C22,"|=.",D22,"|=.",E22,"|=.",F22,"|=.",G22,"|=.",H22,"|=.",I22,"|=.",J22,"|=.",K22,"|=.",L22,"|=.",M22,"|=.",N22,"|=.",O22,"|",P22&"|")) -> |.Heavy Crossbow|=.0.5|=.22|=.45|=.40|=.40|=.35|=.30|=.25|=.25|=.20|=.15|=.10|=.5|1d10+7| | B22: =Frontsheet!A50 -> Heavy Crossbow | C22: =Frontsheet!F50 -> 0.5 | D22: =Frontsheet!G50 -> 22 | E22: =Frontsheet!H50 -> 45 | F22: =Frontsheet!I50 -> 40 | G22: =Frontsheet!J50 -> 40 | H22: =Frontsheet!K50 -> 35 | I22: =Frontsheet!L50 -> 30 | J22: =Frontsheet!M50 -> 25 | K22: =Frontsheet!N50 -> 25 | L22: =Frontsheet!O50 -> 20 | M22: =Frontsheet!P50 -> 15 | N22: =Frontsheet!Q50 -> 10 | O22: =Frontsheet!R50 -> 5 | P22: =Frontsheet!S50 -> 1d10+7
A23: =IF(B23="","",CONCATENATE("|.",B23,"|=.",C23,"|=.",D23,"|=.",E23,"|=.",F23,"|=.",G23,"|=.",H23,"|=.",I23,"|=.",J23,"|=.",K23,"|=.",L23,"|=.",M23,"|=.",N23,"|=.",O23,"|",P23&"|")) -> |.Chakra|=.5|=.22|=.45|=.45|=.40|=.30|=.20|=.0|=.-10|=.-15|=.-20|=.-25|=.-35|1d3+(p)| | B23: =Frontsheet!A51 -> Chakra | C23: =Frontsheet!F51 -> 5 | D23: =Frontsheet!G51 -> 22 | E23: =Frontsheet!H51 -> 45 | F23: =Frontsheet!I51 -> 45 | G23: =Frontsheet!J51 -> 40 | H23: =Frontsheet!K51 -> 30 | I23: =Frontsheet!L51 -> 20 | J23: =Frontsheet!M51 -> 0 | K23: =Frontsheet!N51 -> -10 | L23: =Frontsheet!O51 -> -15 | M23: =Frontsheet!P51 -> -20 | N23: =Frontsheet!Q51 -> -25 | O23: =Frontsheet!R51 -> -35 | P23: =Frontsheet!S51 -> 1d3+(p)
A24: =IF(B24="","",CONCATENATE("|.",B24,"|=.",C24,"|=.",D24,"|=.",E24,"|=.",F24,"|=.",G24,"|=.",H24,"|=.",I24,"|=.",J24,"|=.",K24,"|=.",L24,"|=.",M24,"|=.",N24,"|=.",O24,"|",P24&"|")) -> |.Composite bow|=.2|=.22|=.45|=.45|=.40|=.30|=.25|=.20|=.15|=.10|=.5|=.0|=.-5|1d10+5| | B24: =Frontsheet!A52 -> Composite bow | C24: =Frontsheet!F52 -> 2 | D24: =Frontsheet!G52 -> 22 | E24: =Frontsheet!H52 -> 45 | F24: =Frontsheet!I52 -> 45 | G24: =Frontsheet!J52 -> 40 | H24: =Frontsheet!K52 -> 30 | I24: =Frontsheet!L52 -> 25 | J24: =Frontsheet!M52 -> 20 | K24: =Frontsheet!N52 -> 15 | L24: =Frontsheet!O52 -> 10 | M24: =Frontsheet!P52 -> 5 | N24: =Frontsheet!Q52 -> 0 | O24: =Frontsheet!R52 -> -5 | P24: =Frontsheet!S52 -> 1d10+5
A25: =IF(B25="","",CONCATENATE("|_.",B25,"|=.",C25,"|=.",D25,"|=.",E25,"|=.",F25,"|=.",G25,"|=.",H25,"|=.",I25,"|=.",J25,"|=.",K25,"|=.",L25,"|=.",M25,"|=.",N25,"|=.",O25,"|",P25&"|")) -> |_.Javelin|=.2|=.22|=.40|=.40|=.35|=.30|=.30|=.30|=.25|=.15|=.10|=.10|=.5|1d8| | B25: =Frontsheet!A53 -> Javelin | C25: =Frontsheet!F53 -> 2 | D25: =Frontsheet!G53 -> 22 | E25: =Frontsheet!H53 -> 40 | F25: =Frontsheet!I53 -> 40 | G25: =Frontsheet!J53 -> 35 | H25: =Frontsheet!K53 -> 30 | I25: =Frontsheet!L53 -> 30 | J25: =Frontsheet!M53 -> 30 | K25: =Frontsheet!N53 -> 25 | L25: =Frontsheet!O53 -> 15 | M25: =Frontsheet!P53 -> 10 | N25: =Frontsheet!Q53 -> 10 | O25: =Frontsheet!R53 -> 5 | P25: =Frontsheet!S53 -> 1d8
A26: |_.Skills|||_.Methods|||_.Spells/Miracles|_.Skl|_.Dff|_.Sav|_.Sta| | B26: =Frontsheet!T3 -> Skills | C26: =Frontsheet!Y3 -> 0 | D26: =Frontsheet!T17 -> Methods | E26: =Frontsheet!Z17 -> 0 | F26: =Frontsheet!T23 -> Spells/Miracles | G26: =Frontsheet!Z23 -> Skl|Dff|Sav|Sta
A27: =CONCATENATE("|",B27,"|=.",C27,"||",D27,"|=.",E27,"||",F27,"|=.",G27,"|") -> |Two Edge Blades|=.2||Ritual Method|=.1||Protection from Evil (M)|=.1|d3|-|2| | B27: =Frontsheet!T4 -> Two Edge Blades | C27: =Frontsheet!Y4 -> 2 | D27: =Frontsheet!T18 -> Ritual Method | E27: =Frontsheet!Z18 -> 1 | F27: =Frontsheet!T24 -> Protection from Evil (M) | G27: =Frontsheet!Z24 -> 1|d3|-|2
A28: |Mounted Lance|=.1|||=.||Protection from Magic (M)|=.1|d4|-|4| | B28: =Frontsheet!T5 -> Mounted Lance | C28: =Frontsheet!Y5 -> 1 | D28: =Frontsheet!T19 ->  | E28: =Frontsheet!Z19 ->  | F28: =Frontsheet!T25 -> Protection from Magic (M) | G28: =Frontsheet!Z25 -> 1|d4|-|4
A29: |Single Edge Blades|=.1|||=.|||=.| | B29: =Frontsheet!T6 -> Single Edge Blades | C29: =Frontsheet!Y6 -> 1 | D29: =Frontsheet!T20 ->  | E29: =Frontsheet!Z20 ->  | F29: =Frontsheet!T26 ->  | G29: =Frontsheet!Z26 -> 
A30: |Shields|=.2|||=.|||=.| | B30: =Frontsheet!T7 -> Shields | C30: =Frontsheet!Y7 -> 2 | D30: =Frontsheet!T21 ->  | E30: =Frontsheet!Z21 ->  | F30: =Frontsheet!T27 ->  | G30: =Frontsheet!Z27 -> 
A31: |Dodge|=.1|||=.|||=.| | B31: =Frontsheet!T8 -> Dodge | C31: =Frontsheet!Y8 -> 1 | D31: =Frontsheet!T22 ->  | E31: =Frontsheet!Z22 ->  | F31: =Frontsheet!T28 ->  | G31: =Frontsheet!Z28 -> 
A32: |Tackle|=.1|||=.|||=.| | B32: =Frontsheet!T9 -> Tackle | C32: =Frontsheet!Y9 -> 1 | F32: =Frontsheet!T29 ->  | G32: =Frontsheet!Z29 -> 
A33: |Grapple|=.1|||=.|||=.| | B33: =Frontsheet!T10 -> Grapple | C33: =Frontsheet!Y10 -> 1 | F33: =Frontsheet!T30 ->  | G33: =Frontsheet!Z30 -> 
A34: |Chirurgery|=.1|||=.|||=.| | B34: =Frontsheet!T11 -> Chirurgery | C34: =Frontsheet!Y11 -> 1 | F34: =Frontsheet!T31 ->  | G34: =Frontsheet!Z31 -> 
A35: |Military Engineer|=.1|||=.|||=.| | B35: =Frontsheet!T12 -> Military Engineer | C35: =Frontsheet!Y12 -> 1 | F35: =Frontsheet!T32 ->  | G35: =Frontsheet!Z32 -> 
A36: |Service|=.1|||=.|||=.| | B36: =Frontsheet!T13 -> Service | C36: =Frontsheet!Y13 -> 1 | F36: =Frontsheet!T33 ->  | G36: =Frontsheet!Z33 -> 
A37: |Armory|=.1|||=.|||=.| | B37: =Frontsheet!T14 -> Armory | C37: =Frontsheet!Y14 -> 1 | F37: =Frontsheet!T34 ->  | G37: =Frontsheet!Z34 -> 
A38: |Riding|=.1|||=.|||=.| | B38: =Frontsheet!T15 -> Riding | C38: =Frontsheet!Y15 -> 1 | F38: =Frontsheet!T35 ->  | G38: =Frontsheet!Z35 -> 
A39: |Finance|=.1|||=.|||=.| | B39: =Frontsheet!T16 -> Finance | C39: =Frontsheet!Y16 -> 1 | F39: =Frontsheet!T36 ->  | G39: =Frontsheet!Z36 -> 

Sheet Revisions
A1: Credits: | B1: Benjamin Holty; Design, Data Entry, Programming 1986-1995, 2005-2014
B2: Bruce Dain; Programming 1995-2005
B3: Special thanks to Bruce for all his hard work on this project. His programming expertise was instrumental in bringing many of the more powerful data processes to life. (Even though he occassionally had ulterior motives in changing the root formulas of the system.)
A5: REVISIONS:
A7: 4.1 | B7: Some general corrections to formulas, DEL Bruce frontsheet | C7: 2012-08-10 | D7: BWH
B8: Char Equip: ADD chooser menus for armor and weapons
B9: Char Stats: ADD chooser menu for Skill Cluster
A11: 4.2 B | B11: Tables: Weapon Bonus; Flails, ADD Hammers, DEL Lance | C11: 2014-03-24 | D11: BWH
B12: Char Stats: Wisdom/Strength Range Limits
B13: ID: Weaponless Combat tables.
B14: Char Stats: Del Miracle cheat
